Workbook

Sheet selite
A1: VALTIOVARAINMINISTERIÖ/Kunta- ja aluehallinto-osasto/vjl | H1: 2017-10-30
A3: KUNNAN TALOUDEN SUUNNITTELUKEHIKKO
A5: Kehikon käyttötarkoitus:
A6: Vuorovaikutteinen kunnan talouden suunnittelun apuväline. Kehikon avulla voidaan suunnitella kunnan talouden
A7: kehitystä pidemmällä aikavälillä. Tarkastelun kohteena ovat kunnan tuloslaskelma, rahoituslaskelmasta rahavarat, antolainat ja
A8: investoinnit sekä taseesta lainat ja kertynyt yli-/alijäämä. Pohjatietoina kehikossa ovat 2 viimeksi
A9: valmistunutta tilinpäätöstä.
A10: Tulevan kehityksen osalta tuloslaskelman erien kasvuolettamukset pohjautuvat lähtökohtaisesti
A11: uusimman valtion kuntatalousohjelman (elokuu 2017) mukaisiin makroarviolukuihin - ei kuntakohtaisiin ennusteisiin.
A12: Käyttäjä voi kuitenkin itse muokata em. kasvuolettamuksia sekä yleensä tuloslaskelman muita eriä.
A13: Myös tuloveroprosenttia, investointeja ja antolainasaamisten määrää voidaan muuttaa.
A14: Rahoituslaskelman ja taseen erät pohjautuvat jäljempänä selostettuihin olettamuksiin
A15: (pl. taseen kertynyt yli-/alijäämä = ed. tilikausien yli-/alijäämä + tilikauden yli-/alijäämä).
A17: Käyttäjä voi muokata vaaleansinisellä pohjalla olevia kohtia (soluja).
A19: Kehikon laskentapohja:
A20: Asukasluku:
A21: Kunnan asukaslukuina käytetään lähtökohtaisesti viimeisintä väestötietoa (tässä 31.12.2016). Tulevien vuosien
A22: osalta asukaslukutiedot perustuvat tilastokeskuksen viimeisimpään väestöennusteeseen (TK, 2015).
A23: Tuloveroprosentti:
A24: Tuloveroprosentti perustuu viimeksi vahvistettuun tietoon (tässä vuoden 2017 veroprosentti). Tulevien vuosien osalta
A25: tuloveroprosentti on lähtökohtaisesti sama kuin edellisvuonna, mutta sitä voidaan muuttaa kehikossa. Kehikko
A26: laskee automaattisesti veroprosentin muutoksen vaikutuksen kunnallisveron tuottoon (edellisvuoden
A27: veroprosenttiyksikön tuoton perusteella).
A28: Tuloslaskelma:
A29: Tuloslaskelman pohjana ovat kuntien tilinpäätökset kahdelta viimeiseltä vuodelta. Tässä tapauksessa vuodet
A30: 2015 ja 2016. Tuloslaskelman keskeisten erien tulevien vuosien kasvuprosentit perustuvat lähtökohtaisesti
A31: kuntatalousohjelman (KTO 2018, VM, elokuu 2017) mukaisiin makroennusteisiin eli kasvuprosentit
A32: ovat näin kaikilla kunnilla samat. Em. keskeiset tuloslaskelman erät ovat seuraavat:
B33: 1) toimintatuotot,
B34: 2) toimintamenot,
B35: 3) kunnallisverot (pl. veroprosentin noston vaikutus),
B36: 4) yhteisöverot,
B37: 5) kiinteistöverot ja
B38: 6) valtionosuudet (tässä päätösten mukaan vuonna 2017 ja VM:n arvio vuodesta 2018).
A39: Käyttäjä voi muokata em. erien kasvuolettamuksia haluamikseen kirjoittamalla taulukkoon uudet kasvuprosentit.
A41: Korkokulujen kehitys perustuu edellisvuoden lainamäärään ja valittuun korkokantaan. Korkoprosentti (keskim.)
A42: voidaan siis valita halutun mukaiseksi. Korkoprosentti ei vaikuta korkotuottoihin, vaan sen perustuu ed. vuoden määrään.
A44: Muiden tuloslaskelman erien on oletettu edellisvuoden mukaisesti, mutta käyttäjä voi muokata niitä haluamikseen.
A45: Rahoituslaskelma ja tase:
A46: Kehikossa tuloslaskelma "päätyy" taseen kertyneeseen yli-/alijäämään, jolloin voidaan tarkastella esim. milloin kunnan mahdollinen
A47: taseen alijäämä tulisi katetuksi valituilla tuloslaskelman kasvuoletuksilla (vrt. kuntalaki ja alijäämän kattamisvelvollisuus).
A49: Investoinnit ja niihin liittyvät rahoitusosuudet sekä pysyvien vastaavien luovutustulot ovat lähtökohtaisesti viimeksi toteutuneen
A50: tilinpäätöksen mukaiset, mutta ne ovat myös muutettavissa.
A52: Kehikossa ns. bruttorahoitustarve katetaan joko lainanlisäyksellä tai/ja rahavarojen purulla. Käyttäjä voi valita prosenttiosuuden,
A53: jolla rahavaroja käytetään bruttorahoitustarpeen kattamiseen. Mikäli rahavaroja ei ole, tarve katetaan kaikkiaan lainanlisäyksellä.
A54: Bruttorahoitustarve voi olla myös positiivinen, jolloin "ylijäämä" lisää rahavaroja.
A56: Bruttorahoitustarve muodostuu seuraavista eristä = Vuosikate + tulorahoituksen korjauserät + satunnaiset erät, netto + investoinnit,
A57: netto + antolainasaamisten muutokset, netto + lainanlyhennykset. Bruttorahoitustarve voi olla myös positiivinen, jolloin "ylijäämä"
A59: Lainamäärää lyhennetään valitun keskimääräisen lyhennysajan (kuoletusaika) mukaan eli jos keskimääräinen lainanmaksuaika
A60: on esimerkiksi 8 vuotta, niin vuosittainen lainanlyhennys on 1/8 (12,5 %) edellisvuoden lainamäärästä. Lainanlyhennys
A61: tehdään aina, vaikka bruttorahoitustarve olisi negatiivinen.
A66: Lisätietoja: Neuvotteleva virkamies Vesa Lappalainen, puh. 02955 30389, etunimi.sukunimi@vm.fi

Sheet KEHIKKO
A1: Valtiovarainministeriö/Kunta- ja aluehallinto-osasto/vjl | H1: VALITSE KUNTA: | L1: 2017-10-30
A2: KUNNAN TALOUDEN SUUNNITTELUKEHIKKO | J2: Kunnat vuoden 2017 kuntajaolla
A3: Muokkaa vaaleansinisellä olevia kohtia.
A4: =INDEX(pohjatiedot!$B$3:$B$298,KEHIKKO!$A$5) -> KOKO MAA (Manner-Suomi)
A5: 96 | B5: TP 2015 | C5: TP 2016 | D5: 2017 | E5: 2018 | F5: 2019 | G5: 2020 | H5: 2021 | I5: 2022 | J5: 2023 | K5: 2024 | L5: 2025 | M5: 2026
A6: TULOSLASKELMA | K6: sama kuin ed.vuonna
A7: Asukasluku 31.12. | B7: =VLOOKUP($A$4,pohjatiedot!$B$3:$CC$298,2) -> 5458325 | C7: =VLOOKUP($A$4,pohjatiedot!$B$3:$CC$298,40) -> 5474083 | D7: =VLOOKUP($A$4,väestöennuste!$A$8:$K$305,4) -> 5482281 | E7: =VLOOKUP($A$4,väestöennuste!$A$8:$K$305,5) -> 5503261 | F7: =VLOOKUP($A$4,väestöennuste!$A$8:$K$305,6) -> 5524063 | G7: =VLOOKUP($A$4,väestöennuste!$A$8:$K$305,7) -> 5544619 | H7: =VLOOKUP($A$4,väestöennuste!$A$8:$K$305,8) -> 5564874 | I7: =VLOOKUP($A$4,väestöennuste!$A$8:$K$305,9) -> 5584791 | J7: =VLOOKUP($A$4,väestöennuste!$A$8:$K$305,10) -> 5604290 | K7: =VLOOKUP($A$4,väestöennuste!$A$8:$K$305,11) -> 5623257 | L7: =K7 -> 5623257 | M7: =L7 -> 5623257 | N7: Väestöennuste TK 2015
A8: Veroprosentti | B8: =VLOOKUP($A$4,pohjatiedot!$B$3:$CC$298,3) -> 19.85 | C8: =VLOOKUP($A$4,pohjatiedot!$B$3:$CC$298,41) -> 19.89 | D8: =VLOOKUP($A$4,pohjatiedot!$B$3:$CF$298,80) -> 19.92 | E8: =D8 -> 19.92 | F8: =E8 -> 19.92 | G8: =VLOOKUP($A$4,pohjatiedot!$B$3:$CF$298,81) -> 7.45 | H8: 7.45 | I8: 7.45 | J8: 7.45 | K8: 7.45 | L8: 7.45 | M8: 7.45 | O8: Vuoden 2020 veroprosentti on saatu vähentämällä kunnilta 12,47 %-yksikköä
A9: vero-% yksikön tuotto | B9: =B15/B8 -> 929129.4207 | C9: 945567.823 | D9: =D15/D8 -> 941785.5517 | E9: =E15/E8 -> 962504.8339 | F9: 992342.4837 | G9: 1225847.996 | H9: 1187846.708 | I9: 1151023.46 | J9: 1115341.733 | K9: 1080766.139 | L9: 1047262.389 | M9: 1014797.255
A10: → noston vaikutus | D10: =(D8-C8)*C9 -> 28367.03469 | E10: =(E8-D8)*D9 -> 0 | G10: -12374510.77 | H10: 0 | I10: 0 | J10: 0 | K10: 0 | L10: 0 | M10: 0
A11: Toimintatuotot (sis. valm. okäytt.) | B11: =VLOOKUP($A$4,pohjatiedot!$B$3:$CC$298,6) -> 8030301 | C11: =VLOOKUP($A$4,pohjatiedot!$B$3:$CC$298,44) -> 8072125 | D11: =C11*(1+D69/100) -> 7757312.125 | E11: =D11*(1+E69/100) -> 7819370.622 | F11: =E11*(1+F69/100) -> 7952299.923 | G11: =F11*(1+G69/100) -> 6345935.338 | H11: =G11*(1+H69/100) -> 6510929.657 | I11: 6680213.828 | J11: 6853899.388 | K11: 7032100.772 | L11: 7214935.392 | M11: 7402523.712 | O11: Näiden erin muutos-
A12: Toimintakulut | B12: =VLOOKUP($A$4,pohjatiedot!$B$3:$CC$298,7) -> 36335521 | C12: =VLOOKUP($A$4,pohjatiedot!$B$3:$CC$298,45) -> 36517141 | D12: =C12*(1+D70/100) -> 35604212.48 | E12: 35995858.81 | F12: 36751771.85 | G12: 17824609.35 | H12: 18288049.19 | I12: 18763538.47 | J12: 19251390.47 | K12: 19751926.62 | L12: 20265476.71 | M12: 20792379.11 | O12: prosentit syötetään
A13: Kotikuntakorv.+elatustuen pal., netto | D13: =VLOOKUP($A$4,pohjatiedot!$B$3:$CQ$298,92) -> 0 | E13: =D13 -> 0 | F13: =E13 -> 0 | G13: 0 | H13: 0 | I13: 0 | J13: 0 | K13: 0 | L13: 0 | M13: 0 | O13: alla olevaan taulukkoon
A14: Toimintakate | B14: =B11-B12 -> -28305220 | C14: =C11-C12 -> -28445016 | D14: =D11-D12+D13 -> -27846900.35 | E14: =E11-E12+E13 -> -28176488.19 | F14: -28799471.92 | G14: -11478674.01 | H14: -11777119.53 | I14: -12083324.64 | J14: -12397491.08 | K14: -12719825.85 | L14: -13050541.32 | M14: -13389855.39 | O14: pl. kotikuntakorv.+elatustuki
A15: Kunnallisverot | B15: =VLOOKUP($A$4,pohjatiedot!$B$3:$CC$298,9) -> 18443219 | C15: =VLOOKUP($A$4,pohjatiedot!$B$3:$CC$298,47) -> 18807344 | D15: =(C15+D10)*(1+D71/100) -> 18760368.19 | E15: =(D15+E10)*(1+E71/100) -> 19173096.29 | F15: =(E15+F10)*(1+F71/100) -> 19767462.28 | G15: =F15*(1+G71/100) -> 9132567.571 | H15: =(G15+H10)*(1+H71/100) -> 8849457.977 | I15: 8575124.779 | J15: 8309295.911 | K15: 8051707.738 | L15: 7802104.798 | M15: 7560239.549
A16: Yhteisöverot | B16: =VLOOKUP($A$4,pohjatiedot!$B$3:$CC$298,10) -> 1638497 | C16: =VLOOKUP($A$4,pohjatiedot!$B$3:$CC$298,48) -> 1539341 | D16: =C16*(1+D72/100) -> 1898007.453 | E16: =D16*(1+E72/100) -> 1930273.58 | F16: 1984321.24 | G16: 1623174.774 | H16: 1485204.918 | I16: 1358962.5 | J16: 1243450.688 | K16: 1137757.379 | L16: 1041048.002 | M16: 952558.922
A17: Kiinteistöverot | B17: =VLOOKUP($A$4,pohjatiedot!$B$3:$CC$298,11) -> 1581155 | C17: =VLOOKUP($A$4,pohjatiedot!$B$3:$CC$298,49) -> 1640918 | D17: =C17*(1+D73/100) -> 1721322.982 | E17: 1779847.963 | F17: 1836803.098 | G17: 1860681.538 | H17: 1881149.035 | I17: 1901841.675 | J17: 1922761.933 | K17: 1943912.314 | L17: 1965295.35 | M17: 1986913.599
A18: Verotulot | B18: =VLOOKUP($A$4,pohjatiedot!$B$3:$CC$298,12) -> 21662871 | C18: =VLOOKUP($A$4,pohjatiedot!$B$3:$CC$298,50) -> 21987603 | D18: =SUM(D15:D17) -> 22379698.63 | E18: 22883217.83 | F18: 23588586.61 | G18: 12616423.88 | H18: 12215811.93 | I18: 11835928.95 | J18: 11475508.53 | K18: 11133377.43 | L18: 10808448.15 | M18: 10499712.07
A19: Valtionosuudet | B19: =VLOOKUP($A$4,pohjatiedot!$B$3:$CC$298,13) -> 8196322 | C19: =VLOOKUP($A$4,pohjatiedot!$B$3:$CC$298,51) -> 8792091 | D19: =VLOOKUP($A$4,pohjatiedot!$B$3:$CQ$298,88) -> 8501912.987 | E19: =VLOOKUP($A$4,pohjatiedot!$B$3:$CQ$298,89) -> 8201794.861 | F19: =E19*(1+F74/100) -> 7881924.861 | G19: =F19*(1+G74/100) -> 2309403.984 | H19: 2380995.508 | I19: 2454806.369 | J19: 2530905.366 | K19: 2609363.432 | L19: 2690253.699 | M19: 2773651.563
F20: Kuntatalousohjelma-->
A21: Korkotuotot | B21: =VLOOKUP($A$4,pohjatiedot!$B$3:$CC$298,14) -> 250238 | C21: =VLOOKUP($A$4,pohjatiedot!$B$3:$CC$298,52) -> 245114 | D21: =C21 -> 245114 | E21: =D21 -> 245114 | F21: 245114 | G21: 245114 | H21: 245114 | I21: 245114 | J21: 245114 | K21: 245114 | L21: 245114 | M21: 245114
A22: Korkokulut | B22: =VLOOKUP($A$4,pohjatiedot!$B$3:$CC$298,15) -> 193799 | C22: =VLOOKUP($A$4,pohjatiedot!$B$3:$CC$298,53) -> 176766 | D22: =($H$77/100)*C60 -> 321778.34 | E22: 311404.1281 | F22: 303244.2198 | G22: 299314.1611 | H22: 281392.4295 | I22: 274666.5155 | J22: 278924.5991 | K22: 293978.8836 | L22: 319664.1072 | M22: 355836.1803
A23: Muut rahoitustuotot | B23: =VLOOKUP($A$4,pohjatiedot!$B$3:$CC$298,16) -> 558438 | C23: =VLOOKUP($A$4,pohjatiedot!$B$3:$CC$298,54) -> 334540 | D23: =C23 -> 334540 | E23: =D23 -> 334540 | F23: 334540 | G23: 334540 | H23: 334540 | I23: 334540 | J23: 334540 | K23: 334540 | L23: 334540 | M23: 334540
A24: Muut rahoituskulut | B24: =VLOOKUP($A$4,pohjatiedot!$B$3:$CC$298,17) -> 75630 | C24: =VLOOKUP($A$4,pohjatiedot!$B$3:$CC$298,55) -> 42405 | D24: =C24 -> 42405 | E24: =D24 -> 42405 | F24: 42405 | G24: 42405 | H24: 42405 | I24: 42405 | J24: 42405 | K24: 42405 | L24: 42405 | M24: 42405
A25: VUOSIKATE | B25: =VLOOKUP($A$4,pohjatiedot!$B$3:$CC$298,18) -> 1894704 | C25: =VLOOKUP($A$4,pohjatiedot!$B$3:$CC$298,56) -> 2695145 | D25: =D14+D18+D19+D21-D22+D23-D24 -> 3250181.922 | E25: =E14+E18+E19+E21-E22+E23-E24 -> 3134369.376 | F25: 2905044.33 | G25: 3685088.7 | H25: 3075544.477 | I25: 2469993.168 | J25: 1867247.219 | K25: 1266185.132 | L25: 665745.4212 | M25: 64921.05836
A26: €/asukas | B26: =1000*B25/B7 -> 347.1218735 | C26: =1000*C25/C7 -> 492.3463893 | D26: =1000*D25/D7 -> 592.8521217 | E26: =1000*E25/E7 -> 569.5476511 | F26: 525.8890658 | G26: 664.6243321 | H26: 552.6709997 | I26: 442.2713702 | J26: 333.1817623 | K26: 225.1693515 | L26: 118.3914271 | M26: 11.54509893
A27: Poistot ja arvonalent. | B27: =VLOOKUP($A$4,pohjatiedot!$B$3:$CC$298,20) -> 2081911 | C27: =VLOOKUP($A$4,pohjatiedot!$B$3:$CC$298,58) -> 2114293 | D27: =C27*$O$27 -> 2147178.669 | E27: =D27*$O$27 -> 2180575.841 | F27: 2214492.472 | G27: 2248936.641 | H27: 2283916.555 | I27: 2319440.545 | J27: 2355517.074 | K27: 2392154.737 | L27: 2429362.262 | M27: 2467148.512 | O27: =C27/B27 -> 1.015553979 | P27: kasvuoletus 06/16
A28: Satunnaiset tuotot | B28: =VLOOKUP($A$4,pohjatiedot!$B$3:$CC$298,21) -> 346559 | C28: =VLOOKUP($A$4,pohjatiedot!$B$3:$CC$298,59) -> 334182 | D28: =C28 -> 334182 | E28: =D28 -> 334182 | F28: 334182 | G28: 334182 | H28: 334182 | I28: 334182 | J28: 334182 | K28: 334182 | L28: 334182 | M28: 334182
A29: Satunnaiset kulut | B29: =VLOOKUP($A$4,pohjatiedot!$B$3:$CC$298,22) -> 15730 | C29: =VLOOKUP($A$4,pohjatiedot!$B$3:$CC$298,60) -> 21859 | D29: =C29 -> 21859 | E29: =D29 -> 21859 | F29: 21859 | G29: 21859 | H29: 21859 | I29: 21859 | J29: 21859 | K29: 21859 | L29: 21859 | M29: 21859
A30: Tilikauden tulos | B30: =VLOOKUP($A$4,pohjatiedot!$B$3:$CC$298,23) -> 143622 | C30: =VLOOKUP($A$4,pohjatiedot!$B$3:$CC$298,61) -> 893175 | D30: =D25-D27+D28-D29 -> 1415326.254 | E30: =E25-E27+E28-E29 -> 1266116.535 | F30: 1002874.859 | G30: 1748475.058 | H30: 1103950.922 | I30: 462875.6232 | J30: -175946.8554 | K30: -813646.6053 | L30: -1451293.841 | M30: -2089904.453
A31: Poistoeron lisäys(-) tai väh.(+) | B31: =VLOOKUP($A$4,pohjatiedot!$B$3:$CC$298,24) -> -16481 | C31: =VLOOKUP($A$4,pohjatiedot!$B$3:$CC$298,62) -> -9011 | D31: =C31 -> -9011 | E31: -9011 | F31: -9011 | G31: -9011 | H31: -9011 | I31: -9011 | J31: -9011 | K31: -9011 | L31: -9011 | M31: -9011
A32: Varausten lisäys(-) tai väh.(+) | B32: =VLOOKUP($A$4,pohjatiedot!$B$3:$CC$298,25) -> -15415 | C32: =VLOOKUP($A$4,pohjatiedot!$B$3:$CC$298,63) -> -27985 | D32: =C32 -> -27985 | E32: -27985 | F32: -27985 | G32: -27985 | H32: -27985 | I32: -27985 | J32: -27985 | K32: -27985 | L32: -27985 | M32: -27985
A33: Rahastojen lisäys(-) tai väh.(+) | B33: =VLOOKUP($A$4,pohjatiedot!$B$3:$CC$298,26) -> 52925 | C33: =VLOOKUP($A$4,pohjatiedot!$B$3:$CC$298,64) -> 10638 | D33: =C33 -> 10638 | E33: 10638 | F33: 10638 | G33: 10638 | H33: 10638 | I33: 10638 | J33: 10638 | K33: 10638 | L33: 10638 | M33: 10638
A34: Tilikauden yli-/alijäämä | B34: =VLOOKUP($A$4,pohjatiedot!$B$3:$CC$298,27) -> 164651 | C34: =VLOOKUP($A$4,pohjatiedot!$B$3:$CC$298,65) -> 866817 | D34: =D30+D31+D32+D33 -> 1388968.254 | E34: 1239758.535 | F34: 976516.8587 | G34: 1722117.058 | H34: 1077592.922 | I34: 436517.6232 | J34: -202304.8554 | K34: -840004.6053 | L34: -1477651.841 | M34: -2116262.453
A35: TASEESTA
A36: Kertynyt yli-/alijäämä | B36: =VLOOKUP($A$4,pohjatiedot!$B$3:$CC$298,29) -> 9422587 | C36: =VLOOKUP($A$4,pohjatiedot!$B$3:$CC$298,67) -> 10310344 | D36: =C36+D34 -> 11699312.25 | E36: 12939070.79 | F36: 13915587.65 | G36: 15637704.71 | H36: 16715297.63 | I36: 17151815.25 | J36: 16949510.4 | K36: 16109505.79 | L36: 14631853.95 | M36: 12515591.5
A37: €/asukas | B37: =1000*B36/B7 -> 1726.278116 | C37: =1000*C36/C7 -> 1883.483316 | D37: 2134.022728 | E37: 2351.164299 | F37: 2519.085616 | G37: 2820.33891 | H37: 3003.715381 | I37: 3071.165107 | J37: 3024.381393 | K37: 2864.799847 | L37: 2602.024761 | M37: 2225.683709
A39: RAHOITUSLASKELMAN JA TASEEN TIETOJA (sisältäen rahoitusjäämän ja sen vajeen kattamisoletukset)
A40: Vuosikate | B40: =B25 -> 1894704 | C40: =C25 -> 2695145 | D40: =D25 -> 3250181.922 | E40: =E25 -> 3134369.376 | F40: 2905044.33 | G40: 3685088.7 | H40: 3075544.477 | I40: 2469993.168 | J40: 1867247.219 | K40: 1266185.132 | L40: 665745.4212 | M40: 64921.05836
A41: Tulorahoituksen korjauserät | C41: =VLOOKUP($A$4,pohjatiedot!$B$3:$CT$298,95) -> -635925 | D41: =C41 -> -635925 | E41: =D41 -> -635925 | F41: =E41 -> -635925 | G41: -635925 | H41: -635925 | I41: -635925 | J41: -635925 | K41: -635925 | L41: -635925 | M41: -635925
A42: Satunnaiset erät, netto | B42: =B28-B29 -> 330829 | C42: =C28-C29 -> 312323 | D42: =D28-D29 -> 312323 | E42: =E28-E29 -> 312323 | F42: 312323 | G42: 312323 | H42: 312323 | I42: 312323 | J42: 312323 | K42: 312323 | L42: 312323 | M42: 312323
A43: = 1. Tulorahoitus, netto | C43: =SUM(C40:C42) -> 2371543 | D43: =SUM(D40:D42) -> 2926579.922 | E43: 2810767.376 | F43: 2581442.33 | G43: 3361486.7 | H43: 2751942.477 | I43: 2146391.168 | J43: 1543645.219 | K43: 942583.1321 | L43: 342143.4212 | M43: -258680.9416
A44: Investointimenot | C44: =VLOOKUP($A$4,pohjatiedot!$B$3:$CU$298,96) -> -3468321 | D44: =C44 -> -3468321 | E44: =D44 -> -3468321 | F44: -3468321 | G44: -3468321 | H44: -3468321 | I44: -3468321 | J44: -3468321 | K44: -3468321 | L44: -3468321 | M44: -3468321
A45: Rahoitusosuudet investointeihin | C45: =VLOOKUP($A$4,pohjatiedot!$B$3:$CU$298,97) -> 139273 | D45: =C45 -> 139273 | E45: =D45 -> 139273 | F45: 139273 | G45: 139273 | H45: 139273 | I45: 139273 | J45: 139273 | K45: 139273 | L45: 139273 | M45: 139273
A46: Inv.hyödykkeiden luovutustulot | C46: =VLOOKUP($A$4,pohjatiedot!$B$3:$CU$298,98) -> 894629 | D46: =C46 -> 894629 | E46: =D46 -> 894629 | F46: 894629 | G46: 894629 | H46: 894629 | I46: 894629 | J46: 894629 | K46: 894629 | L46: 894629 | M46: 894629
A47: = 2. Nettoinvestoinnit | B47: =VLOOKUP($A$4,pohjatiedot!$B$3:$CC$298,32) -> -2491926 | C47: =C46+C45+C44 -> -2434419 | D47: =D46+D45+D44 -> -2434419 | E47: =E46+E45+E44 -> -2434419 | F47: -2434419 | G47: -2434419 | H47: -2434419 | I47: -2434419 | J47: -2434419 | K47: -2434419 | L47: -2434419 | M47: -2434419
A48: €/asukas | B48: =1000*B47/B7 -> -456.5367581 | C48: -444.7172248 | D48: -444.0522111 | E48: -442.3593575 | F48: -440.693562 | G48: -439.0597442 | H48: -437.4616568 | I48: -435.9015405 | J48: -434.3849087 | K48: -432.9197474 | L48: -432.9197474 | M48: -432.9197474
A49: Vuosikate-nettoinv. | B49: =B25+B47 -> -597222 | C49: 260726 | D49: 815762.9225 | E49: 699950.3761 | F49: 470625.3305 | G49: 1250669.7 | H49: 641125.477 | I49: 35574.16787 | J49: -567171.7811 | K49: -1168233.868 | L49: -1768673.579 | M49: -2369497.942
A50: €/asukas | B50: =1000*B49/B7 -> -109.4148846 | C50: 47.62916456 | D50: 148.7999106 | E50: 127.1882936 | F50: 85.19550383 | G50: 225.5645879 | H50: 115.2093429 | I50: 6.369829753 | J50: -101.2031464 | K50: -207.7503959 | L50: -314.5283203 | M50: -421.3746485
A51: = 3. Rahoitusjäämä
A52: (1. Tulorahoitus+ 2.Nettoinv.) | C52: =C43+C47 -> -62876 | D52: =D43+D47 -> 492160.9225 | E52: =E43+E47 -> 376348.3761 | F52: 147023.3305 | G52: 927067.6996 | H52: 317523.477 | I52: -288027.8321 | J52: -890773.7811 | K52: -1491835.868 | L52: -2092275.579 | M52: -2693099.942
A53: 4. Bruttorahoitustarve
A54: (= Rahoitusjäämä + antolainasaam.
A55: muutokset + lainanlyh.) | D55: =D52-D58-D56 -> -1658226.703 | E55: =E52-E58-E56 -> -1709200.425 | F55: -1887526.043 | G55: -1082918.807 | H55: -1580452.207 | I55: -2143966.554 | J55: -2773325.525 | K55: -3468476.891 | L55: -4229449.249 | M55: -5056349.068
A56: Antolainauksen muutokset | C56: =VLOOKUP($A$4,pohjatiedot!$B$3:$CV$298,97) -> 139273 | D56: =C56 -> 139273 | E56: =D56 -> 139273 | F56: 139273 | G56: 139273 | H56: 139273 | I56: 139273 | J56: 139273 | K56: 139273 | L56: 139273 | M56: 139273 | N56: Positiivinen arvo=nettolisäys.
A57: Lainamäärän muutos; | C57: =C60-B60 -> 584621 | D57: =D59-D58 -> -518710.5927 | E57: =E59-E58 -> -407995.4186 | F57: -196502.9348 | G57: -896086.5804 | H57: -336295.6977 | I57: 212904.1767 | J57: 752714.2286 | K57: 1284261.179 | L57: 1808603.654 | M57: 2326738.035
A58: Lainanlyhennykset | D58: =IF(C60>0,(C60*(1/$H$76)),IF(C60=0,0)) -> 2011114.625 | E58: =IF(D60>0,(D60*(1/$H$76)),IF(D60=0,0)) -> 1946275.801 | F58: 1895276.374 | G58: 1870713.507 | H58: 1758702.684 | I58: 1716665.722 | J58: 1743278.744 | K58: 1837368.023 | L58: 1997900.67 | M58: 2223976.127
A59: Lainanlisäystarve | D59: =-(D55+(C62-D62)) -> 1492404.032 | E59: 1538280.382 | F59: 1698773.439 | G59: 974626.9264 | H59: 1422406.987 | I59: 1929569.899 | J59: 2495992.973 | K59: 3121629.202 | L59: 3806504.324 | M59: 4550714.162
A60: Lainakanta | B60: =VLOOKUP($A$4,pohjatiedot!$B$3:$CC$298,37) -> 15504296 | C60: =VLOOKUP($A$4,pohjatiedot!$B$3:$CC$298,75) -> 16088917 | D60: =C60-D58+D59 -> 15570206.41 | E60: =D60-E58+E59 -> 15162210.99 | F60: 14965708.05 | G60: 14069621.47 | H60: 13733325.78 | I60: 13946229.95 | J60: 14698944.18 | K60: 15983205.36 | L60: 17791809.01 | M60: 20118547.05
A61: €/asukas | B61: =1000*B60/B7 -> 2840.486047 | C61: 2939.107244 | D61: 2840.096377 | E61: 2755.132091 | F61: 2709.184898 | G61: 2537.527191 | H61: 2467.85925 | I61: 2497.18028 | J61: 2622.802207 | K61: 2842.339477 | L61: 3163.968678 | M61: 3577.739209
A62: Rahavarat | B62: =VLOOKUP($A$4,pohjatiedot!$B$3:$CC$298,35) -> 4114383 | C62: =VLOOKUP($A$4,pohjatiedot!$B$3:$CC$298,73) -> 4593067 | D62: =IF(D55>0,(C62+D55),IF(C62+(D55*$H$78)<0,0,IF(C62+(D55*$H$78)>0,C62+(D55*$H$78)))) -> 4427244.33 | E62: 4256324.287 | F62: 4067571.683 | G62: 3959279.802 | H62: 3801234.582 | I62: 3586837.926 | J62: 3309505.374 | K62: 2962657.685 | L62: 2539712.76 | M62: 2034077.853
A63: €/asukas | B63: =1000*B62/B7 -> 753.7812424 | C63: 839.0568795 | D63: 807.5551636 | E63: 773.4185762 | F63: 736.3369467 | G63: 714.0760803 | H63: 683.0764868 | I63: 642.2510576 | J63: 590.5307137 | K63: 526.8579552 | L63: 451.6444402 | M63: 361.7259273
A64: Nettovelka (rahat-lainat) | B64: =B62-B60 -> -11389913 | C64: -11495850 | D64: -11142962.08 | E64: -10905886.7 | F64: -10898136.37 | G64: -10110341.67 | H64: -9932091.194 | I64: -10359392.03 | J64: -11389438.81 | K64: -13020547.68 | L64: -15252096.25 | M64: -18084469.2
A65: €/asukas | B65: =1000*B64/B7 -> -2086.704804 | C65: -2100.050365 | D65: -2032.541214 | E65: -1981.713515 | F65: -1972.847951 | G65: -1823.45111 | H65: -1784.782763 | I65: -1854.929222 | J65: -2032.271493 | K65: -2315.481522 | L65: -2712.324237 | M65: -3216.013281
A67: TULOSLASKELMAN ERIEN KASVUPROSENTIT:
A68: Muutos ed. vuodesta, %: | C68: 11/12 | D68: SYÖTÄ HALUAMASI KASVUPROSENTIT! | J68: oletuksena samat arvot kuin v. 2021 > | O68: Syötä muutos-
A69: Toimintatuotot | C69: =((C11/B11)-1)*100 -> 0.5208273015 | D69: -3.9 | E69: 0.8 | F69: 1.7 | G69: -20.2 | H69: 2.6 | I69: =H69 -> 2.6 | J69: =I69 -> 2.6 | K69: 2.6 | L69: 2.6 | M69: 2.6 | O69: prosentit
A70: Toimintakulut | C70: =((C12/B12)-1)*100 -> 0.4998414637 | D70: -2.5 | E70: 1.1 | F70: 2.1 | G70: -51.5 | H70: 2.6 | I70: 2.6 | J70: 2.6 | K70: 2.6 | L70: 2.6 | M70: 2.6 | O70: Vuosien 2017 - 2021
A71: Kunnallisverot | C71: =((C15/B15)-1)*100 -> 1.974302859 | D71: -0.4 | E71: 2.2 | F71: 3.1 | G71: -53.8 | H71: -3.1 | I71: -3.1 | J71: -3.1 | K71: -3.1 | L71: -3.1 | M71: -3.1 | O71: pohjana KTO:n huhti/2017
A72: Yhteisöverot | C72: =((C16/B16)-1)*100 -> -6.051643671 | D72: 23.3 | E72: 1.7 | F72: 2.8 | G72: -18.2 | H72: -8.5 | I72: -8.5 | J72: -8.5 | K72: -8.5 | L72: -8.5 | M72: -8.5 | O72: arvioluvut koko maan
A73: Kiinteistöverot | C73: =((C17/B17)-1)*100 -> 3.779705342 | D73: 4.9 | E73: 3.4 | F73: 3.2 | G73: 1.3 | H73: 1.1 | I73: 1.1 | J73: 1.1 | K73: 1.1 | L73: 1.1 | M73: 1.1 | O73: kehityksestä
A74: Valtionosuudet (pl. hark.var.) | C74: =((C19/B19)-1)*100 -> 7.268735904 | D74: -0.7 | E74: -2.5 | F74: -3.9 | G74: -70.7 | H74: 3.1 | I74: 3.1 | J74: 3.1 | K74: 3.1 | L74: 3.1 | M74: 3.1 | O74: V. 2017 lopulliset vossit.
A75: TAUSTAMUUTTUJAT:
A76: VALITSE KESKIMÄÄR. LAINANLYHENNYSAIKA (VUODET): | H76: 8 | I76: Esim. lainanlyhennysaika 8 vuotta, jolloin vuosilyhennys = 1/8 eli 12,5 % * lainamäärä
A77: VALITSE KESKIMÄÄR. KORKOKANTA (KORKOPROSENTTI): | H77: 2 | I77: Vaikutus korkomenoihin, ei korkotuloihin
A78: MONTAKO % RAHAVAROISTA KÄYTETÄÄN (4.) BRUTTORAHOITUSTARPEEN KATTAMISEEN ? | H78: 0.1 | I78: Syötä prosenttiosuus, joka käytetään rahavaroista.
B84: =B5 -> TP 2015 | C84: =C5 -> TP 2016 | D84: 2017 | E84: 2018 | F84: 2019 | G84: 2020 | H84: 2021 | I84: 2022 | J84: 2023 | K84: 2024 | L84: 2025 | M84: 2026
A85: Vuosikate | B85: =B26 -> 347.1218735 | C85: =C26 -> 492.3463893 | D85: 592.8521217 | E85: 569.5476511 | F85: 525.8890658 | G85: 664.6243321 | H85: 552.6709997 | I85: 442.2713702 | J85: 333.1817623 | K85: 225.1693515 | L85: 118.3914271 | M85: 11.54509893
A86: Poistot ja arvonalent. | B86: =1000*B27/B7 -> 381.4193915 | C86: =1000*C27/C7 -> 386.2369277 | D86: 391.657901 | E86: 396.2334043 | F86: 400.8811036 | G86: 405.6070654 | H86: 410.4165799 | I86: 415.3137592 | J86: 420.3060645 | K86: 425.4037718 | L86: 432.0204931 | M86: 438.7401308
A87: Nettoinvestoinnit | B87: =-1000*B47/B7 -> 456.5367581 | C87: 444.7172248 | D87: 444.0522111 | E87: 442.3593575 | F87: 440.693562 | G87: 439.0597442 | H87: 437.4616568 | I87: 435.9015405 | J87: 434.3849087 | K87: 432.9197474 | L87: 432.9197474 | M87: 432.9197474
B114: =B5 -> TP 2015 | C114: =C5 -> TP 2016 | D114: 2017 | E114: 2018 | F114: 2019 | G114: 2020 | H114: 2021 | I114: 2022 | J114: 2023 | K114: 2024 | L114: 2025 | M114: 2026
A115: Rahavarat | B115: =B63 -> 753.7812424 | C115: 839.0568795 | D115: 807.5551636 | E115: 773.4185762 | F115: 736.3369467 | G115: 714.0760803 | H115: 683.0764868 | I115: 642.2510576 | J115: 590.5307137 | K115: 526.8579552 | L115: 451.6444402 | M115: 361.7259273
A116: Lainakanta | B116: =B61 -> 2840.486047 | C116: =C61 -> 2939.107244 | D116: 2840.096377 | E116: 2755.132091 | F116: 2709.184898 | G116: 2537.527191 | H116: 2467.85925 | I116: 2497.18028 | J116: 2622.802207 | K116: 2842.339477 | L116: 3163.968678 | M116: 3577.739209
A117: Nettovelka | B117: =B116-B115 -> 2086.704804 | C117: =C116-C115 -> 2100.050365 | D117: 2032.541214 | E117: 1981.713515 | F117: 1972.847951 | G117: 1823.45111 | H117: 1784.782763 | I117: 1854.929222 | J117: 2032.271493 | K117: 2315.481522 | L117: 2712.324237 | M117: 3216.013281

Sheet pohjatiedot
C1: 2015 | D1: 41 | E1: 42 | F1: 43 | G1: 44 | H1: 45 | I1: 46 | J1: 47 | K1: 48 | L1: 49 | M1: 50 | N1: 51 | O1: 52 | P1: 53 | Q1: 54 | R1: 55 | S1: 56 | T1: 57 | U1: 58 | V1: 59 | W1: 60 | X1: 61 | Y1: 62 | Z1: 63 | AA1: 64 | AB1: 65 | AC1: 66 | AD1: 67 | AE1: 68 | AF1: 69 | AG1: 70 | AH1: 71 | AI1: 72 | AJ1: 73 | AK1: 74 | AL1: 75 | AM1: 76 | AN1: 77 | AO1: 2016 | AP1: 41 | AQ1: 42 | AR1: 43 | AS1: 44 | AT1: 45 | AU1: 46 | AV1: 47 | AW1: 48 | AX1: 49 | AY1: 50 | AZ1: 51 | BA1: 52 | BB1: 53 | BC1: 54 | BD1: 55 | BE1: 56 | BF1: 57 | BG1: 58 | BH1: 59 | BI1: 60 | BJ1: 61 | BK1: 62 | BL1: 63 | BM1: 64 | BN1: 65 | BO1: 66 | BP1: 67 | BQ1: 68 | BR1: 69 | BS1: 70 | BT1: 71 | BU1: 72 | BV1: 73 | BW1: 74 | BX1: 75 | BY1: 76 | BZ1: 77 | CA1: 78 | CB1: vero-% | CC1: vero-% | CD1: 12.47 | CG1: 2016 | CH1: 2016 | CI1: 2010 | CJ1: 85 | CK1: 2017 | CL1: 2018 | CM1: 89 | CN1: 90 | CO1: 91 | CP1: 92 | CQ1: 2013 | CR1: 2016 | CS1: 2016 | CT1: 90 | CU1: 91 | CV1: 2015
A2: Kunta nro. | B2: Kunta | C2: Asukasluku | D2: Veroprosentti | E2: vero-% yksikön tuotto | F2: -> noston vaikutus | G2: Toimintatuotot | H2: Toimintakulut | I2: Toimintakate | J2: Kunnallisverot | K2: Yhteisöverot | L2: Kiinteistöverot | M2: Verotulot | N2: Valtionavut | O2: Korkotuotot | P2: Korkokulut | Q2: Muut rahoitustuotot | R2: Muut rahoituskulut | S2: VUOSIKATE | T2: €/as | U2: Poistot ja arvonalent. | V2: Satu. tuotot | W2: Satu. kulut | X2: Tlikauden tulos | Y2: Poistoeron lisäys(-) tai väh.(+) | Z2: Varausten lisäys(-) tai väh.(+) | AA2: Rahastojen lisäys(-) tai väh.(+) | AB2: Tlikauden yli-/alijäämä | AC2: €/as | AD2: Kertynyt yli-/alijäämä | AE2: €/as | AG2: Nettoinv. | AH2: Vuosikate-nettoinv. | AI2: €/as | AJ2: Rahavarat (ent. kassavarat) | AK2: €/as | AL2: Lainakanta | AM2: €/as | AN2: Saamiset | AO2: Asukasluku | AP2: Veroprosentti | AQ2: vero-% yksikön tuotto | AR2: -> noston vaikutus | AS2: Toimintatuotot | AT2: Toimintakulut | AU2: Toimintakate | AV2: Kunnallisverot | AW2: Yhteisöverot | AX2: Kiinteistöverot | AY2: Verotulot | AZ2: Valtionavut | BA2: Korkotuotot | BB2: Korkokulut | BC2: Muut rahoitustuotot | BD2: Muut rahoituskulut | BE2: VUOSIKATE | BF2: €/as | BG2: Poistot ja arvonalent. | BH2: Satu. tuotot | BI2: Satu. kulut | BJ2: Tlikauden tulos | BK2: Poistoeron lisäys(-) tai väh.(+) | BL2: Varausten lisäys(-) tai väh.(+) | BM2: Rahastojen lisäys(-) tai väh.(+) | BN2: Tlikauden yli-/alijäämä | BO2: €/as | BP2: Kertynyt yli-/alijäämä | BQ2: €/as | BS2: Nettoinv. | BT2: Vuosikate-nettoinv. | BU2: €/as | BV2: Rahavarat | BW2: €/as | BX2: Lainakanta | BY2: €/as | BZ2: Saamiset | CC2: 2017 | CD2: 2020 | CG2: vos-hava | CH2: hava | CI2: vos-hava | CJ2: Harkvar10 | CK2: Valtionosuudet | CL2: Valtionosuudet | CP2: vos-hava 2015 | CQ2: Kotikuntakorv+elatustuen palautus, netto | CR2: Tulorah.korjauserät | CS2: Investointimenot | CT2: Rahoitusos. inv.menoihin | CU2: Inv.hyödyk. luovutustulot | CV2: antolainauksen muutokset
A3: 20 | B3: Akaa | C3: 17043 | D3: 21.25 | G3: 22841 | H3: 110377 | I3: -87536 | J3: 54123 | K3: 1775 | L3: 3194 | M3: 59092 | N3: 29881 | O3: 364 | P3: 582 | Q3: 253 | R3: 213 | S3: 1229 | U3: 4203 | V3: 0 | W3: 0 | X3: -2974 | Y3: 31 | Z3: 0 | AA3: 0 | AB3: -2943 | AD3: -8186 | AG3: -7351 | AJ3: 2002 | AL3: 59953 | AO3: 16923 | AP3: 21.25 | AS3: 22331 | AT3: 109001 | AU3: -86670 | AV3: 55165 | AW3: 1606 | AX3: 3377 | AY3: 60148 | AZ3: 31248 | BA3: 359 | BB3: 522 | BC3: 206 | BD3: 2 | BE3: 4767 | BG3: 4712 | BH3: 0 | BI3: 0 | BJ3: 55 | BK3: 29 | BL3: 0 | BM3: 0 | BN3: 84 | BP3: -8105 | BV3: 4160 | BX3: 57802 | CC3: 21.25 | CD3: =CC3-$CD$1 -> 8.78 | CI3: 27814 | CJ3: 0 | CK3: 30572.89696 | CL3: 29351.9121 | CN3: =CL3-CM3 -> 29351.9121 | CP3: =N3-CO3 -> 29881 | CQ3: -322.9622294 | CR3: -165 | CS3: -2583 | CT3: 394 | CU3: 262 | CV3: 0
A4: 5 | B4: Alajärvi | C4: 10006 | D4: 21.5 | G4: 41661 | H4: 98986 | I4: -57325 | J4: 24150 | K4: 2048 | L4: 2256 | M4: 28454 | N4: 34084 | O4: 9 | P4: 324 | Q4: 202 | R4: 3 | S4: 5024 | U4: 3095 | V4: 0 | W4: 0 | X4: 1929 | Y4: 0 | Z4: 0 | AA4: 0 | AB4: 1929 | AD4: -2000 | AG4: -1694 | AJ4: 3969 | AL4: 24115 | AO4: 9899 | AP4: 22 | AS4: 41721 | AT4: 97917 | AU4: -56196 | AV4: 25084 | AW4: 2039 | AX4: 2313 | AY4: 29436 | AZ4: 36984 | BA4: 16 | BB4: 270 | BC4: 174 | BD4: 90 | BE4: 10054 | BG4: 3035 | BH4: 0 | BI4: 0 | BJ4: 7019 | BK4: 0 | BL4: 0 | BM4: 0 | BN4: 7019 | BP4: 5020 | BV4: 4284 | BX4: 18695 | CC4: 21.75 | CD4: =CC4-$CD$1 -> 9.28 | CI4: 30121 | CJ4: 0 | CK4: 35696.98493 | CL4: 34318.3753 | CN4: =CL4-CM4 -> 34318.3753 | CP4: =N4-CO4 -> 34084 | CQ4: 4798.415523 | CR4: -145 | CS4: -5261 | CT4: 134 | CU4: 1630 | CV4: 16
A5: 9 | B5: Alavieska | C5: 2687 | D5: 21.5 | G5: 2108 | H5: 17064 | I5: -14956 | J5: 7099 | K5: 285 | L5: 408 | M5: 7792 | N5: 8552 | O5: 0 | P5: 58 | Q5: 15 | R5: 9 | S5: 1336 | U5: 795 | V5: 0 | W5: 0 | X5: 541 | Y5: 0 | Z5: 0 | AA5: 0 | AB5: 541 | AD5: -1422 | AG5: -573 | AJ5: 1238 | AL5: 11124 | AO5: 2639 | AP5: 21.5 | AS5: 2175 | AT5: 17327 | AU5: -15152 | AV5: 6892 | AW5: 271 | AX5: 522 | AY5: 7685 | AZ5: 8869 | BA5: 0 | BB5: 49 | BC5: 15 | BD5: 11 | BE5: 1357 | BG5: 811 | BH5: 681 | BI5: 0 | BJ5: 1227 | BK5: 0 | BL5: 0 | BM5: 0 | BN5: 1227 | BP5: -195 | BV5: 866 | BX5: 10399 | CC5: 21.5 | CD5: 9.03 | CI5: 7636 | CJ5: 0 | CK5: 8918.402121 | CL5: 8666.778881 | CN5: 8666.778881 | CP5: =N5-CO5 -> 8552 | CQ5: -54.9151722 | CR5: 3 | CS5: -576 | CT5: 6 | CU5: 265 | CV5: 0
A6: 10 | B6: Alavus | C6: 12044 | D6: 20.75 | G6: 15659 | H6: 86214 | I6: -70555 | J6: 29182 | K6: 2245 | L6: 2588 | M6: 34015 | N6: 37398 | O6: 274 | P6: 281 | Q6: 1312 | R6: 4 | S6: 1584 | U6: 2982 | V6: 0 | W6: 0 | X6: -1398 | Y6: 0 | Z6: 0 | AA6: 0 | AB6: -1398 | AD6: 11384 | AG6: -4678 | AJ6: 11172 | AL6: 34138 | AO6: 11907 | AP6: 21.25 | AS6: 12121 | AT6: 81749 | AU6: -69628 | AV6: 29668 | AW6: 2203 | AX6: 2611 | AY6: 34482 | AZ6: 38870 | BA6: 120 | BB6: 115 | BC6: 1013 | BD6: 75 | BE6: 4667 | BG6: 3133 | BH6: 0 | BI6: 0 | BJ6: 1534 | BK6: 0 | BL6: 0 | BM6: 0 | BN6: 1534 | BP6: 12918 | BV6: 12694 | BX6: 38719 | CC6: 21.25 | CD6: 8.78 | CI6: 24410 | CJ6: 0 | CK6: 38667.8284 | CL6: 37624.46359 | CN6: 37624.46359 | CP6: 37398 | CQ6: -117.7874408 | CR6: -262 | CS6: -5693 | CT6: 285 | CU6: 1903 | CV6: -425
A7: 16 | B7: Asikkala | C7: 8287 | D7: 20.75 | G7: 6847 | H7: 49270 | I7: -42423 | J7: 25339 | K7: 1538 | L7: 2501 | M7: 29378 | N7: 16868 | O7: 4 | P7: 82 | Q7: 111 | R7: 174 | S7: 3654 | U7: 2039 | V7: 0 | W7: 0 | X7: 1615 | Y7: 94 | Z7: 0 | AA7: 0 | AB7: 1709 | AD7: 9156 | AG7: -892 | AJ7: 654 | AL7: 17046 | AO7: 8323 | AP7: 20.75 | AS7: 6668 | AT7: 48906 | AU7: -42238 | AV7: 25836 | AW7: 1430 | AX7: 2659 | AY7: 29925 | AZ7: 17906 | BA7: 2 | BB7: 52 | BC7: 280 | BD7: 395 | BE7: 5428 | BG7: 2164 | BH7: 0 | BI7: 0 | BJ7: 3264 | BK7: 94 | BL7: -2000 | BM7: 0 | BN7: 1358 | BP7: 10514 | BV7: 322 | BX7: 15016 | CC7: 20.75 | CD7: 8.28 | CI7: 15106 | CJ7: 0 | CK7: 17874.50869 | CL7: 17540.25155 | CN7: 17540.25155 | CP7: 16868 | CQ7: 405.3013662 | CR7: -97 | CS7: -2644 | CT7: 178 | CU7: 211 | CV7: 15
A8: 18 | B8: Askola | C8: 5104 | D8: 20.25 | G8: 4397 | H8: 29519 | I8: -25122 | J8: 16391 | K8: 987 | L8: 1052 | M8: 18430 | N8: 6844 | O8: 0 | P8: 137 | Q8: 501 | R8: 13 | S8: 290 | U8: 1103 | V8: 0 | W8: 0 | X8: -813 | Y8: 0 | Z8: 0 | AA8: 0 | AB8: -813 | AD8: -569 | AG8: -2364 | AJ8: 1297 | AL8: 16221 | AO8: 5046 | AP8: 20.25 | AS8: 4436 | AT8: 29873 | AU8: -25437 | AV8: 17262 | AW8: 868 | AX8: 1044 | AY8: 19174 | AZ8: 7136 | BA8: 0 | BB8: 140 | BC8: 262 | BD8: 12 | BE8: 983 | BG8: 1213 | BH8: 0 | BI8: 0 | BJ8: -230 | BK8: 0 | BL8: 0 | BM8: 0 | BN8: -230 | BP8: -799 | BV8: 1190 | BX8: 16573 | CC8: 20.75 | CD8: 8.28 | CI8: 5973 | CJ8: 0 | CK8: 7397.785898 | CL8: 7458.108076 | CN8: 7458.108076 | CP8: 6844 | CQ8: 582.8977802 | CR8: -153 | CS8: -1534 | CT8: 0 | CU8: 244 | CV8: 0
A9: 19 | B9: Aura | C9: 3986 | D9: 21 | G9: 3226 | H9: 21799 | I9: -18573 | J9: 12633 | K9: 506 | L9: 736 | M9: 13875 | N9: 5377 | O9: 0 | P9: 64 | Q9: 25 | R9: 3 | S9: 634 | U9: 784 | V9: 0 | W9: 0 | X9: -150 | Y9: 28 | Z9: 0 | AA9: 0 | AB9: -122 | AD9: -2956 | AG9: -1550 | AJ9: 494 | AL9: 14585 | AO9: 3984 | AP9: 21.75 | AS9: 3073 | AT9: 21803 | AU9: -18730 | AV9: 13272 | AW9: 758 | AX9: 410 | AY9: 14440 | AZ9: 6032 | BA9: 0 | BB9: 34 | BC9: 9 | BD9: 2 | BE9: 1715 | BG9: 724 | BH9: 0 | BI9: 0 | BJ9: 991 | BK9: 28 | BL9: 0 | BM9: 0 | BN9: 1019 | BP9: -1937 | BV9: 369 | BX9: 13280 | CC9: 21.75 | CD9: 9.28 | CI9: 4924 | CJ9: 0 | CK9: 5986.134499 | CL9: 5584.246592 | CN9: 5584.246592 | CP9: 5377 | CQ9: -121.3737377 | CR9: -7 | CS9: -719 | CT9: 0 | CU9: 41 | CV9: 0
A10: 46 | B10: Enonkoski | C10: 1473 | D10: 21 | G10: 2147 | H10: 11278 | I10: -9131 | J10: 3801 | K10: 606 | L10: 418 | M10: 4825 | N10: 5096 | O10: 25 | P10: 4 | Q10: 119 | R10: 0 | S10: 871 | U10: 511 | V10: 48 | W10: 0 | X10: 408 | Y10: 0 | Z10: 0 | AA10: 0 | AB10: 408 | AD10: 5216 | AG10: -436 | AJ10: 2880 | AL10: 0 | AO10: 1453 | AP10: 21 | AS10: 1914 | AT10: 10626 | AU10: -8712 | AV10: 3570 | AW10: 550 | AX10: 424 | AY10: 4544 | AZ10: 5227 | BA10: 21 | BB10: 0 | BC10: 20 | BD10: 0 | BE10: 1100 | BG10: 510 | BH10: 0 | BI10: 65 | BJ10: 525 | BK10: 0 | BL10: 0 | BM10: 0 | BN10: 525 | BP10: 5742 | BV10: 2843 | BX10: 0 | CC10: 21 | CD10: 8.53 | CI10: 4469 | CJ10: 0 | CK10: 5272.493069 | CL10: 5110.453918 | CN10: 5110.453918 | CP10: 5096 | CQ10: 128.259926 | CR10: -1 | CS10: -665 | CT10: 65 | CU10: 28 | CV10: 82
A11: 47 | B11: Enontekiö | C11: 1861 | D11: 20.75 | G11: 2594 | H11: 17332 | I11: -14738 | J11: 4863 | K11: 338 | L11: 822 | M11: 6023 | N11: 8833 | O11: 0 | P11: 93 | Q11: 503 | R11: 167 | S11: 361 | U11: 484 | V11: 0 | W11: 0 | X11: -123 | Y11: 0 | Z11: 0 | AA11: 0 | AB11: -123 | AD11: 245 | AG11: -833 | AJ11: 320 | AL11: 5812 | AO11: 1872 | AP11: 21.25 | AS11: 2595 | AT11: 17380 | AU11: -14785 | AV11: 5003 | AW11: 326 | AX11: 822 | AY11: 6151 | AZ11: 8935 | BA11: 83 | BB11: 82 | BC11: 571 | BD11: 272 | BE11: 601 | BG11: 382 | BH11: 0 | BI11: 0 | BJ11: 219 | BK11: 0 | BL11: 0 | BM11: 0 | BN11: 219 | BP11: 464 | BV11: 213 | BX11: 5481 | CC11: 21.25 | CD11: 8.78 | CI11: 7672 | CJ11: 0 | CK11: 8847.677803 | CL11: 8708.023092 | CN11: 8708.023092 | CP11: 8833 | CQ11: -10.0864602 | CR11: 0 | CS11: -1267 | CT11: 1000 | CU11: 6 | CV11: 0
A12: 49 | B12: Espoo | C12: 269802 | D12: 18 | G12: 405147 | H12: 1718159 | I12: -1313012 | J12: 1161281 | K12: 136157 | L12: 96364 | M12: 1393802 | N12: 30083 | O12: 15367 | P12: 4509 | Q12: 48979 | R12: 13670 | S12: 154834 | U12: 126686 | V12: 0 | W12: 0 | X12: 28148 | Y12: -30876 | Z12: 0 | AA12: 40102 | AB12: 37374 | AD12: 397468 | AG12: -268394 | AJ12: 731394 | AL12: 615573 | AO12: 274583 | AP12: 18 | AS12: 399108 | AT12: 1735458 | AU12: -1336350 | AV12: 1226153 | AW12: 120589 | AX12: 99740 | AY12: 1446482 | AZ12: 60915 | BA12: 15402 | BB12: 7848 | BC12: 23174 | BD12: 2805 | BE12: 198970 | BG12: 138944 | BH12: 0 | BI12: 0 | BJ12: 60026 | BK12: 12328 | BL12: 0 | BM12: 71 | BN12: 72425 | BP12: 469893 | BV12: 899126 | BX12: 857204 | CC12: 18 | CD12: 5.53 | CI12: 24390 | CJ12: 0 | CK12: 35423.51401 | CL12: 29148.6603 | CN12: 29148.6603 | CP12: 30083 | CQ12: -12421.98878 | CR12: -37572 | CS12: -286430 | CT12: 30125 | CU12: 48469 | CV12: 1644
A13: 50 | B13: Eura | C13: 12128 | D13: 20.5 | G13: 11873 | H13: 77842 | I13: -65969 | J13: 40489 | K13: 2540 | L13: 2262 | M13: 45291 | N13: 24045 | O13: 22 | P13: 282 | Q13: 118 | R13: 4 | S13: 3195 | U13: 3302 | V13: 0 | W13: 0 | X13: -107 | Y13: 28 | Z13: 0 | AA13: 0 | AB13: -79 | AD13: 5717 | AG13: -6161 | AJ13: 1438 | AL13: 26631 | AO13: 12004 | AP13: 20.5 | AS13: 11379 | AT13: 75558 | AU13: -64179 | AV13: 38341 | AW13: 2183 | AX13: 3129 | AY13: 43653 | AZ13: 24386 | BA13: 35 | BB13: 285 | BC13: 53 | BD13: 8 | BE13: 3655 | BG13: 3174 | BH13: 0 | BI13: 0 | BJ13: 481 | BK13: 26 | BL13: 0 | BM13: 0 | BN13: 507 | BP13: 6223 | BV13: 1593 | BX13: 28923 | CC13: 20.5 | CD13: 8.03 | CI13: 22268 | CJ13: 0 | CK13: 23934.03429 | CL13: 22959.41518 | CN13: 22959.41518 | CP13: 24045 | CQ13: 68.71245356 | CR13: -149 | CS13: -5319 | CT13: 56 | CU13: 286 | CV13: 315
A14: 51 | B14: Eurajoki | C14: 5938 | D14: 18 | G14: 5310 | H14: 42891 | I14: -37581 | J14: 16365 | K14: 2179 | L14: 16002 | M14: 34546 | N14: 8207 | O14: 219 | P14: 27 | Q14: 2793 | R14: 1697 | S14: 6454 | U14: 3314 | V14: 0 | W14: 0 | X14: 3140 | Y14: 2 | Z14: 0 | AA14: 0 | AB14: 3142 | AD14: 69938 | AG14: -8130 | AJ14: 21612 | AL14: 3826 | AO14: 9418 | AP14: 18 | AS14: 5351 | AT14: 44449 | AU14: -39098 | AV14: 18489 | AW14: 1426 | AX14: 18126 | AY14: 38041 | AZ14: 8609 | BA14: 159 | BB14: 28 | BC14: 1124 | BD14: 396 | BE14: 8411 | BG14: 3845 | BH14: 0 | BI14: 0 | BJ14: 4566 | BK14: 2 | BL14: 0 | BM14: 0 | BN14: 4568 | BP14: 74506 | BV14: 23284 | BX14: 2565 | CC14: 18 | CD14: 5.53 | CI14: 5750 | CJ14: 0 | CK14: 13206.54984 | CL14: 11167.54928 | CN14: 11167.54928 | CP14: 8207 | CQ14: -34.22796685 | CR14: -29 | CS14: -6785 | CT14: 0 | CU14: 205 | CV14: -1250
A15: 52 | B15: Evijärvi | C15: 2576 | D15: 21.5 | G15: 1851 | H15: 18133 | I15: -16282 | J15: 7048 | K15: 1099 | L15: 730 | M15: 8877 | N15: 7848 | O15: 59 | P15: 22 | Q15: 14 | R15: 2 | S15: 492 | U15: 409 | V15: 0 | W15: 0 | X15: 83 | Y15: 0 | Z15: 0 | AA15: 0 | AB15: 83 | AD15: 4866 | AG15: -555 | AJ15: 5958 | AL15: 3675 | AO15: 2535 | AP15: 21.5 | AS15: 1780 | AT15: 18175 | AU15: -16395 | AV15: 6961 | AW15: 933 | AX15: 721 | AY15: 8615 | AZ15: 8085 | BA15: 198 | BB15: 5 | BC15: 18 | BD15: 14 | BE15: 502 | BG15: 444 | BH15: 0 | BI15: 0 | BJ15: 58 | BK15: 0 | BL15: 0 | BM15: 0 | BN15: 58 | BP15: 4924 | BV15: 5725 | BX15: 4000 | CC15: 21.5 | CD15: 9.03 | CI15: 7542 | CJ15: 0 | CK15: 8103.289926 | CL15: 8180.397992 | CN15: 8180.397992 | CP15: 7848 | CQ15: 57.281132 | CR15: 0 | CS15: -853 | CT15: 9 | CU15: 9 | CV15: 7
A16: 61 | B16: Forssa | C16: 17422 | D16: 20 | G16: 17993 | H16: 110529 | I16: -92536 | J16: 51849 | K16: 3453 | L16: 4376 | M16: 59678 | N16: 39859 | O16: 24 | P16: 499 | Q16: 178 | R16: 4 | S16: 6644 | U16: 5985 | V16: 0 | W16: 0 | X16: 659 | Y16: 113 | Z16: 0 | AA16: 0 | AB16: 772 | AD16: 8558 | AG16: -8022 | AJ16: 16917 | AL16: 44486 | AO16: 17332 | AP16: 20 | AS16: 18421 | AT16: 111586 | AU16: -93165 | AV16: 51886 | AW16: 3143 | AX16: 5379 | AY16: 60408 | AZ16: 41928 | BA16: 12 | BB16: 258 | BC16: 183 | BD16: 4 | BE16: 9104 | BG16: 6024 | BH16: 0 | BI16: 0 | BJ16: 3080 | BK16: 111 | BL16: -3000 | BM16: 0 | BN16: 191 | BP16: 8750 | BV16: 17548 | BX16: 44959 | CC16: 20.5 | CD16: 8.03 | CI16: 30500 | CJ16: 0 | CK16: 40176.39468 | CL16: 39480.90066 | CN16: 39480.90066 | CP16: 39859 | CQ16: 221.4413849 | CR16: -1668 | CS16: -7700 | CT16: 20 | CU16: 73 | CV16: 123
A17: 69 | B17: Haapajärvi | C17: 7438 | D17: 22 | G17: 5134 | H17: 49804 | I17: -44670 | J17: 20055 | K17: 1353 | L17: 1843 | M17: 23251 | N17: 23465 | O17: 8 | P17: 437 | Q17: 1767 | R17: 171 | S17: 3213 | U17: 1625 | V17: 0 | W17: 0 | X17: 1588 | Y17: 85 | Z17: 0 | AA17: 0 | AB17: 1673 | AD17: -2 | AG17: -1520 | AJ17: 14671 | AL17: 29907 | AO17: 7332 | AP17: 22 | AS17: 5222 | AT17: 51501 | AU17: -46279 | AV17: 19865 | AW17: 1382 | AX17: 1889 | AY17: 23136 | AZ17: 23805 | BA17: 5 | BB17: 395 | BC17: 1058 | BD17: 167 | BE17: 1163 | BG17: 1732 | BH17: 0 | BI17: 259 | BJ17: -828 | BK17: 85 | BL17: 0 | BM17: 0 | BN17: -743 | BP17: -746 | BV17: 13913 | BX17: 32615 | CC17: 22 | CD17: 9.53 | CI17: 21546 | CJ17: 0 | CK17: 23664.46017 | CL17: 23000.31085 | CN17: 23000.31085 | CP17: 23465 | CQ17: 66.4959228 | CR17: 119 | CS17: -4183 | CT17: 479 | CU17: 61 | CV17: 7
A18: 71 | B18: Haapavesi | C18: 7167 | D18: 21.25 | G18: 34211 | H18: 76618 | I18: -42407 | J18: 18583 | K18: 1218 | L18: 1399 | M18: 21200 | N18: 22107 | O18: 65 | P18: 295 | Q18: 912 | R18: 112 | S18: 1332 | U18: 2399 | V18: 0 | W18: 19 | X18: -1086 | Y18: 0 | Z18: 0 | AA18: 0 | AB18: -1086 | AD18: -1410 | AG18: -2906 | AJ18: 8204 | AL18: 25987 | AO18: 7098 | AP18: 22 | AS18: 34900 | AT18: 78239 | AU18: -43339 | AV18: 18139 | AW18: 1146 | AX18: 1521 | AY18: 20806 | AZ18: 22953 | BA18: 52 | BB18: 214 | BC18: 778 | BD18: 181 | BE18: 855 | BG18: 2405 | BH18: 0 | BI18: 0 | BJ18: -1550 | BK18: 0 | BL18: 0 | BM18: 0 | BN18: -1550 | BP18: -2961 | BV18: 8049 | BX18: 27774 | CC18: 22 | CD18: 9.53 | CI18: 19865 | CJ18: 0 | CK18: 24033.38526 | CL18: 23689.69425 | CN18: 23689.69425 | CP18: 22107 | CQ18: 12.2033716 | CR18: 92 | CS18: -3625 | CT18: 1991 | CU18: 40 | CV18: 14
A19: 72 | B19: Hailuoto | C19: 993 | D19: 20 | G19: 1467 | H19: 7814 | I19: -6347 | J19: 3048 | K19: 94 | L19: 291 | M19: 3433 | N19: 3397 | O19: 4 | P19: 10 | Q19: 58 | R19: 1 | S19: 533 | U19: 415 | V19: 0 | W19: 0 | X19: 118 | Y19: 0 | Z19: 124 | AA19: 0 | AB19: 242 | AD19: 2359 | AG19: -396 | AJ19: 3076 | AL19: 1961 | AO19: 994 | AP19: 20 | AS19: 1595 | AT19: 7942 | AU19: -6347 | AV19: 2916 | AW19: 93 | AX19: 326 | AY19: 3335 | AZ19: 3345 | BA19: 14 | BB19: 19 | BC19: 2 | BD19: 1 | BE19: 329 | BG19: 403 | BH19: 0 | BI19: 0 | BJ19: -74 | BK19: -388 | BL19: 922 | BM19: 0 | BN19: 460 | BP19: 2851 | BV19: 2244 | BX19: 2508 | CC19: 20 | CD19: 7.53 | CI19: 3147 | CJ19: 0 | CK19: 3476.386846 | CL19: 3281.98339 | CN19: 3281.98339 | CP19: 3397 | CQ19: 0 | CR19: -30 | CS19: -1234 | CT19: 246 | CU19: 59 | CV19: 0
A20: 74 | B20: Halsua | C20: 1225 | D20: 21.5 | G20: 890 | H20: 8383 | I20: -7493 | J20: 3114 | K20: 428 | L20: 295 | M20: 3837 | N20: 3645 | O20: 0 | P20: 49 | Q20: 1 | R20: 0 | S20: -59 | U20: 119 | V20: 0 | W20: 0 | X20: -178 | Y20: 0 | Z20: 0 | AA20: 0 | AB20: -178 | AD20: 321 | AG20: -322 | AJ20: 189 | AL20: 3708 | AO20: 1219 | AP20: 21.5 | AS20: 918 | AT20: 8466 | AU20: -7548 | AV20: 2891 | AW20: 315 | AX20: 443 | AY20: 3649 | AZ20: 3921 | BA20: 0 | BB20: 29 | BC20: 3 | BD20: 0 | BE20: -4 | BG20: 133 | BH20: 0 | BI20: 0 | BJ20: -137 | BK20: 0 | BL20: 0 | BM20: 0 | BN20: -137 | BP20: 184 | BV20: 11 | BX20: 4054 | CC20: 22 | CD20: 9.53 | CI20: 3768 | CJ20: 0 | CK20: 4156.047257 | CL20: 4173.228389 | CN20: 4173.228389 | CP20: 3645 | CQ20: 22.414356 | CR20: -28 | CS20: -311 | CT20: 0 | CU20: 41 | CV20: -10
A21: 75 | B21: Hamina | C21: 20851 | D21: 21 | G21: 30981 | H21: 138906 | I21: -107925 | J21: 72430 | K21: 4856 | L21: 5768 | M21: 83054 | N21: 34183 | O21: 528 | P21: 1193 | Q21: 4292 | R21: 32 | S21: 10768 | U21: 9510 | V21: 0 | W21: 0 | X21: 1258 | Y21: 0 | Z21: 0 | AA21: 0 | AB21: 1258 | AD21: -1104 | AG21: -10583 | AJ21: 7993 | AL21: 82199 | AO21: 20636 | AP21: 21 | AS21: 30689 | AT21: 140546 | AU21: -109857 | AV21: 71144 | AW21: 4307 | AX21: 6752 | AY21: 82203 | AZ21: 37167 | BA21: 600 | BB21: 1071 | BC21: 2181 | BD21: 44 | BE21: 11179 | BG21: 9680 | BH21: 0 | BI21: 0 | BJ21: 1499 | BK21: 0 | BL21: 0 | BM21: 0 | BN21: 1499 | BP21: 375 | BV21: 9370 | BX21: 81816 | CC21: 21 | CD21: 8.53 | CI21: 29389 | CJ21: 0 | CK21: 37429.58901 | CL21: 36034.99443 | CN21: 36034.99443 | CP21: 34183 | CQ21: -76.50766848 | CR21: -83 | CS21: -10090 | CT21: 72 | CU21: 1059 | CV21: -159
A22: 77 | B22: Hankasalmi | C22: 5240 | D22: 22 | G22: 9340 | H22: 41109 | I22: -31769 | J22: 13209 | K22: 790 | L22: 1330 | M22: 15329 | N22: 18516 | O22: 1 | P22: 104 | Q22: 266 | R22: 1 | S22: 2120 | U22: 1634 | V22: 0 | W22: 0 | X22: 486 | Y22: 22 | Z22: 0 | AA22: 0 | AB22: 508 | AD22: -2447 | AG22: -3151 | AJ22: 556 | AL22: 9185 | AO22: 5159 | AP22: 22 | AS22: 8078 | AT22: 40381 | AU22: -32303 | AV22: 13534 | AW22: 1333 | AX22: 708 | AY22: 15575 | AZ22: 19893 | BA22: 2 | BB22: 84 | BC22: 85 | BD22: 3 | BE22: 3165 | BG22: 1637 | BH22: 0 | BI22: 0 | BJ22: 1528 | BK22: 22 | BL22: 0 | BM22: 0 | BN22: 1550 | BP22: -897 | BV22: 2764 | BX22: 10417 | CC22: 22 | CD22: 9.53 | CI22: 15657 | CJ22: 0 | CK22: 19126.63806 | CL22: 18504.83797 | CN22: 18504.83797 | CP22: 18516 | CQ22: 113.7404043 | CR22: -21 | CS22: -3190 | CT22: 118 | CU22: 26 | CV22: -81
A23: 78 | B23: Hanko | C23: 8864 | D23: 21.75 | G23: 15872 | H23: 67370 | I23: -51498 | J23: 34508 | K23: 2842 | L23: 2720 | M23: 40070 | N23: 12103 | O23: 1772 | P23: 921 | Q23: 603 | R23: 17 | S23: 1881 | U23: 3744 | V23: 62 | W23: 0 | X23: -1801 | Y23: 10 | Z23: 0 | AA23: 0 | AB23: -1791 | AD23: 2169 | AG23: -2556 | AJ23: 731 | AL23: 65637 | AO23: 8663 | AP23: 21.75 | AS23: 16503 | AT23: 65739 | AU23: -49236 | AV23: 33908 | AW23: 2163 | AX23: 2721 | AY23: 38792 | AZ23: 12898 | BA23: 1767 | BB23: 936 | BC23: 841 | BD23: 13 | BE23: 4113 | BG23: 3662 | BH23: 0 | BI23: 0 | BJ23: 451 | BK23: 10 | BL23: 0 | BM23: 0 | BN23: 461 | BP23: 2760 | BV23: 605 | BX23: 65412 | CC23: 21.75 | CD23: 9.28 | CI23: 10458 | CJ23: 1100 | CK23: 12659.05069 | CL23: 12008.54227 | CN23: 12008.54227 | CP23: 12103 | CQ23: -55.6000553 | CR23: -453 | CS23: -2831 | CT23: 0 | CU23: 395 | CV23: -402
A24: 79 | B24: Harjavalta | C24: 7296 | D24: 19.75 | G24: 6204 | H24: 47925 | I24: -41721 | J24: 23439 | K24: 5237 | L24: 1801 | M24: 30477 | N24: 12673 | O24: 15 | P24: 179 | Q24: 82 | R24: 5 | S24: 1315 | U24: 2180 | V24: 0 | W24: 0 | X24: -865 | Y24: 0 | Z24: 0 | AA24: 0 | AB24: -865 | AD24: 9692 | AG24: -1721 | AJ24: 105 | AL24: 11857 | AO24: 7240 | AP24: 19.75 | AS24: 6184 | AT24: 49415 | AU24: -43231 | AV24: 23502 | AW24: 5099 | AX24: 1803 | AY24: 30404 | AZ24: 12147 | BA24: 11 | BB24: 152 | BC24: 44 | BD24: 5 | BE24: -782 | BG24: 2245 | BH24: 0 | BI24: 0 | BJ24: -3027 | BK24: 0 | BL24: 0 | BM24: 0 | BN24: -3027 | BP24: 6667 | BV24: 1450 | BX24: 15714 | CC24: 20.75 | CD24: 8.28 | CI24: 9343 | CJ24: 0 | CK24: 11773.93946 | CL24: 10945.56763 | CN24: 10945.56763 | CP24: 12673 | CQ24: -85.15836465 | CR24: -222 | CS24: -2258 | CT24: 0 | CU24: 323 | CV24: 0
A25: 81 | B25: Hartola | C25: 2982 | D25: 21.5 | G25: 3039 | H25: 20545 | I25: -17506 | J25: 7596 | K25: 1285 | L25: 1338 | M25: 10219 | N25: 8788 | O25: 12 | P25: 178 | Q25: 59 | R25: 2 | S25: 1364 | U25: 556 | V25: 0 | W25: 0 | X25: 808 | Y25: 0 | Z25: 0 | AA25: 0 | AB25: 808 | AD25: 227 | AG25: -2930 | AJ25: 1262 | AL25: 14152 | AO25: 2924 | AP25: 21.5 | AS25: 3046 | AT25: 20083 | AU25: -17037 | AV25: 7157 | AW25: 1232 | AX25: 1352 | AY25: 9741 | AZ25: 9062 | BA25: 10 | BB25: 159 | BC25: 20 | BD25: 0 | BE25: 1637 | BG25: 656 | BH25: 566 | BI25: 1132 | BJ25: 415 | BK25: 0 | BL25: 0 | BM25: 0 | BN25: 415 | BP25: 642 | BV25: 438 | BX25: 15397 | CC25: 21.5 | CD25: 9.03 | CI25: 8065 | CJ25: 450 | CK25: 9145.559993 | CL25: 8808.939876 | CN25: 8808.939876 | CP25: 8788 | CQ25: 65.997826 | CR25: -84 | CS25: -3410 | CT25: 932 | CU25: 162 | CV25: 192
A26: 82 | B26: Hattula | C26: 9747 | D26: 20 | G26: 6007 | H26: 49058 | I26: -43051 | J26: 33308 | K26: 1326 | L26: 2134 | M26: 36768 | N26: 9518 | O26: 201 | P26: 202 | Q26: 25 | R26: 136 | S26: 3119 | U26: 1551 | V26: 0 | W26: 0 | X26: 1568 | Y26: 0 | Z26: 0 | AA26: 0 | AB26: 1568 | AD26: 5039 | AG26: -7786 | AJ26: 68 | AL26: 28389 | AO26: 9682 | AP26: 20 | AS26: 6061 | AT26: 50893 | AU26: -44832 | AV26: 33290 | AW26: 1127 | AX26: 2192 | AY26: 36609 | AZ26: 9912 | BA26: 200 | BB26: 174 | BC26: 10 | BD26: 106 | BE26: 1619 | BG26: 1549 | BH26: 0 | BI26: 272 | BJ26: -202 | BK26: 0 | BL26: 0 | BM26: 0 | BN26: -202 | BP26: 4838 | BV26: 91 | BX26: 36148 | CC26: 20.5 | CD26: 8.03 | CI26: 10610 | CJ26: 0 | CK26: 9663.2136 | CL26: 8887.297705 | CN26: 8887.297705 | CP26: 9518 | CQ26: 35.40223006 | CR26: -49 | CS26: -9884 | CT26: 209 | CU26: -169 | CV26: 0
A27: 86 | B27: Hausjärvi | C27: 8729 | D27: 21 | G27: 6398 | H27: 47577 | I27: -41179 | J27: 29259 | K27: 1250 | L27: 1670 | M27: 32179 | N27: 12542 | O27: 7 | P27: 517 | Q27: 14 | R27: 2 | S27: 3043 | U27: 2386 | V27: 0 | W27: 0 | X27: 657 | Y27: 0 | Z27: 0 | AA27: 0 | AB27: 657 | AD27: 3127 | AG27: -215 | AJ27: 6379 | AL27: 29216 | AO27: 8641 | AP27: 21.5 | AS27: 6490 | AT27: 47790 | AU27: -41300 | AV27: 29738 | AW27: 1121 | AX27: 1575 | AY27: 32434 | AZ27: 13464 | BA27: 5 | BB27: 405 | BC27: 8 | BD27: 2 | BE27: 4204 | BG27: 2075 | BH27: 0 | BI27: 0 | BJ27: 2129 | BK27: 0 | BL27: 0 | BM27: 0 | BN27: 2129 | BP27: 5256 | BV27: 3316 | BX27: 24309 | CC27: 21.5 | CD27: 9.03 | CI27: 12784 | CJ27: 0 | CK27: 13534.97494 | CL27: 12708.39548 | CN27: 12708.39548 | CP27: 12542 | CQ27: -637.1903314 | CR27: -717 | CS27: -1413 | CT27: 0 | CU27: 147 | CV27: 14
A28: 111 | B28: Heinola | C28: 19575 | D28: 20.5 | G28: 19892 | H28: 127690 | I28: -107798 | J28: 61577 | K28: 3517 | L28: 5960 | M28: 71054 | N28: 37385 | O28: 107 | P28: 832 | Q28: 5311 | R28: 1863 | S28: 3187 | U28: 5487 | V28: 1195 | W28: 0 | X28: -1105 | Y28: 260 | Z28: 0 | AA28: 0 | AB28: -845 | AD28: 16976 | AG28: -7214 | AJ28: 73218 | AL28: 48212 | AO28: 19350 | AP28: 20.5 | AS28: 20645 | AT28: 129065 | AU28: -108420 | AV28: 62084 | AW28: 2993 | AX28: 6249 | AY28: 71326 | AZ28: 41022 | BA28: 60 | BB28: 555 | BC28: 4253 | BD28: 1228 | BE28: 6458 | BG28: 7175 | BH28: 0 | BI28: 0 | BJ28: -717 | BK28: 262 | BL28: 0 | BM28: 0 | BN28: -455 | BP28: 16521 | BV28: 79670 | BX28: 59925 | CC28: 20.5 | CD28: 8.03 | CI28: 29427 | CJ28: 0 | CK28: 42032.7414 | CL28: 41240.4779 | CN28: 41240.4779 | CP28: 37385 | CQ28: -182.9634071 | CR28: 34 | CS28: -11574 | CT28: 1966 | CU28: 250 | CV28: 79
A29: 90 | B29: Heinävesi | C29: 3574 | D29: 20.75 | G29: 5157 | H29: 29519 | I29: -24362 | J29: 8630 | K29: 2182 | L29: 1227 | M29: 12039 | N29: 13492 | O29: 141 | P29: 71 | Q29: 542 | R29: 0 | S29: 1524 | U29: 1677 | V29: 0 | W29: 0 | X29: -153 | Y29: 157 | Z29: 0 | AA29: 0 | AB29: 4 | AD29: 2083 | AG29: -1171 | AJ29: 4019 | AL29: 14980 | AO29: 3514 | AP29: 20.75 | AS29: 5009 | AT29: 29639 | AU29: -24630 | AV29: 8640 | AW29: 2003 | AX29: 1249 | AY29: 11892 | AZ29: 13922 | BA29: 153 | BB29: 46 | BC29: 301 | BD29: 2 | BE29: 1590 | BG29: 1655 | BH29: 0 | BI29: 0 | BJ29: -65 | BK29: 157 | BL29: 0 | BM29: 0 | BN29: 92 | BP29: 2175 | BV29: 4678 | BX29: 15528 | CC29: 20.75 | CD29: 8.28 | CI29: 11652 | CJ29: 0 | CK29: 13969.25638 | CL29: 13356.0584 | CN29: 13356.0584 | CP29: 13492 | CQ29: 51.1171841 | CR29: -29 | CS29: -1523 | CT29: 342 | CU29: 29 | CV29: -212
A30: 91 | B30: Helsinki | C30: 628208 | D30: 18.5 | G30: 1156368 | H30: 4302828 | I30: -3146460 | J30: 2480765 | K30: 372493 | L30: 214657 | M30: 3067915 | N30: 273172 | O30: 86161 | P30: 22176 | Q30: 32274 | R30: 12195 | S30: 265115 | U30: 385696 | V30: 139775 | W30: 593 | X30: 18601 | Y30: 3067 | Z30: -2116 | AA30: 9282 | AB30: 28834 | AD30: 4479253 | AG30: -418143 | AJ30: 940431 | AL30: 1581992 | AO30: 635181 | AP30: 18.5 | AS30: 1198580 | AT30: 4266066 | AU30: -3067486 | AV30: 2586063 | AW30: 397315 | AX30: 222227 | AY30: 3205605 | AZ30: 316331 | BA30: 82825 | BB30: 18006 | BC30: 50551 | BD30: 442 | BE30: 569378 | BG30: 337209 | BH30: 239529 | BI30: 1518 | BJ30: 470180 | BK30: -13908 | BL30: 16300 | BM30: -7533 | BN30: 465039 | BP30: 4944292 | BV30: 1119863 | BX30: 1371264 | CC30: 18.5 | CD30: 6.03 | CI30: 250053 | CJ30: 0 | CK30: 218305.8622 | CL30: 168536.3408 | CN30: 168536.3408 | CP30: 273172 | CQ30: -67329.56625 | CR30: -251476 | CS30: -662960 | CT30: 18806 | CU30: 247049 | CV30: 57418
A31: 97 | B31: Hirvensalmi | C31: 2290 | D31: 19.5 | G31: 3001 | H31: 16518 | I31: -13517 | J31: 5421 | K31: 872 | L31: 1146 | M31: 7439 | N31: 7056 | O31: 0 | P31: 1 | Q31: 346 | R31: 0 | S31: 1153 | U31: 816 | V31: 0 | W31: 0 | X31: 337 | Y31: 0 | Z31: 0 | AA31: 0 | AB31: 337 | AD31: 4424 | AG31: -625 | AJ31: 6254 | AL31: 700 | AO31: 2274 | AP31: 19.5 | AS31: 2975 | AT31: 16701 | AU31: -13726 | AV31: 5417 | AW31: 817 | AX31: 1154 | AY31: 7388 | AZ31: 7135 | BA31: 0 | BB31: 0 | BC31: 110 | BD31: 0 | BE31: 907 | BG31: 780 | BH31: 0 | BI31: 0 | BJ31: 127 | BK31: 0 | BL31: 0 | BM31: 0 | BN31: 127 | BP31: 4552 | BV31: 6411 | BX31: 566 | CC31: 20 | CD31: 7.53 | CI31: 6724 | CJ31: 0 | CK31: 7290.964168 | CL31: 6906.112411 | CN31: 6906.112411 | CP31: 7056 | CQ31: 13.3863515 | CR31: -23 | CS31: -712 | CT31: 0 | CU31: 29 | CV31: -23
A32: 98 | B32: Hollola | C32: 23915 | D32: 21 | G32: 96456 | H32: 200875 | I32: -104419 | J32: 75686 | K32: 3209 | L32: 4880 | M32: 83775 | N32: 27213 | O32: 3 | P32: 585 | Q32: 2401 | R32: 330 | S32: 6883 | U32: 9859 | V32: 0 | W32: 0 | X32: -2976 | Y32: 5 | Z32: 0 | AA32: 0 | AB32: -2971 | AD32: 11208 | AG32: -13625 | AJ32: 23174 | AL32: 53660 | AO32: 23791 | AP32: 21 | AS32: 85964 | AT32: 199473 | AU32: -113509 | AV32: 82861 | AW32: 2753 | AX32: 5376 | AY32: 90990 | AZ32: 35755 | BA32: 2 | BB32: 750 | BC32: 489 | BD32: 261 | BE32: 12716 | BG32: 7407 | BH32: 0 | BI32: 0 | BJ32: 5309 | BK32: 5 | BL32: 0 | BM32: 0 | BN32: 5314 | BP32: 17892 | BV32: 25693 | BX32: 62027 | CC32: 21 | CD32: 8.53 | CI32: 24606 | CJ32: 0 | CK32: 36740.50868 | CL32: 35524.82732 | CN32: 35524.82732 | CP32: 27213 | CQ32: 1389.016396 | CR32: -407 | CS32: -10150 | CT32: 112 | CU32: 618 | CV32: 136
A33: 99 | B33: Honkajoki | C33: 1793 | D33: 21.5 | G33: 7538 | H33: 17481 | I33: -9943 | J33: 4560 | K33: 951 | L33: 497 | M33: 6008 | N33: 4392 | O33: 0 | P33: 53 | Q33: 10 | R33: 2 | S33: 411 | U33: 354 | V33: 0 | W33: 0 | X33: 57 | Y33: 5 | Z33: 0 | AA33: 0 | AB33: 62 | AD33: -1547 | AG33: -135 | AJ33: 12 | AL33: 2927 | AO33: 1759 | AP33: 21.5 | AS33: 6790 | AT33: 17003 | AU33: -10213 | AV33: 4835 | AW33: 821 | AX33: 497 | AY33: 6153 | AZ33: 4423 | BA33: 0 | BB33: 43 | BC33: 9 | BD33: 2 | BE33: 327 | BG33: 370 | BH33: 0 | BI33: 0 | BJ33: -43 | BK33: 5 | BL33: 0 | BM33: 0 | BN33: -38 | BP33: -1585 | BV33: 31 | BX33: 2676 | CC33: 22 | CD33: 9.53 | CI33: 4832 | CJ33: 280 | CK33: 4371.474925 | CL33: 4448.997861 | CN33: 4448.997861 | CP33: 4392 | CQ33: 34.866776 | CR33: 3 | CS33: -158 | CT33: 14 | CU33: 30 | CV33: -1
A34: 102 | B34: Huittinen | C34: 10473 | D34: 20.25 | G34: 15770 | H34: 69031 | I34: -53261 | J34: 29159 | K34: 1789 | L34: 2049 | M34: 32997 | N34: 25202 | O34: 11 | P34: 227 | Q34: 98 | R34: 2 | S34: 4779 | U34: 3485 | V34: 0 | W34: 0 | X34: 1294 | Y34: 29 | Z34: 0 | AA34: 0 | AB34: 1323 | AD34: 8063 | AG34: -7523 | AJ34: 3331 | AL34: 20361 | AO34: 10403 | AP34: 20.5 | AS34: 12234 | AT34: 66879 | AU34: -54645 | AV34: 28813 | AW34: 1696 | AX34: 2078 | AY34: 32587 | AZ34: 26258 | BA34: 1 | BB34: 225 | BC34: 60 | BD34: 3 | BE34: 4033 | BG34: 3748 | BH34: 0 | BI34: 0 | BJ34: 285 | BK34: 27 | BL34: 0 | BM34: 0 | BN34: 312 | BP34: 8375 | BV34: 4385 | BX34: 21049 | CC34: 20.75 | CD34: 8.28 | CI34: 23195 | CJ34: 0 | CK34: 25889.59729 | CL34: 25479.76001 | CN34: 25479.76001 | CP34: 25202 | CQ34: 302.7183302 | CR34: -321 | CS34: -2902 | CT34: 91 | CU34: 407 | CV34: 0
A35: 103 | B35: Humppila | C35: 2388 | D35: 21.5 | G35: 1527 | H35: 14546 | I35: -13019 | J35: 6755 | K35: 402 | L35: 402 | M35: 7559 | N35: 6157 | O35: 18 | P35: 45 | Q35: 18 | R35: 0 | S35: 682 | U35: 424 | V35: 0 | W35: 0 | X35: 258 | Y35: 2 | Z35: 0 | AA35: 0 | AB35: 260 | AD35: -21 | AG35: -346 | AJ35: 222 | AL35: 3605 | AO35: 2345 | AP35: 21.5 | AS35: 1472 | AT35: 15109 | AU35: -13637 | AV35: 6543 | AW35: 388 | AX35: 511 | AY35: 7442 | AZ35: 6240 | BA35: 6 | BB35: 34 | BC35: 9 | BD35: 3 | BE35: 23 | BG35: 420 | BH35: 0 | BI35: 0 | BJ35: -397 | BK35: 2 | BL35: 0 | BM35: 0 | BN35: -395 | BP35: -416 | BV35: 189 | BX35: 3858 | CC35: 22 | CD35: 9.53 | CI35: 5455 | CJ35: 350 | CK35: 6054.073811 | CL35: 5549.302477 | CN35: 5549.302477 | CP35: 6157 | CQ35: 14.942904 | CR35: 11 | CS35: -650 | CT35: 33 | CU35: 142 | CV35: 3
A36: 105 | B36: Hyrynsalmi | C36: 2422 | D36: 21.75 | G36: 2171 | H36: 20030 | I36: -17859 | J36: 6711 | K36: 763 | L36: 804 | M36: 8278 | N36: 10303 | O36: 3 | P36: 43 | Q36: 11 | R36: 3 | S36: 689 | U36: 535 | V36: 0 | W36: 0 | X36: 154 | Y36: 54 | Z36: 0 | AA36: 0 | AB36: 208 | AD36: -1113 | AG36: -166 | AJ36: 1149 | AL36: 5419 | AO36: 2406 | AP36: 21.75 | AS36: 2109 | AT36: 19493 | AU36: -17384 | AV36: 6069 | AW36: 703 | AX36: 827 | AY36: 7599 | AZ36: 10106 | BA36: 3 | BB36: 28 | BC36: 8 | BD36: 3 | BE36: 301 | BG36: 482 | BH36: 0 | BI36: 0 | BJ36: -181 | BK36: 52 | BL36: 0 | BM36: 0 | BN36: -129 | BP36: -1242 | BV36: 208 | BX36: 4815 | CC36: 21.75 | CD36: 9.28 | CI36: 9997 | CJ36: 0 | CK36: 11169.25573 | CL36: 11119.87368 | CN36: 11119.87368 | CP36: 10303 | CQ36: -3.735726 | CR36: -25 | CS36: -183 | CT36: 8 | CU36: 25 | CV36: 0
A37: 106 | B37: Hyvinkää | C37: 46463 | D37: 19.75 | G37: 58597 | H37: 284673 | I37: -226076 | J37: 168042 | K37: 14262 | L37: 13149 | M37: 195453 | N37: 46981 | O37: 125 | P37: 2200 | Q37: 1178 | R37: 57 | S37: 15104 | U37: 19721 | V37: 0 | W37: 0 | X37: -4617 | Y37: 0 | Z37: 0 | AA37: 0 | AB37: -4617 | AD37: 25553 | AG37: -11185 | AJ37: 27694 | AL37: 114481 | AO37: 46596 | AP37: 19.75 | AS37: 59731 | AT37: 281798 | AU37: -222067 | AV37: 173918 | AW37: 11167 | AX37: 13417 | AY37: 198502 | AZ37: 53470 | BA37: 68 | BB37: 2078 | BC37: 915 | BD37: 49 | BE37: 28761 | BG37: 20178 | BH37: 0 | BI37: 0 | BJ37: 8583 | BK37: 0 | BL37: -6000 | BM37: -250 | BN37: 2333 | BP37: 27885 | BV37: 44741 | BX37: 113497 | CC37: 19.75 | CD37: 7.28 | CI37: 45178 | CJ37: 0 | CK37: 51698.33229 | CL37: 50209.98313 | CN37: 50209.98313 | CP37: 46981 | CQ37: 53.93143102 | CR37: -3860 | CS37: -19620 | CT37: 1222 | CU37: 4535 | CV37: 0
A38: 108 | B38: Hämeenkyrö | C38: 10667 | D38: 21 | G38: 10928 | H38: 65515 | I38: -54587 | J38: 32309 | K38: 1208 | L38: 2250 | M38: 35767 | N38: 21185 | O38: 184 | P38: 323 | Q38: 368 | R38: 188 | S38: 2388 | U38: 3629 | V38: 0 | W38: 0 | X38: -1241 | Y38: 77 | Z38: 0 | AA38: 0 | AB38: -1164 | AD38: 2536 | AG38: -19469 | AJ38: 6934 | AL38: 38638 | AO38: 10681 | AP38: 21 | AS38: 11662 | AT38: 66736 | AU38: -55074 | AV38: 32559 | AW38: 1264 | AX38: 2302 | AY38: 36125 | AZ38: 22307 | BA38: 93 | BB38: 275 | BC38: 315 | BD38: 188 | BE38: 3303 | BG38: 6022 | BH38: 0 | BI38: 0 | BJ38: -2719 | BK38: 77 | BL38: 0 | BM38: 0 | BN38: -2642 | BP38: -106 | BV38: 7157 | BX38: 44299 | CC38: 22 | CD38: 9.53 | CI38: 18952 | CJ38: 0 | CK38: 21730.6803 | CL38: 20021.97878 | CN38: 20021.97878 | CP38: 21185 | CQ38: 230.3199603 | CR38: -13 | CS38: -9582 | CT38: 519 | CU38: 94 | CV38: 62
A39: 109 | B39: Hämeenlinna | C39: 68011 | D39: 20.5 | G39: 95638 | H39: 445832 | I39: -350194 | J39: 238409 | K39: 15526 | L39: 24183 | M39: 278118 | N39: 87268 | O39: 2345 | P39: 3673 | Q39: 7080 | R39: 1472 | S39: 19472 | U39: 17467 | V39: 2000 | W39: 0 | X39: 4005 | Y39: 348 | Z39: -231 | AA39: 0 | AB39: 4122 | AD39: -1355 | AG39: -12301 | AJ39: 93828 | AL39: 199421 | AO39: 67850 | AP39: 20.5 | AS39: 91952 | AT39: 447155 | AU39: -355203 | AV39: 237193 | AW39: 13444 | AX39: 24219 | AY39: 274856 | AZ39: 91435 | BA39: 2112 | BB39: 5214 | BC39: 6139 | BD39: 402 | BE39: 13723 | BG39: 17472 | BH39: 0 | BI39: 0 | BJ39: -3749 | BK39: 236 | BL39: 31 | BM39: 0 | BN39: -3482 | BP39: -4836 | BV39: 105124 | BX39: 230609 | CC39: 20.75 | CD39: 8.28 | CI39: 87257 | CJ39: 0 | CK39: 90811.03402 | CL39: 88943.07134 | CN39: 88943.07134 | CP39: 87268 | CQ39: 312.8546001 | CR39: -7715 | CS39: -31664 | CT39: 127 | CU39: 5450 | CV39: 556
A40: 139 | B40: Ii | C40: 9663 | D40: 21.25 | G40: 6765 | H40: 61209 | I40: -54444 | J40: 27149 | K40: 1429 | L40: 3055 | M40: 31633 | N40: 26315 | O40: 0 | P40: 457 | Q40: 52 | R40: 3 | S40: 3086 | U40: 2603 | V40: 0 | W40: 0 | X40: 483 | Y40: 79 | Z40: -473 | AA40: 0 | AB40: 89 | AD40: 5548 | AG40: -6056 | AJ40: 4020 | AL40: 27587 | AO40: 9628 | AP40: 21.25 | AS40: 7088 | AT40: 62478 | AU40: -55390 | AV40: 26309 | AW40: 1318 | AX40: 3595 | AY40: 31222 | AZ40: 27663 | BA40: 5 | BB40: 380 | BC40: 31 | BD40: 3 | BE40: 3148 | BG40: 2971 | BH40: 0 | BI40: 0 | BJ40: 177 | BK40: -27 | BL40: 100 | BM40: 0 | BN40: 250 | BP40: 5796 | BV40: 2167 | BX40: 29718 | CC40: 21.25 | CD40: 8.78 | CI40: 23088 | CJ40: 0 | CK40: 27626.93765 | CL40: 26506.2257 | CN40: 26506.2257 | CP40: 26315 | CQ40: 46.1362161 | CR40: -38 | CS40: -7404 | CT40: 134 | CU40: 45 | CV40: 0
A41: 140 | B41: Iisalmi | C41: 21945 | D41: 20.5 | G41: 28348 | H41: 143578 | I41: -115230 | J41: 65900 | K41: 6100 | L41: 5806 | M41: 77806 | N41: 44894 | O41: 30 | P41: 248 | Q41: 2906 | R41: 964 | S41: 8631 | U41: 7199 | V41: 0 | W41: 0 | X41: 1432 | Y41: 68 | Z41: 0 | AA41: 499 | AB41: 1999 | AD41: 5441 | AG41: -7937 | AJ41: 18774 | AL41: 36027 | AO41: 21767 | AP41: 20.5 | AS41: 26690 | AT41: 143517 | AU41: -116827 | AV41: 64796 | AW41: 4535 | AX41: 5775 | AY41: 75106 | AZ41: 48618 | BA41: 14 | BB41: 249 | BC41: 1651 | BD41: 460 | BE41: 7853 | BG41: 6884 | BH41: 1583 | BI41: 1262 | BJ41: 1290 | BK41: -816 | BL41: 0 | BM41: 1265 | BN41: 1739 | BP41: 7180 | BV41: 19026 | BX41: 46867 | CC41: 20.5 | CD41: 8.03 | CI41: 39248 | CJ41: 0 | CK41: 51399.49819 | CL41: 51537.65814 | CN41: 51537.65814 | CP41: 44894 | CQ41: -112.6819486 | CR41: -132 | CS41: -23243 | CT41: 86 | CU41: 4357 | CV41: 127
A42: 142 | B42: Iitti | C42: 6910 | D42: 20.25 | G42: 3610 | H42: 39978 | I42: -36368 | J42: 19743 | K42: 1280 | L42: 2496 | M42: 23519 | N42: 15033 | O42: 16 | P42: 113 | Q42: 60 | R42: 12 | S42: 2117 | U42: 1810 | V42: 110 | W42: 0 | X42: 417 | Y42: 70 | Z42: 0 | AA42: 0 | AB42: 487 | AD42: 2637 | AG42: -1102 | AJ42: 2862 | AL42: 9814 | AO42: 6889 | AP42: 20.25 | AS42: 3336 | AT42: 41619 | AU42: -38283 | AV42: 19968 | AW42: 1319 | AX42: 2326 | AY42: 23613 | AZ42: 15648 | BA42: 3 | BB42: 88 | BC42: 88 | BD42: 8 | BE42: 973 | BG42: 1691 | BH42: 115 | BI42: 0 | BJ42: -603 | BK42: 70 | BL42: 0 | BM42: 0 | BN42: -533 | BP42: 2104 | BV42: 3008 | BX42: 8746 | CC42: 20.25 | CD42: 7.78 | CI42: 13157 | CJ42: 0 | CK42: 15267.94954 | CL42: 14975.53655 | CN42: 14975.53655 | CP42: 15033 | CQ42: 247.2801564 | CR42: -56 | CS42: -1060 | CT42: 10 | CU42: 141 | CV42: -6
A43: 143 | B43: Ikaalinen | C43: 7207 | D43: 21.25 | G43: 7216 | H43: 47615 | I43: -40399 | J43: 21098 | K43: 1621 | L43: 2960 | M43: 25679 | N43: 18044 | O43: 64 | P43: 81 | Q43: 129 | R43: 12 | S43: 3411 | U43: 2387 | V43: 0 | W43: 0 | X43: 1024 | Y43: 2 | Z43: 0 | AA43: 0 | AB43: 1026 | AD43: -1199 | AG43: -176 | AJ43: 633 | AL43: 20943 | AO43: 7128 | AP43: 21.25 | AS43: 7860 | AT43: 48749 | AU43: -40889 | AV43: 20666 | AW43: 1498 | AX43: 2981 | AY43: 25145 | AZ43: 18750 | BA43: 34 | BB43: 54 | BC43: 113 | BD43: 16 | BE43: 3083 | BG43: 1799 | BH43: 0 | BI43: 0 | BJ43: 1284 | BK43: 2 | BL43: 0 | BM43: 0 | BN43: 1286 | BP43: 87 | BV43: 1203 | BX43: 25986 | CC43: 21.25 | CD43: 8.78 | CI43: 14955 | CJ43: 0 | CK43: 18051.2473 | CL43: 17160.27523 | CN43: 17160.27523 | CP43: 18044 | CQ43: 144.5725962 | CR43: -681 | CS43: -7220 | CT43: 253 | CU43: 1022 | CV43: -49
A44: 145 | B44: Ilmajoki | C44: 12159 | D44: 20.25 | G44: 9622 | H44: 72246 | I44: -62624 | J44: 35628 | K44: 1301 | L44: 2114 | M44: 39043 | N44: 26558 | O44: 76 | P44: 582 | Q44: 141 | R44: 16 | S44: 2537 | U44: 3059 | V44: 0 | W44: 0 | X44: -522 | Y44: 0 | Z44: 0 | AA44: 0 | AB44: -522 | AD44: 7223 | AG44: -3284 | AJ44: 386 | AL44: 45927 | AO44: 12167 | AP44: 20.25 | AS44: 10290 | AT44: 72712 | AU44: -62422 | AV44: 35072 | AW44: 1266 | AX44: 2128 | AY44: 38466 | AZ44: 28531 | BA44: 72 | BB44: 481 | BC44: 58 | BD44: 13 | BE44: 4211 | BG44: 3010 | BH44: 0 | BI44: 0 | BJ44: 1201 | BK44: 0 | BL44: 0 | BM44: 0 | BN44: 1201 | BP44: 8423 | BV44: 622 | BX44: 44648 | CC44: 20.25 | CD44: 7.78 | CI44: 23277 | CJ44: 0 | CK44: 29029.13426 | CL44: 28140.66785 | CN44: 28140.66785 | CP44: 26558 | CQ44: -22.27737938 | CR44: -343 | CS44: -4789 | CT44: 464 | CU44: 599 | CV44: 411
A45: 146 | B45: Ilomantsi | C45: 5336 | D45: 20.75 | G45: 8105 | H45: 47070 | I45: -38965 | J45: 14038 | K45: 3155 | L45: 1298 | M45: 18491 | N45: 21931 | O45: 9 | P45: 152 | Q45: 558 | R45: 6 | S45: 1745 | U45: 1770 | V45: 0 | W45: 0 | X45: -25 | Y45: 49 | Z45: 0 | AA45: 0 | AB45: 24 | AD45: 5368 | AG45: -4571 | AJ45: 1854 | AL45: 7999 | AO45: 5237 | AP45: 20.75 | AS45: 7817 | AT45: 45862 | AU45: -38045 | AV45: 13587 | AW45: 2960 | AX45: 1321 | AY45: 17868 | AZ45: 22543 | BA45: 7 | BB45: 140 | BC45: 472 | BD45: 16 | BE45: 2689 | BG45: 1890 | BH45: 0 | BI45: 0 | BJ45: 799 | BK45: 49 | BL45: 0 | BM45: 0 | BN45: 848 | BP45: 6216 | BV45: 3506 | BX45: 10650 | CC45: 20.75 | CD45: 8.28 | CI45: 20361 | CJ45: 0 | CK45: 22145.03828 | CL45: 21120.84614 | CN45: 21120.84614 | CP45: 21931 | CQ45: 4.0470365 | CR45: -15 | CS45: -2924 | CT45: 393 | CU45: 15 | CV45: -290
A46: 153 | B46: Imatra | C46: 27835 | D46: 20 | G46: 31035 | H46: 175318 | I46: -144283 | J46: 93785 | K46: 4831 | L46: 9005 | M46: 107621 | N46: 49046 | O46: 596 | P46: 1227 | Q46: 330 | R46: 150 | S46: 11933 | U46: 8437 | V46: 0 | W46: 0 | X46: 3496 | Y46: 0 | Z46: 0 | AA46: -140 | AB46: 3356 | AD46: 53629 | AG46: -21573 | AJ46: 14247 | AL46: 60770 | AO46: 27517 | AP46: 20 | AS46: 24594 | AT46: 170334 | AU46: -145740 | AV46: 93467 | AW46: 9262 | AX46: 3959 | AY46: 106688 | AZ46: 53738 | BA46: 395 | BB46: 953 | BC46: 161 | BD46: 3 | BE46: 14286 | BG46: 9379 | BH46: 0 | BI46: 0 | BJ46: 4907 | BK46: 0 | BL46: 0 | BM46: 320 | BN46: 5227 | BP46: 58856 | BV46: 9889 | BX46: 61153 | CC46: 20 | CD46: 7.53 | CI46: 42620 | CJ46: 0 | CK46: 56050.79121 | CL46: 54521.49403 | CN46: 54521.49403 | CP46: 49046 | CQ46: -1304.306319 | CR46: -3563 | CS46: -23669 | CT46: 871 | CU46: 14639 | CV46: 0
A47: 148 | B47: Inari | C47: 6804 | D47: 19 | G47: 8426 | H47: 53885 | I47: -45459 | J47: 18850 | K47: 2363 | L47: 4068 | M47: 25281 | N47: 22731 | O47: 98 | P47: 370 | Q47: 1690 | R47: 20 | S47: 3234 | U47: 1851 | V47: 0 | W47: 0 | X47: 1383 | Y47: 0 | Z47: 0 | AA47: -136 | AB47: 1247 | AD47: 4689 | AG47: -3855 | AJ47: 6210 | AL47: 14244 | AO47: 6825 | AP47: 19 | AS47: 8614 | AT47: 55520 | AU47: -46906 | AV47: 19749 | AW47: 2161 | AX47: 4259 | AY47: 26169 | AZ47: 23792 | BA47: 82 | BB47: 338 | BC47: 807 | BD47: 16 | BE47: 3590 | BG47: 1872 | BH47: 18 | BI47: 0 | BJ47: 1736 | BK47: 0 | BL47: 0 | BM47: 49 | BN47: 1785 | BP47: 6475 | BV47: 8565 | BX47: 15030 | CC47: 19 | CD47: 6.53 | CI47: 20079 | CJ47: 0 | CK47: 23412.50284 | CL47: 23205.74407 | CN47: 23205.74407 | CP47: 22731 | CQ47: -18.8031542 | CR47: -164 | CS47: -2279 | CT47: 163 | CU47: 292 | CV47: -103
A48: 149 | B48: Inkoo | C48: 5541 | D48: 20.75 | G48: 4944 | H48: 33966 | I48: -29022 | J48: 21376 | K48: 2069 | L48: 2922 | M48: 26367 | N48: 5060 | O48: 0 | P48: 190 | Q48: 96 | R48: 49 | S48: 2262 | U48: 1440 | V48: 0 | W48: 0 | X48: 822 | Y48: 0 | Z48: -11 | AA48: 0 | AB48: 811 | AD48: 6919 | AG48: -1213 | AJ48: 1314 | AL48: 17573 | AO48: 5585 | AP48: 20.75 | AS48: 4124 | AT48: 33754 | AU48: -29630 | AV48: 21280 | AW48: 1397 | AX48: 3086 | AY48: 25763 | AZ48: 5805 | BA48: 0 | BB48: 181 | BC48: 64 | BD48: 13 | BE48: 1808 | BG48: 1550 | BH48: 0 | BI48: 0 | BJ48: 258 | BK48: 0 | BL48: -15 | BM48: 0 | BN48: 243 | BP48: 7060 | BV48: 1370 | BX48: 15899 | CC48: 20.75 | CD48: 8.28 | CI48: 5420 | CJ48: 0 | CK48: 6108.184055 | CL48: 6538.020673 | CN48: 6538.020673 | CP48: 5060 | CQ48: -2009.83304 | CR48: -42 | CS48: -690 | CT48: 25 | CU48: 195 | CV48: 0
A49: 151 | B49: Isojoki | C49: 2123 | D49: 22 | G49: 1981 | H49: 15929 | I49: -13948 | J49: 5513 | K49: 556 | L49: 401 | M49: 6470 | N49: 8423 | O49: 0 | P49: 38 | Q49: 52 | R49: 16 | S49: 933 | U49: 530 | V49: 0 | W49: 0 | X49: 403 | Y49: 2 | Z49: 0 | AA49: 0 | AB49: 405 | AD49: 1192 | AG49: -75 | AJ49: 1094 | AL49: 2138 | AO49: 2079 | AP49: 22 | AS49: 2004 | AT49: 15487 | AU49: -13483 | AV49: 5183 | AW49: 548 | AX49: 414 | AY49: 6145 | AZ49: 8448 | BA49: 1 | BB49: 30 | BC49: 36 | BD49: 12 | BE49: 1105 | BG49: 478 | BH49: 0 | BI49: 0 | BJ49: 627 | BK49: 2 | BL49: 0 | BM49: 0 | BN49: 629 | BP49: 1822 | BV49: 978 | BX49: 1862 | CC49: 22 | CD49: 9.53 | CI49: 7935 | CJ49: 0 | CK49: 8318.651956 | CL49: 7855.457305 | CN49: 7855.457305 | CP49: 8423 | CQ49: -2.5527461 | CR49: 0 | CS49: -347 | CT49: 0 | CU49: 0 | CV49: 22
A50: 152 | B50: Isokyrö | C50: 4785 | D50: 21.5 | G50: 3786 | H50: 29320 | I50: -25534 | J50: 14296 | K50: 550 | L50: 892 | M50: 15738 | N50: 12063 | O50: 7 | P50: 81 | Q50: 35 | R50: 0 | S50: 2228 | U50: 1128 | V50: 0 | W50: 0 | X50: 1100 | Y50: 0 | Z50: 0 | AA50: 0 | AB50: 1100 | AD50: 6531 | AG50: -861 | AJ50: 2857 | AL50: 4255 | AO50: 4712 | AP50: 21.5 | AS50: 3783 | AT50: 29171 | AU50: -25388 | AV50: 14008 | AW50: 524 | AX50: 906 | AY50: 15438 | AZ50: 12958 | BA50: 7 | BB50: 95 | BC50: 23 | BD50: 0 | BE50: 2943 | BG50: 1136 | BH50: 0 | BI50: 0 | BJ50: 1807 | BK50: 0 | BL50: 0 | BM50: 0 | BN50: 1807 | BP50: 8361 | BV50: 2503 | BX50: 2425 | CC50: 21.5 | CD50: 9.03 | CI50: 11136 | CJ50: 0 | CK50: 13165.28719 | CL50: 12820.45131 | CN50: 12820.45131 | CP50: 12063 | CQ50: -44.8909741 | CR50: 16 | CS50: -1145 | CT50: 60 | CU50: 28 | CV50: 0
A51: 165 | B51: Janakkala | C51: 16853 | D51: 20.5 | G51: 19799 | H51: 101202 | I51: -81403 | J51: 57247 | K51: 2207 | L51: 3091 | M51: 62545 | N51: 23531 | O51: 84 | P51: 635 | Q51: 149 | R51: 3 | S51: 4268 | U51: 5126 | V51: 0 | W51: 0 | X51: -858 | Y51: 8 | Z51: 0 | AA51: 0 | AB51: -850 | AD51: -40 | AG51: -5109 | AJ51: 11315 | AL51: 46850 | AO51: 16709 | AP51: 20.5 | AS51: 20585 | AT51: 102315 | AU51: -81730 | AV51: 57060 | AW51: 2287 | AX51: 3687 | AY51: 63034 | AZ51: 24760 | BA51: 69 | BB51: 555 | BC51: 132 | BD51: 2 | BE51: 5708 | BG51: 5006 | BH51: 0 | BI51: 0 | BJ51: 702 | BK51: 0 | BL51: 0 | BM51: 0 | BN51: 702 | BP51: 661 | BV51: 13584 | BX51: 51524 | CC51: 21 | CD51: 8.53 | CI51: 21036 | CJ51: 0 | CK51: 24137.04449 | CL51: 22442.89044 | CN51: 22442.89044 | CP51: 23531 | CQ51: -119.7424707 | CR51: -746 | CS51: -8091 | CT51: 88 | CU51: 1677 | CV51: 0
A52: 167 | B52: Joensuu | C52: 75514 | D52: 20.5 | G52: 184932 | H52: 550030 | I52: -365098 | J52: 223747 | K52: 18640 | L52: 19607 | M52: 261994 | N52: 129006 | O52: 606 | P52: 1599 | Q52: 5646 | R52: 529 | S52: 28631 | U52: 27092 | V52: 0 | W52: 0 | X52: 1539 | Y52: 1059 | Z52: 1164 | AA52: -148 | AB52: 3614 | AD52: 26243 | AG52: -38413 | AJ52: 81915 | AL52: 151624 | AO52: 75848 | AP52: 20.5 | AS52: 187279 | AT52: 565106 | AU52: -377827 | AV52: 224447 | AW52: 17132 | AX52: 20727 | AY52: 262306 | AZ52: 140768 | BA52: 462 | BB52: 1358 | BC52: 4684 | BD52: 366 | BE52: 28669 | BG52: 29609 | BH52: 0 | BI52: 0 | BJ52: -940 | BK52: 170 | BL52: 2109 | BM52: 3 | BN52: 1342 | BP52: 27585 | BV52: 83619 | BX52: 183746 | CC52: 20.5 | CD52: 8.03 | CI52: 137821 | CJ52: 0 | CK52: 139314.8093 | CL52: 138727.2427 | CN52: 138727.2427 | CP52: 129006 | CQ52: -6033.19998 | CR52: -5329 | CS52: -54098 | CT52: 849 | CU52: 6153 | CV52: -3220
A53: 169 | B53: Jokioinen | C53: 5425 | D53: 20.5 | G53: 4045 | H53: 30339 | I53: -26294 | J53: 17492 | K53: 980 | L53: 839 | M53: 19311 | N53: 9667 | O53: 28 | P53: 195 | Q53: 42 | R53: 2 | S53: 2549 | U53: 1366 | V53: 0 | W53: 0 | X53: 1183 | Y53: 0 | Z53: 0 | AA53: 0 | AB53: 1183 | AD53: 6698 | AG53: -4018 | AJ53: 1250 | AL53: 18526 | AO53: 5341 | AP53: 20.5 | AS53: 4199 | AT53: 31437 | AU53: -27238 | AV53: 16675 | AW53: 888 | AX53: 845 | AY53: 18408 | AZ53: 9842 | BA53: 3 | BB53: 180 | BC53: 30 | BD53: 3 | BE53: 862 | BG53: 1635 | BH53: 0 | BI53: 0 | BJ53: -773 | BK53: 0 | BL53: 0 | BM53: 0 | BN53: -773 | BP53: 5926 | BV53: 1165 | BX53: 17833 | CC53: 20.5 | CD53: 8.03 | CI53: 8513 | CJ53: 0 | CK53: 9739.248481 | CL53: 8903.230411 | CN53: 8903.230411 | CP53: 9667 | CQ53: -79.06041458 | CR53: -60 | CS53: -1218 | CT53: 40 | CU53: 10 | CV53: 0
A54: 171 | B54: Joroinen | C54: 5110 | D54: 20.25 | G54: 4322 | H54: 32500 | I54: -28178 | J54: 14684 | K54: 1371 | L54: 1161 | M54: 17216 | N54: 12069 | O54: 24 | P54: 232 | Q54: 31 | R54: 1 | S54: 929 | U54: 1032 | V54: 186 | W54: 0 | X54: 83 | Y54: 31 | Z54: -170 | AA54: 0 | AB54: -56 | AD54: 6237 | AG54: -1408 | AJ54: 16315 | AL54: 17023 | AO54: 5039 | AP54: 20.25 | AS54: 4193 | AT54: 33014 | AU54: -28821 | AV54: 14334 | AW54: 1309 | AX54: 1181 | AY54: 16824 | AZ54: 12692 | BA54: 56 | BB54: 226 | BC54: 29 | BD54: 10 | BE54: 544 | BG54: 771 | BH54: 215 | BI54: 0 | BJ54: -12 | BK54: 31 | BL54: 0 | BM54: 0 | BN54: 19 | BP54: 6256 | BV54: 14212 | BX54: 16172 | CC54: 20.75 | CD54: 8.28 | CI54: 11121 | CJ54: 0 | CK54: 12483.78887 | CL54: 11976.73574 | CN54: 11976.73574 | CP54: 12069 | CQ54: 55.38836416 | CR54: -27 | CS54: -1403 | CT54: 45 | CU54: 193 | CV54: 0
A55: 172 | B55: Joutsa | C55: 4688 | D55: 21 | G55: 5953 | H55: 32302 | I55: -26349 | J55: 12130 | K55: 1278 | L55: 1655 | M55: 15063 | N55: 14782 | O55: 4 | P55: 87 | Q55: 183 | R55: 12 | S55: 3502 | U55: 1268 | V55: 0 | W55: 0 | X55: 2234 | Y55: 23 | Z55: 0 | AA55: 0 | AB55: 2257 | AD55: 3014 | AG55: -306 | AJ55: 2018 | AL55: 13815 | AO55: 4673 | AP55: 21 | AS55: 5823 | AT55: 33827 | AU55: -28004 | AV55: 12259 | AW55: 1244 | AX55: 1714 | AY55: 15217 | AZ55: 15835 | BA55: 2 | BB55: 59 | BC55: 67 | BD55: 20 | BE55: 3038 | BG55: 1319 | BH55: 0 | BI55: 145 | BJ55: 1574 | BK55: 23 | BL55: 0 | BM55: 0 | BN55: 1597 | BP55: 4611 | BV55: 2384 | BX55: 11714 | CC55: 21 | CD55: 8.53 | CI55: 13247 | CJ55: 0 | CK55: 15603.05913 | CL55: 14858.86249 | CN55: 14858.86249 | CP55: 14782 | CQ55: 120.2903772 | CR55: -4 | CS55: -995 | CT55: 83 | CU55: 20 | CV55: 2
A56: 176 | B56: Juuka | C56: 5034 | D56: 20.75 | G56: 8112 | H56: 41368 | I56: -33256 | J56: 12462 | K56: 1832 | L56: 1226 | M56: 15520 | N56: 20578 | O56: 120 | P56: 61 | Q56: 709 | R56: 0 | S56: 3262 | U56: 2021 | V56: 3307 | W56: 932 | X56: 3616 | Y56: 344 | Z56: 0 | AA56: 0 | AB56: 3960 | AD56: 10106 | AG56: -6329 | AJ56: 4001 | AL56: 5000 | AO56: 4938 | AP56: 20.75 | AS56: 7167 | AT56: 40899 | AU56: -33732 | AV56: 11562 | AW56: 1689 | AX56: 1244 | AY56: 14495 | AZ56: 20656 | BA56: 100 | BB56: 45 | BC56: 360 | BD56: 0 | BE56: 1834 | BG56: 2061 | BH56: 0 | BI56: 0 | BJ56: -227 | BK56: 305 | BL56: -54 | BM56: 0 | BN56: 24 | BP56: 10131 | BV56: 4052 | BX56: 5000 | CC56: 20.75 | CD56: 8.28 | CI56: 18170 | CJ56: 0 | CK56: 20846.45409 | CL56: 19879.39408 | CN56: 19879.39408 | CP56: 20578 | CQ56: -21.1068519 | CR56: 3 | CS56: -1654 | CT56: 179 | CU56: 196 | CV56: -203
A57: 177 | B57: Juupajoki | C57: 1988 | D57: 21 | G57: 1207 | H57: 11959 | I57: -10752 | J57: 5987 | K57: 752 | L57: 541 | M57: 7280 | N57: 4709 | O57: 25 | P57: 52 | Q57: 8 | R57: -44 | S57: 1262 | U57: 475 | V57: 0 | W57: 7 | X57: 780 | Y57: 11 | Z57: 0 | AA57: 0 | AB57: 791 | AD57: 1676 | AG57: -412 | AJ57: 1047 | AL57: 3945 | AO57: 1957 | AP57: 21 | AS57: 1270 | AT57: 12108 | AU57: -10838 | AV57: 5609 | AW57: 754 | AX57: 549 | AY57: 6912 | AZ57: 4494 | BA57: 24 | BB57: 48 | BC57: 2 | BD57: -17 | BE57: 563 | BG57: 480 | BH57: 0 | BI57: 0 | BJ57: 83 | BK57: 11 | BL57: 0 | BM57: 0 | BN57: 94 | BP57: 1770 | BV57: 587 | BX57: 3559 | CC57: 21 | CD57: 8.53 | CI57: 4454 | CJ57: 0 | CK57: 4285.633396 | CL57: 4013.402246 | CN57: 4013.402246 | CP57: 4709 | CQ57: -20.57139784 | CR57: 0 | CS57: -560 | CT57: 86 | CU57: 0 | CV57: 5
A58: 178 | B58: Juva | C58: 6548 | D58: 19.75 | G58: 7169 | H58: 45254 | I58: -38085 | J58: 15887 | K58: 2448 | L58: 1492 | M58: 19827 | N58: 19937 | O58: 2 | P58: 168 | Q58: 583 | R58: 2 | S58: 1824 | U58: 1594 | V58: 0 | W58: 0 | X58: 230 | Y58: 30 | Z58: 0 | AA58: 0 | AB58: 260 | AD58: 3629 | AG58: -3359 | AJ58: 1026 | AL58: 17248 | AO58: 6421 | AP58: 19.75 | AS58: 7789 | AT58: 45110 | AU58: -37321 | AV58: 15444 | AW58: 2240 | AX58: 1534 | AY58: 19218 | AZ58: 21308 | BA58: 2 | BB58: 162 | BC58: 388 | BD58: 1 | BE58: 3432 | BG58: 1938 | BH58: 162 | BI58: 362 | BJ58: 1294 | BK58: 30 | BL58: 0 | BM58: 0 | BN58: 1324 | BP58: 4953 | BV58: 1250 | BX58: 17492 | CC58: 19.75 | CD58: 7.28 | CI58: 16771 | CJ58: 0 | CK58: 21718.61651 | CL58: 21092.80812 | CN58: 21092.80812 | CP58: 19937 | CQ58: -2.54029368 | CR58: -49 | CS58: -3326 | CT58: 45 | CU58: 578 | CV58: 0
A59: 179 | B59: Jyväskylä | C59: 137368 | D59: 20 | G59: 175245 | H59: 794652 | I59: -619407 | J59: 426989 | K59: 22523 | L59: 40956 | M59: 490468 | N59: 157402 | O59: 12640 | P59: 6125 | Q59: 10506 | R59: 104 | S59: 40814 | U59: 54036 | V59: 0 | W59: 0 | X59: -13222 | Y59: 340 | Z59: 0 | AA59: -6 | AB59: -12888 | AD59: 32044 | AG59: -90962 | AJ59: 11603 | AL59: 402282 | AO59: 138850 | AP59: 20 | AS59: 187885 | AT59: 819718 | AU59: -631833 | AV59: 439145 | AW59: 21150 | AX59: 47104 | AY59: 507399 | AZ59: 176723 | BA59: 8921 | BB59: 5776 | BC59: 3863 | BD59: 14 | BE59: 59283 | BG59: 54862 | BH59: 0 | BI59: 0 | BJ59: 4421 | BK59: 340 | BL59: 0 | BM59: -4 | BN59: 4757 | BP59: 36801 | BV59: 24342 | BX59: 393130 | CC59: 20 | CD59: 7.53 | CI59: 132908 | CJ59: 0 | CK59: 173559.7243 | CL59: 168113.8623 | CN59: 168113.8623 | CP59: 157402 | CQ59: -8879.424715 | CR59: -16375 | CS59: -43848 | CT59: 502 | CU59: 18454 | CV59: 1651
A60: 181 | B60: Jämijärvi | C60: 1948 | D60: 21.5 | G60: 957 | H60: 12177 | I60: -11220 | J60: 5198 | K60: 288 | L60: 398 | M60: 5884 | N60: 5630 | O60: 0 | P60: 44 | Q60: 12 | R60: 3 | S60: 257 | U60: 354 | V60: 0 | W60: 0 | X60: -97 | Y60: 0 | Z60: 0 | AA60: 0 | AB60: -97 | AD60: -1088 | AG60: -360 | AJ60: 52 | AL60: 4869 | AO60: 1915 | AP60: 21.5 | AS60: 700 | AT60: 12207 | AU60: -11507 | AV60: 4709 | AW60: 273 | AX60: 401 | AY60: 5383 | AZ60: 5725 | BA60: 0 | BB60: 38 | BC60: 5 | BD60: 3 | BE60: -435 | BG60: 364 | BH60: 0 | BI60: 0 | BJ60: -799 | BK60: 0 | BL60: 0 | BM60: 0 | BN60: -799 | BP60: -1887 | BV60: 165 | BX60: 5642 | CC60: 22.5 | CD60: 10.03 | CI60: 5561 | CJ60: 0 | CK60: 5862.412021 | CL60: 5470.998613 | CN60: 5470.998613 | CP60: 5630 | CQ60: -16.1258839 | CR60: 0 | CS60: -318 | CT60: 0 | CU60: 0 | CV60: 0
A61: 182 | B61: Jämsä | C61: 21542 | D61: 21 | G61: 40807 | H61: 163308 | I61: -122501 | J61: 72040 | K61: 9084 | L61: 5981 | M61: 87105 | N61: 44619 | O61: 101 | P61: 588 | Q61: 1710 | R61: 8 | S61: 9915 | U61: 8197 | V61: 0 | W61: 0 | X61: 1718 | Y61: 247 | Z61: 0 | AA61: 0 | AB61: 1965 | AD61: 4944 | AG61: -7589 | AJ61: 6496 | AL61: 34823 | AO61: 21259 | AP61: 21 | AS61: 40018 | AT61: 165512 | AU61: -125494 | AV61: 71823 | AW61: 8939 | AX61: 6179 | AY61: 86941 | AZ61: 45577 | BA61: 60 | BB61: 556 | BC61: 613 | BD61: 5 | BE61: 7136 | BG61: 8825 | BH61: 0 | BI61: 0 | BJ61: -1689 | BK61: 247 | BL61: 0 | BM61: 30 | BN61: -1412 | BP61: 3532 | BV61: 6389 | BX61: 37713 | CC61: 21 | CD61: 8.53 | CI61: 37820 | CJ61: 0 | CK61: 43828.85653 | CL61: 41385.57809 | CN61: 41385.57809 | CP61: 44619 | CQ61: -156.0039178 | CR61: -192 | CS61: -9107 | CT61: 0 | CU61: 366 | CV61: 493
A62: 186 | B62: Järvenpää | C62: 40900 | D62: 19.75 | G62: 52885 | H62: 242665 | I62: -189780 | J62: 158708 | K62: 4673 | L62: 12121 | M62: 175502 | N62: 23150 | O62: 314 | P62: 93 | Q62: 550 | R62: 257 | S62: 9385 | U62: 15149 | V62: 951 | W62: 0 | X62: -4813 | Y62: 220 | Z62: 0 | AA62: 0 | AB62: -4593 | AD62: 53494 | AG62: -12511 | AJ62: 1942 | AL62: 73500 | AO62: 41529 | AP62: 19.75 | AS62: 56600 | AT62: 249740 | AU62: -193140 | AV62: 164643 | AW62: 4222 | AX62: 12621 | AY62: 181486 | AZ62: 27160 | BA62: 318 | BB62: 10 | BC62: 590 | BD62: 309 | BE62: 16095 | BG62: 16116 | BH62: 0 | BI62: 0 | BJ62: -21 | BK62: 229 | BL62: 0 | BM62: 0 | BN62: 208 | BP62: 53702 | BV62: 1590 | BX62: 79471 | CC62: 19.75 | CD62: 7.28 | CI62: 24104 | CJ62: 0 | CK62: 25196.16988 | CL62: 24640.70711 | CN62: 24640.70711 | CP62: 23150 | CQ62: -1010.178913 | CR62: -9928 | CS62: -23779 | CT62: 938 | CU62: 11588 | CV62: 0
A63: 202 | B63: Kaarina | C63: 32590 | D63: 19.25 | G63: 32552 | H63: 184769 | I63: -152217 | J63: 118694 | K63: 4671 | L63: 6454 | M63: 129819 | N63: 28403 | O63: 818 | P63: 75 | Q63: 714 | R63: 22 | S63: 7132 | U63: 7877 | V63: 0 | W63: 0 | X63: -745 | Y63: 17 | Z63: 0 | AA63: 0 | AB63: -728 | AD63: 22610 | AG63: -11434 | AJ63: 11711 | AL63: 64114 | AO63: 32738 | AP63: 19.25 | AS63: 33402 | AT63: 188656 | AU63: -155254 | AV63: 126274 | AW63: 4086 | AX63: 6657 | AY63: 137017 | AZ63: 30547 | BA63: 602 | BB63: 60 | BC63: 483 | BD63: 32 | BE63: 13303 | BG63: 8221 | BH63: 0 | BI63: 500 | BJ63: 4582 | BK63: 17 | BL63: 0 | BM63: 0 | BN63: 4599 | BP63: 27209 | BV63: 14495 | BX63: 63657 | CC63: 19.75 | CD63: 7.28 | CI63: 28113 | CJ63: 0 | CK63: 28711.90752 | CL63: 27075.38044 | CN63: 27075.38044 | CP63: 28403 | CQ63: -2172.86884 | CR63: -2133 | CS63: -13613 | CT63: 239 | CU63: 3643 | CV63: 0
A64: 204 | B64: Kaavi | C64: 3194 | D64: 21.25 | G64: 3474 | H64: 24720 | I64: -21246 | J64: 7342 | K64: 949 | L64: 977 | M64: 9268 | N64: 12524 | O64: 10 | P64: 59 | Q64: 436 | R64: 5 | S64: 758 | U64: 709 | V64: 0 | W64: 0 | X64: 49 | Y64: 267 | Z64: 0 | AA64: 0 | AB64: 316 | AD64: 478 | AG64: -3112 | AJ64: 1257 | AL64: 5698 | AO64: 3154 | AP64: 21.25 | AS64: 3462 | AT64: 24989 | AU64: -21527 | AV64: 7268 | AW64: 839 | AX64: 1086 | AY64: 9193 | AZ64: 12913 | BA64: 10 | BB64: 61 | BC64: 208 | BD64: 4 | BE64: 732 | BG64: 853 | BH64: 0 | BI64: 0 | BJ64: -121 | BK64: 13 | BL64: 0 | BM64: 0 | BN64: -108 | BP64: 370 | BV64: 175 | BX64: 8422 | CC64: 21.25 | CD64: 8.78 | CI64: 11077 | CJ64: 500 | CK64: 12679.08768 | CL64: 12635.04043 | CN64: =CL64-CM64 -> 12635.04043 | CP64: 12524 | CQ64: -1061.008446 | CR64: -22 | CS64: -3820 | CT64: 189 | CU64: 34 | CV64: -19
A65: 205 | B65: Kajaani | C65: 37622 | D65: 21 | G65: 50124 | H65: 280901 | I65: -230777 | J65: 122195 | K65: 6127 | L65: 9801 | M65: 138123 | N65: 99516 | O65: 4585 | P65: 1241 | Q65: 2650 | R65: 113 | S65: 11724 | U65: 13351 | V65: 0 | W65: 0 | X65: -1627 | Y65: 247 | Z65: -2500 | AA65: 2915 | AB65: -965 | AD65: 73687 | AG65: -25743 | AJ65: 4419 | AL65: 90143 | AO65: 37521 | AP65: 21 | AS65: 47991 | AT65: 280198 | AU65: -232207 | AV65: 122245 | AW65: 5118 | AX65: 9770 | AY65: 137133 | AZ65: 104927 | BA65: 4666 | BB65: 1018 | BC65: 1838 | BD65: 161 | BE65: 15178 | BG65: 13624 | BH65: 0 | BI65: 0 | BJ65: 1554 | BK65: -5 | BL65: 0 | BM65: 569 | BN65: 2118 | BP65: 78455 | BV65: 1828 | BX65: 110372 | CC65: 21 | CD65: 8.53 | CI65: 69302 | CJ65: 0 | CK65: 102010.8206 | CL65: 99901.45308 | CN65: 99901.45308 | CP65: 99516 | CQ65: -179.1156093 | CR65: 115 | CS65: -34471 | CT65: 1530 | CU65: 251 | CV65: -1218
A66: 208 | B66: Kalajoki | C66: 12621 | D66: 20 | G66: 21869 | H66: 83325 | I66: -61456 | J66: 32831 | K66: 2933 | L66: 2697 | M66: 38461 | N66: 29439 | O66: 122 | P66: 210 | Q66: 631 | R66: 170 | S66: 6793 | U66: 5007 | V66: 438 | W66: 0 | X66: 2224 | Y66: 54 | Z66: 0 | AA66: 0 | AB66: 2278 | AD66: 18382 | AG66: -5010 | AJ66: 15535 | AL66: 32666 | AO66: 12586 | AP66: 20 | AS66: 21748 | AT66: 85727 | AU66: -63979 | AV66: 33344 | AW66: 2720 | AX66: 3034 | AY66: 39098 | AZ66: 30722 | BA66: 81 | BB66: 158 | BC66: 426 | BD66: 325 | BE66: 5865 | BG66: 6117 | BH66: 0 | BI66: 0 | BJ66: -252 | BK66: 54 | BL66: 0 | BM66: 0 | BN66: -198 | BP66: 18185 | BV66: 16035 | BX66: 32599 | CC66: 20 | CD66: 7.53 | CI66: 26296 | CJ66: 0 | CK66: 30269.81282 | CL66: 30150.14066 | CN66: 30150.14066 | CP66: =N66-CO66 -> 29439 | CQ66: -12.3901579 | CR66: -422 | CS66: -7524 | CT66: 1282 | CU66: 727 | CV66: 27
A67: 211 | B67: Kangasala | C67: 30607 | D67: 21 | G67: 47337 | H67: 187851 | I67: -140514 | J67: 111088 | K67: 3781 | L67: 6752 | M67: 121621 | N67: 35982 | O67: 12 | P67: 1214 | Q67: 8653 | R67: 5926 | S67: 18366 | U67: 12707 | V67: 0 | W67: 0 | X67: 5659 | Y67: 10 | Z67: 0 | AA67: 0 | AB67: 5669 | AD67: 49165 | AG67: -12995 | AJ67: 36352 | AL67: 62333 | AO67: 31190 | AP67: 21 | AS67: 45541 | AT67: 187885 | AU67: -142344 | AV67: 114489 | AW67: 3536 | AX67: 6935 | AY67: 124960 | AZ67: 38585 | BA67: 6 | BB67: 1257 | BC67: 6639 | BD67: 4948 | BE67: 21641 | BG67: 12848 | BH67: 0 | BI67: 0 | BJ67: 8793 | BK67: 21 | BL67: -6800 | BM67: 0 | BN67: 2014 | BP67: 51179 | BV67: 39596 | BX67: 61953 | CC67: 21 | CD67: 8.53 | CI67: 31664 | CJ67: 0 | CK67: 38215.2086 | CL67: 36425.9576 | CN67: 36425.9576 | CP67: 35982 | CQ67: -675.4005822 | CR67: -1216 | CS67: -24729 | CT67: 1030 | CU67: 6556 | CV67: -58
A68: 213 | B68: Kangasniemi | C68: 5628 | D68: 20 | G68: 5413 | H68: 40731 | I68: -35318 | J68: 13713 | K68: 2655 | L68: 1724 | M68: 18092 | N68: 19138 | O68: 31 | P68: 67 | Q68: 242 | R68: 1 | S68: 2001 | U68: 1978 | V68: 0 | W68: 0 | X68: 23 | Y68: 0 | Z68: 0 | AA68: 0 | AB68: 23 | AD68: 5142 | AG68: -5908 | AJ68: 552 | AL68: 17490 | AO68: 5603 | AP68: 20 | AS68: 5391 | AT68: 40600 | AU68: -35209 | AV68: 13457 | AW68: 2528 | AX68: 1745 | AY68: 17730 | AZ68: 19577 | BA68: 23 | BB68: 119 | BC68: 139 | BD68: 1 | BE68: 2140 | BG68: 1721 | BH68: 0 | BI68: 0 | BJ68: 419 | BK68: 0 | BL68: 0 | BM68: 0 | BN68: 419 | BP68: 5561 | BV68: 732 | BX68: 22330 | CC68: 20.75 | CD68: =CC68-$CD$1 -> 8.28 | CI68: 18214 | CJ68: 0 | CK68: 18647.531 | CL68: 18015.51838 | CN68: 18015.51838 | CP68: 19138 | CQ68: -98.4363801 | CR68: -4 | CS68: -6408 | CT68: 2728 | CU68: 6 | CV68: 168
A69: 214 | B69: Kankaanpää | C69: 11769 | D69: 21.5 | G69: 9514 | H69: 75078 | I69: -65564 | J69: 35602 | K69: 2595 | L69: 3148 | M69: 41345 | N69: 26144 | O69: 12 | P69: 232 | Q69: 1148 | R69: 19 | S69: 2802 | U69: 2508 | V69: 0 | W69: 0 | X69: 294 | Y69: 0 | Z69: 0 | AA69: 0 | AB69: 294 | AD69: 825 | AG69: -7702 | AJ69: 1709 | AL69: 34383 | AO69: 11637 | AP69: 21.5 | AS69: 9698 | AT69: 74025 | AU69: -64327 | AV69: 35300 | AW69: 2276 | AX69: 3162 | AY69: 40738 | AZ69: 27204 | BA69: 4 | BB69: 201 | BC69: 1013 | BD69: 3 | BE69: 4428 | BG69: 2722 | BH69: 0 | BI69: 0 | BJ69: 1706 | BK69: 0 | BL69: 0 | BM69: 0 | BN69: 1706 | BP69: 3174 | BV69: 2152 | BX69: 37721 | CC69: 21.5 | CD69: 9.03 | CI69: 23062 | CJ69: 0 | CK69: 27271.36784 | CL69: 26606.79389 | CN69: 26606.79389 | CP69: 26144 | CQ69: 212.3511183 | CR69: -47 | CS69: -8239 | CT69: 46 | CU69: 86 | CV69: 31
A70: 216 | B70: Kannonkoski | C70: 1462 | D70: 21 | G70: 5284 | H70: 14392 | I70: -9108 | J70: 3343 | K70: 577 | L70: 391 | M70: 4311 | N70: 6196 | O70: 23 | P70: 62 | Q70: 74 | R70: 6 | S70: 1428 | U70: 943 | V70: 0 | W70: 37 | X70: 448 | Y70: 1 | Z70: 0 | AA70: 0 | AB70: 449 | AD70: 10377 | AG70: -797 | AJ70: 2934 | AL70: 9082 | AO70: 1424 | AP70: 21 | AS70: 5413 | AT70: 14071 | AU70: -8658 | AV70: 3259 | AW70: 507 | AX70: 438 | AY70: 4204 | AZ70: 6414 | BA70: 15 | BB70: 44 | BC70: 24 | BD70: 6 | BE70: 1949 | BG70: 1048 | BH70: 0 | BI70: 0 | BJ70: 901 | BK70: 1 | BL70: 0 | BM70: 0 | BN70: 902 | BP70: 11279 | BV70: 3091 | BX70: 8665 | CC70: 21 | CD70: 8.53 | CI70: 5525 | CJ70: 0 | CK70: 5940.811001 | CL70: 5689.158583 | CN70: 5689.158583 | CP70: 6196 | CQ70: 17.4956501 | CR70: 0 | CS70: -1298 | CT70: 20 | CU70: 0 | CV70: 0
A71: 217 | B71: Kannus | C71: 5590 | D71: 20.5 | G71: 3058 | H71: 32727 | I71: -29669 | J71: 16114 | K71: 1147 | L71: 1307 | M71: 18568 | N71: 12824 | O71: 7 | P71: 13 | Q71: 24 | R71: 8 | S71: 1726 | U71: 1070 | V71: 0 | W71: 0 | X71: 656 | Y71: 102 | Z71: 0 | AA71: 0 | AB71: 758 | AD71: 6403 | AG71: -871 | AJ71: 1427 | AL71: 14089 | AO71: 5578 | AP71: 20.5 | AS71: 3280 | AT71: 32994 | AU71: -29714 | AV71: 14785 | AW71: 1076 | AX71: 1310 | AY71: 17171 | AZ71: 13214 | BA71: 4 | BB71: 2 | BC71: 16 | BD71: 5 | BE71: 684 | BG71: 1145 | BH71: 0 | BI71: 0 | BJ71: -461 | BK71: 102 | BL71: 0 | BM71: 10 | BN71: -349 | BP71: 6053 | BV71: 1167 | BX71: 14063 | CC71: 20.5 | CD71: 8.03 | CI71: 12475 | CJ71: 0 | CK71: 13534.92909 | CL71: 13147.49197 | CN71: 13147.49197 | CP71: 12824 | CQ71: 6.22621 | CR71: -19 | CS71: -996 | CT71: 0 | CU71: 61 | CV71: 30
A72: 218 | B72: Karijoki | C72: 1369 | D72: 22 | G72: 1109 | H72: 9154 | I72: -8045 | J72: 3538 | K72: 301 | L72: 234 | M72: 4073 | N72: 4481 | O72: 15 | P72: 35 | Q72: 10 | R72: 1 | S72: 494 | U72: 250 | V72: 0 | W72: 0 | X72: 244 | Y72: 0 | Z72: 0 | AA72: 0 | AB72: 244 | AD72: 1175 | AG72: -211 | AJ72: 1594 | AL72: 2580 | AO72: 1349 | AP72: 22 | AS72: 1110 | AT72: 9074 | AU72: -7964 | AV72: 3509 | AW72: 265 | AX72: 227 | AY72: 4001 | AZ72: 4680 | BA72: 0 | BB72: 33 | BC72: 6 | BD72: 0 | BE72: 690 | BG72: 255 | BH72: 0 | BI72: 0 | BJ72: 435 | BK72: 0 | BL72: 0 | BM72: 0 | BN72: 435 | BP72: 1609 | BV72: 1881 | BX72: 2273 | CC72: 22 | CD72: 9.53 | CI72: 4078 | CJ72: 0 | CK72: 4753.803806 | CL72: 4457.330947 | CN72: 4457.330947 | CP72: 4481 | CQ72: -475.8692303 | CR72: 0 | CS72: -215 | CT72: 0 | CU72: 0 | CV72: 33
A73: 224 | B73: Karkkila | C73: 8969 | D73: 20.75 | G73: 7018 | H73: 52106 | I73: -45088 | J73: 28524 | K73: 1262 | L73: 2070 | M73: 31856 | N73: 16514 | O73: 2 | P73: 462 | Q73: 149 | R73: 4 | S73: 2952 | U73: 2011 | V73: 8 | W73: 40 | X73: 909 | Y73: 0 | Z73: 0 | AA73: 0 | AB73: 909 | AD73: 500 | AG73: -6868 | AJ73: 2301 | AL73: 50310 | AO73: 8911 | AP73: 20.75 | AS73: 6682 | AT73: 51931 | AU73: -45249 | AV73: 28285 | AW73: 1141 | AX73: 2142 | AY73: 31568 | AZ73: 17550 | BA73: 22 | BB73: 555 | BC73: 122 | BD73: 5 | BE73: 3453 | BG73: 2465 | BH73: 0 | BI73: 21 | BJ73: 967 | BK73: 0 | BL73: 0 | BM73: 0 | BN73: 967 | BP73: 1467 | BV73: 2038 | BX73: 57945 | CC73: 20.75 | CD73: 8.28 | CI73: 12675 | CJ73: 0 | CK73: 17379.99544 | CL73: 17059.00824 | CN73: 17059.00824 | CP73: 16514 | CQ73: -66.67025668 | CR73: -195 | CS73: -10338 | CT73: 0 | CU73: 199 | CV73: 0
A74: 226 | B74: Karstula | C74: 4268 | D74: 20 | G74: 9681 | H74: 34434 | I74: -24753 | J74: 10168 | K74: 1234 | L74: 926 | M74: 12328 | N74: 15067 | O74: 45 | P74: 26 | Q74: 83 | R74: 6 | S74: 2738 | U74: 1892 | V74: 0 | W74: 0 | X74: 846 | Y74: 0 | Z74: 0 | AA74: 0 | AB74: 846 | AD74: 3299 | AG74: -1048 | AJ74: 4788 | AL74: 14600 | AO74: 4232 | AP74: 20 | AS74: 8331 | AT74: 33366 | AU74: -25035 | AV74: 9627 | AW74: 1146 | AX74: 948 | AY74: 11721 | AZ74: 15297 | BA74: 34 | BB74: 5 | BC74: 20 | BD74: 11 | BE74: 2021 | BG74: 2021 | BH74: 0 | BI74: 0 | BJ74: 0 | BK74: 0 | BL74: 0 | BM74: 0 | BN74: 0 | BP74: 3299 | BV74: 6300 | BX74: 13000 | CC74: 20 | CD74: 7.53 | CI74: 13386 | CJ74: 0 | CK74: 15430.42588 | CL74: 14519.35586 | CN74: 14519.35586 | CP74: 15067 | CQ74: 73.4070159 | CR74: 0 | CS74: -740 | CT74: 0 | CU74: 142 | CV74: 97
A75: 230 | B75: Karvia | C75: 2475 | D75: 19.75 | G75: 1489 | H75: 15993 | I75: -14504 | J75: 5635 | K75: 612 | L75: 413 | M75: 6660 | N75: 8674 | O75: 0 | P75: 0 | Q75: 415 | R75: 0 | S75: 1243 | U75: 830 | V75: 0 | W75: 0 | X75: 413 | Y75: 0 | Z75: 0 | AA75: 0 | AB75: 413 | AD75: 10058 | AG75: -763 | AJ75: 2920 | AL75: 0 | AO75: 2449 | AP75: 19.75 | AS75: 1394 | AT75: 16248 | AU75: -14854 | AV75: 5258 | AW75: 596 | AX75: 407 | AY75: 6261 | AZ75: 8303 | BA75: 0 | BB75: 0 | BC75: 401 | BD75: 0 | BE75: 111 | BG75: 813 | BH75: 0 | BI75: 0 | BJ75: -702 | BK75: 0 | BL75: 0 | BM75: 0 | BN75: -702 | BP75: 9356 | BV75: 1926 | BX75: 0 | CC75: 19.75 | CD75: 7.28 | CI75: 7817 | CJ75: 0 | CK75: 8214.908805 | CL75: 7702.593442 | CN75: 7702.593442 | CP75: 8674 | CQ75: -15.59042984 | CR75: 136 | CS75: -2247 | CT75: 0 | CU75: 855 | CV75: -11
A76: 231 | B76: Kaskinen | C76: 1285 | D76: 21 | G76: 2464 | H76: 10160 | I76: -7696 | J76: 4692 | K76: 892 | L76: 608 | M76: 6192 | N76: 1494 | O76: 0 | P76: 0 | Q76: 13 | R76: 41 | S76: -43 | U76: 902 | V76: 0 | W76: 0 | X76: -945 | Y76: 0 | Z76: 0 | AA76: 0 | AB76: -945 | AD76: 8795 | AG76: -139 | AJ76: 123 | AL76: 3104 | AO76: 1296 | AP76: 21.5 | AS76: 2572 | AT76: 10970 | AU76: -8398 | AV76: 4788 | AW76: 954 | AX76: 600 | AY76: 6342 | AZ76: 1825 | BA76: 0 | BB76: 0 | BC76: 56 | BD76: 39 | BE76: -214 | BG76: 875 | BH76: 6 | BI76: 0 | BJ76: -1083 | BK76: 0 | BL76: 0 | BM76: 0 | BN76: -1083 | BP76: 7711 | BV76: 348 | BX76: 3423 | CC76: 22 | CD76: 9.53 | CI76: 151 | CJ76: 0 | CK76: 2162.090436 | CL76: 2112.40035 | CN76: 2112.40035 | CP76: 1494 | CQ76: -310.065258 | CR76: 0 | CS76: -650 | CT76: 18 | CU76: 26 | CV76: 0
A77: 232 | B77: Kauhajoki | C77: 13875 | D77: 22 | G77: 46041 | H77: 128273 | I77: -82232 | J77: 39413 | K77: 3910 | L77: 3399 | M77: 46722 | N77: 37291 | O77: 17 | P77: 1092 | Q77: 5430 | R77: 29 | S77: 4061 | U77: 4317 | V77: 0 | W77: 0 | X77: -256 | Y77: 43 | Z77: 0 | AA77: 0 | AB77: -213 | AD77: -10393 | AG77: -3409 | AJ77: 12194 | AL77: 59133 | AO77: 13772 | AP77: 22 | AS77: 45864 | AT77: 127279 | AU77: -81415 | AV77: 38682 | AW77: 3501 | AX77: 3375 | AY77: 45558 | AZ77: 38993 | BA77: 12 | BB77: 1001 | BC77: 1294 | BD77: 32 | BE77: 3409 | BG77: 4376 | BH77: 0 | BI77: 0 | BJ77: -967 | BK77: 41 | BL77: 0 | BM77: 0 | BN77: -926 | BP77: -11318 | BV77: 10910 | BX77: 64321 | CC77: 22 | CD77: 9.53 | CI77: 32678 | CJ77: 940 | CK77: 39048.11859 | CL77: 37956.06177 | CN77: 37956.06177 | CP77: 37291 | CQ77: -78.0144113 | CR77: -76 | CS77: -8169 | CT77: 408 | CU77: 407 | CV77: -20
A78: 233 | B78: Kauhava | C78: 16784 | D78: 21.75 | G78: 12723 | H78: 108852 | I78: -96129 | J78: 48710 | K78: 3984 | L78: 3911 | M78: 56605 | N78: 45568 | O78: 108 | P78: 408 | Q78: 470 | R78: 48 | S78: 6100 | U78: 3942 | V78: 0 | W78: 0 | X78: 2158 | Y78: -299 | Z78: 387 | AA78: 93 | AB78: 2339 | AD78: 10272 | AG78: -8792 | AJ78: 14753 | AL78: 38554 | AO78: 16599 | AP78: 21.75 | AS78: 12096 | AT78: 110494 | AU78: -98398 | AV78: 47485 | AW78: 3560 | AX78: 3988 | AY78: 55033 | AZ78: 49016 | BA78: 146 | BB78: 351 | BC78: 318 | BD78: 39 | BE78: 5725 | BG78: 5345 | BH78: 0 | BI78: 0 | BJ78: 380 | BK78: -1686 | BL78: 1775 | BM78: 243 | BN78: 712 | BP78: 10984 | BV78: 15180 | BX78: 41261 | CC78: 21.75 | CD78: 9.28 | CI78: 40697 | CJ78: 0 | CK78: 49457.25477 | CL78: 48041.28488 | CN78: 48041.28488 | CP78: 45568 | CQ78: 201.729204 | CR78: -134 | CS78: -10109 | CT78: 67 | CU78: 288 | CV78: 7
A79: 235 | B79: Kauniainen | C79: 9486 | D79: 16.5 | G79: 18505 | H79: 70562 | I79: -52057 | J79: 54761 | K79: 1354 | L79: 3825 | M79: 59940 | N79: 325 | O79: 269 | P79: 2 | Q79: 133 | R79: 3 | S79: 8587 | U79: 6996 | V79: 0 | W79: 0 | X79: 1591 | Y79: 0 | Z79: 0 | AA79: 0 | AB79: 1591 | AD79: 39100 | AG79: 1689 | AJ79: 4927 | AL79: 0 | AO79: 9397 | AP79: 16.5 | AS79: 21328 | AT79: 71172 | AU79: -49844 | AV79: 57552 | AW79: 1428 | AX79: 3993 | AY79: 62973 | AZ79: 433 | BA79: 241 | BB79: 0 | BC79: 123 | BD79: 8 | BE79: 13918 | BG79: 6781 | BH79: 0 | BI79: 0 | BJ79: 7137 | BK79: 0 | BL79: 0 | BM79: 0 | BN79: 7137 | BP79: 44746 | BV79: 8974 | BX79: 0 | CC79: 17 | CD79: 4.53 | CI79: 2668 | CJ79: 0 | CK79: -904.7382838 | CL79: -2658.432058 | CN79: -2658.432058 | CP79: 325 | CQ79: 2570.460913 | CR79: -9050 | CS79: -9778 | CT79: 0 | CU79: 9477 | CV79: 359
A80: 236 | B80: Kaustinen | C80: 4305 | D80: 21.5 | G80: 7138 | H80: 29507 | I80: -22369 | J80: 12120 | K80: 1513 | L80: 895 | M80: 14528 | N80: 9090 | O80: 1 | P80: 310 | Q80: 7 | R80: 1 | S80: 946 | U80: 1113 | V80: 0 | W80: 0 | X80: -167 | Y80: 0 | Z80: 0 | AA80: 0 | AB80: -167 | AD80: -646 | AG80: -6596 | AJ80: 144 | AL80: 25749 | AO80: 4298 | AP80: 21.5 | AS80: 7166 | AT80: 29563 | AU80: -22397 | AV80: 12296 | AW80: 1411 | AX80: 922 | AY80: 14629 | AZ80: 9922 | BA80: 0 | BB80: 254 | BC80: 6 | BD80: 0 | BE80: 1906 | BG80: 1257 | BH80: 0 | BI80: 0 | BJ80: 649 | BK80: 0 | BL80: 0 | BM80: 0 | BN80: 649 | BP80: 3 | BV80: 537 | BX80: 27335 | CC80: 21.5 | CD80: 9.03 | CI80: 8799 | CJ80: 500 | CK80: 10301.17343 | CL80: 10622.52249 | CN80: 10622.52249 | CP80: 9090 | CQ80: 142.0198501 | CR80: -33 | CS80: -2281 | CT80: 0 | CU80: 51 | CV80: 0
A81: 239 | B81: Keitele | C81: 2379 | D81: 19.5 | G81: 3558 | H81: 17786 | I81: -14228 | J81: 5810 | K81: 986 | L81: 542 | M81: 7338 | N81: 7326 | O81: 0 | P81: 18 | Q81: 310 | R81: 25 | S81: 583 | U81: 544 | V81: 0 | W81: 0 | X81: 39 | Y81: 0 | Z81: 0 | AA81: 0 | AB81: 39 | AD81: 123 | AG81: -764 | AJ81: 42 | AL81: 5995 | AO81: 2346 | AP81: 19.5 | AS81: 3820 | AT81: 18285 | AU81: -14465 | AV81: 5688 | AW81: 883 | AX81: 534 | AY81: 7105 | AZ81: 7870 | BA81: 0 | BB81: 11 | BC81: 92 | BD81: 10 | BE81: 581 | BG81: 566 | BH81: 0 | BI81: 0 | BJ81: 15 | BK81: 0 | BL81: 0 | BM81: 0 | BN81: 15 | BP81: 137 | BV81: 347 | BX81: 6035 | CC81: 20.5 | CD81: 8.03 | CI81: 6963 | CJ81: 0 | CK81: 7721.155477 | CL81: 7267.836077 | CN81: 7267.836077 | CP81: 7326 | CQ81: 31.66650406 | CR81: -26 | CS81: -564 | CT81: 0 | CU81: 151 | CV81: 23
A82: 240 | B82: Kemi | C82: 21758 | D82: 21.25 | G82: 24258 | H82: 153798 | I82: -129540 | J82: 74603 | K82: 6187 | L82: 6512 | M82: 87302 | N82: 43191 | O82: 343 | P82: 3292 | Q82: 2588 | R82: 129 | S82: 180 | U82: 4576 | V82: 0 | W82: 0 | X82: -5315 | Y82: 0 | Z82: 0 | AA82: 25 | AB82: -5290 | AD82: 4787 | AG82: -4022 | AJ82: 699 | AL82: 86052 | AO82: 21602 | AP82: 21.25 | AS82: 23981 | AT82: 155827 | AU82: -131846 | AV82: 74083 | AW82: 5987 | AX82: 6722 | AY82: 86792 | AZ82: 47180 | BA82: 478 | BB82: 1112 | BC82: 1048 | BD82: 27 | BE82: 2513 | BG82: 4138 | BH82: 0 | BI82: 0 | BJ82: -1625 | BK82: 0 | BL82: 0 | BM82: 25 | BN82: -1600 | BP82: 3185 | BV82: 3893 | BX82: 88276 | CC82: 21.25 | CD82: 8.78 | CI82: 37066 | CJ82: 0 | CK82: 46414.4251 | CL82: 44350.81024 | CN82: 44350.81024 | CP82: 43191 | CQ82: -106.8666684 | CR82: -1949 | CS82: -4073 | CT82: 486 | CU82: 3850 | CV82: -4380
A83: 320 | B83: Kemijärvi | C83: 7766 | D83: 20.5 | G83: 11846 | H83: 66861 | I83: -55015 | J83: 23378 | K83: 1208 | L83: 3956 | M83: 28542 | N83: 25729 | O83: 10 | P83: 445 | Q83: 1439 | R83: 369 | S83: -110 | U83: 2625 | V83: 0 | W83: 0 | X83: -2735 | Y83: 0 | Z83: 0 | AA83: 6 | AB83: -2729 | AD83: -5243 | AG83: -3761 | AJ83: 1665 | AL83: 32653 | AO83: 7661 | AP83: 21 | AS83: 9697 | AT83: 64772 | AU83: -55075 | AV83: 23640 | AW83: 1046 | AX83: 4419 | AY83: 29105 | AZ83: 27095 | BA83: 412 | BB83: 340 | BC83: 1579 | BD83: 408 | BE83: 2368 | BG83: 2282 | BH83: 4123 | BI83: 0 | BJ83: 4209 | BK83: 0 | BL83: 0 | BM83: 0 | BN83: 4209 | BP83: -1034 | BV83: 1598 | BX83: 32911 | CC83: 21 | CD83: 8.53 | CI83: 27330 | CJ83: 0 | CK83: 25855.8351 | CL83: 25118.65667 | CN83: 25118.65667 | CP83: 25729 | CQ83: -43.58347 | CR83: -3594 | CS83: -4181 | CT83: 717 | CU83: 11699 | CV83: -10374
A84: 241 | B84: Keminmaa | C84: 8388 | D84: 21.25 | G84: 5897 | H84: 51825 | I84: -45928 | J84: 29972 | K84: 3623 | L84: 1060 | M84: 34655 | N84: 12791 | O84: 175 | P84: 292 | Q84: 420 | R84: 0 | S84: 1618 | U84: 1918 | V84: 0 | W84: 0 | X84: -300 | Y84: 0 | Z84: 0 | AA84: 0 | AB84: -300 | AD84: 3365 | AG84: -38 | AJ84: 4542 | AL84: 17359 | AO84: 8316 | AP84: 21.25 | AS84: 5880 | AT84: 51283 | AU84: -45403 | AV84: 30641 | AW84: 741 | AX84: 3853 | AY84: 35235 | AZ84: 13232 | BA84: 201 | BB84: 260 | BC84: 230 | BD84: 0 | BE84: 3235 | BG84: 3305 | BH84: 0 | BI84: 69 | BJ84: -139 | BK84: 0 | BL84: 0 | BM84: 0 | BN84: -139 | BP84: 3226 | BV84: 5157 | BX84: 19384 | CC84: 21.25 | CD84: 8.78 | CI84: 13024 | CJ84: 0 | CK84: 12690.91948 | CL84: 11892.37949 | CN84: 11892.37949 | CP84: 12791 | CQ84: 21.169114 | CR84: -162 | CS84: -3682 | CT84: 146 | CU84: 1717 | CV84: -1550
A85: 322 | B85: Kemiönsaari | C85: 6909 | D85: 19.75 | G85: 7780 | H85: 49072 | I85: -41292 | J85: 18861 | K85: 811 | L85: 3120 | M85: 22792 | N85: 22532 | O85: 13 | P85: 214 | Q85: 28 | R85: 10 | S85: 3849 | U85: 2765 | V85: 0 | W85: 0 | X85: 1084 | Y85: 165 | Z85: 0 | AA85: 0 | AB85: 1249 | AD85: 14785 | AG85: -10025 | AJ85: 5998 | AL85: 22720 | AO85: 6872 | AP85: 19.75 | AS85: 8092 | AT85: 49261 | AU85: -41169 | AV85: 18509 | AW85: 735 | AX85: 3154 | AY85: 22398 | AZ85: 23042 | BA85: 10 | BB85: 219 | BC85: 24 | BD85: 12 | BE85: 4074 | BG85: 3579 | BH85: 0 | BI85: 0 | BJ85: 495 | BK85: 164 | BL85: 0 | BM85: 0 | BN85: 659 | BP85: 15444 | BV85: 3302 | BX85: 21236 | CC85: 19.75 | CD85: 7.28 | CI85: 17777 | CJ85: 0 | CK85: 22140.79946 | CL85: 20759.3801 | CN85: 20759.3801 | CP85: 22532 | CQ85: 99.6816221 | CR85: -246 | CS85: -4239 | CT85: 46 | CU85: 341 | CV85: 0
A86: 244 | B86: Kempele | C86: 17066 | D86: 20.5 | G86: 10965 | H86: 89595 | I86: -78630 | J86: 58387 | K86: 2228 | L86: 2990 | M86: 63605 | N86: 21421 | O86: 0 | P86: 760 | Q86: 92 | R86: 16 | S86: 5712 | U86: 5078 | V86: 0 | W86: 0 | X86: 634 | Y86: 842 | Z86: 0 | AA86: 0 | AB86: 1476 | AD86: 6120 | AG86: -4790 | AJ86: 7129 | AL86: 35360 | AO86: 17297 | AP86: 20.5 | AS86: 12864 | AT86: 92173 | AU86: -79309 | AV86: 59921 | AW86: 2599 | AX86: 3133 | AY86: 65653 | AZ86: 24051 | BA86: 24 | BB86: 729 | BC86: 0 | BD86: 5 | BE86: 9685 | BG86: 5143 | BH86: 0 | BI86: 0 | BJ86: 4542 | BK86: 629 | BL86: -3000 | BM86: 0 | BN86: 2171 | BP86: 8292 | BV86: 11485 | BX86: 37486 | CC86: 20.5 | CD86: 8.03 | CI86: 17196 | CJ86: 0 | CK86: 23963.54034 | CL86: 23035.50098 | CN86: 23035.50098 | CP86: 21421 | CQ86: -290.2347792 | CR86: -3377 | CS86: -9953 | CT86: 261 | CU86: 4489 | CV86: -271
A87: 245 | B87: Kerava | C87: 35293 | D87: 19 | G87: 40378 | H87: 195286 | I87: -154908 | J87: 132253 | K87: 10198 | L87: 9713 | M87: 152164 | N87: 20222 | O87: 107 | P87: 330 | Q87: 2185 | R87: 53 | S87: 18713 | U87: 11137 | V87: 7001 | W87: 0 | X87: 14577 | Y87: 0 | Z87: 0 | AA87: 1 | AB87: 14578 | AD87: 116705 | AG87: -20069 | AJ87: 4783 | AL87: 42387 | AO87: 35511 | AP87: 19.25 | AS87: 41483 | AT87: 194136 | AU87: -152653 | AV87: 135018 | AW87: 10037 | AX87: 9512 | AY87: 154567 | AZ87: 23463 | BA87: 107 | BB87: 277 | BC87: 983 | BD87: 90 | BE87: 26100 | BG87: 11646 | BH87: 0 | BI87: 0 | BJ87: 14454 | BK87: 0 | BL87: 0 | BM87: -2 | BN87: 14452 | BP87: 131158 | BV87: 4391 | BX87: 37928 | CC87: 19.25 | CD87: 6.78 | CI87: 18933 | CJ87: 0 | CK87: 21369.7138 | CL87: 20390.10066 | CN87: 20390.10066 | CP87: 20222 | CQ87: -712.4129101 | CR87: -6279 | CS87: -20686 | CT87: 98 | CU87: 7087 | CV87: 0
A88: 249 | B88: Keuruu | C88: 10117 | D88: 20.5 | G88: 18256 | H88: 76142 | I88: -57886 | J88: 29390 | K88: 2447 | L88: 2541 | M88: 34378 | N88: 27169 | O88: 28 | P88: 73 | Q88: 605 | R88: 5 | S88: 3963 | U88: 4119 | V88: 0 | W88: 0 | X88: -156 | Y88: 5 | Z88: 0 | AA88: 0 | AB88: -151 | AD88: 8021 | AG88: -16100 | AJ88: 1027 | AL88: 47626 | AO88: 9992 | AP88: 20.5 | AS88: 17620 | AT88: 75475 | AU88: -57855 | AV88: 28935 | AW88: 2272 | AX88: 2420 | AY88: 33627 | AZ88: 27766 | BA88: 3 | BB88: 90 | BC88: 356 | BD88: 8 | BE88: 3799 | BG88: 5132 | BH88: 0 | BI88: 0 | BJ88: -1333 | BK88: 5 | BL88: 0 | BM88: 0 | BN88: -1328 | BP88: 6692 | BV88: 1614 | BX88: 54645 | CC88: 20.5 | CD88: 8.03 | CI88: 24249 | CJ88: 0 | CK88: 28336.34138 | CL88: 27525.33836 | CN88: 27525.33836 | CP88: 27169 | CQ88: 74.44056676 | CR88: -144 | CS88: -12386 | CT88: 42 | CU88: 305 | CV88: 0
A89: 250 | B89: Kihniö | C89: 2038 | D89: 21.5 | G89: 1602 | H89: 13953 | I89: -12351 | J89: 5116 | K89: 572 | L89: 508 | M89: 6196 | N89: 6103 | O89: 4 | P89: 122 | Q89: 62 | R89: 0 | S89: -123 | U89: 807 | V89: 0 | W89: 0 | X89: -930 | Y89: 109 | Z89: 0 | AA89: 0 | AB89: -821 | AD89: -841 | AG89: -557 | AJ89: 1435 | AL89: 8581 | AO89: 1994 | AP89: 21.5 | AS89: 1051 | AT89: 13263 | AU89: -12212 | AV89: 5027 | AW89: 577 | AX89: 499 | AY89: 6103 | AZ89: 6711 | BA89: 1 | BB89: 121 | BC89: 40 | BD89: 0 | BE89: 522 | BG89: 835 | BH89: 0 | BI89: 22 | BJ89: -335 | BK89: 105 | BL89: 0 | BM89: 0 | BN89: -230 | BP89: -1071 | BV89: 956 | BX89: 7944 | CC89: 21.5 | CD89: 9.03 | CI89: 5249 | CJ89: 0 | CK89: 6975.327733 | CL89: 6703.863081 | CN89: 6703.863081 | CP89: 6103 | CQ89: -47.1946718 | CR89: -5 | CS89: -202 | CT89: 8 | CU89: 127 | CV89: -60
A90: 256 | B90: Kinnula | C90: 1745 | D90: 20.5 | G90: 2881 | H90: 13777 | I90: -10896 | J90: 3880 | K90: 544 | L90: 365 | M90: 4789 | N90: 7344 | O90: 80 | P90: 7 | Q90: 35 | R90: 3 | S90: 1342 | U90: 794 | V90: 0 | W90: 0 | X90: 548 | Y90: 13 | Z90: 0 | AA90: 0 | AB90: 561 | AD90: 4922 | AG90: -448 | AJ90: 2290 | AL90: 5900 | AO90: 1699 | AP90: 20.5 | AS90: 2739 | AT90: 13862 | AU90: -11123 | AV90: 3896 | AW90: 505 | AX90: 364 | AY90: 4765 | AZ90: 7216 | BA90: 74 | BB90: 2 | BC90: 9 | BD90: 2 | BE90: 937 | BG90: 744 | BH90: 0 | BI90: 0 | BJ90: 193 | BK90: 13 | BL90: 0 | BM90: 0 | BN90: 206 | BP90: 5127 | BV90: 2244 | BX90: 5900 | CC90: 20.5 | CD90: 8.03 | CI90: 6712 | CJ90: 0 | CK90: 7131.336862 | CL90: 6652.597043 | CN90: 6652.597043 | CP90: 7344 | CQ90: 82.2482341 | CR90: 20 | CS90: -1174 | CT90: 0 | CU90: 26 | CV90: 0
A91: 257 | B91: Kirkkonummi | C91: 38649 | D91: 19.5 | G91: 36643 | H91: 223292 | I91: -186649 | J91: 160693 | K91: 7947 | L91: 9851 | M91: 178491 | N91: 20685 | O91: 89 | P91: 1734 | Q91: 486 | R91: 103 | S91: 11198 | U91: 12954 | V91: 81 | W91: 0 | X91: -1675 | Y91: 23 | Z91: 0 | AA91: 271 | AB91: -1381 | AD91: 20606 | AG91: -20626 | AJ91: 10629 | AL91: 92957 | AO91: 39033 | AP91: 19.5 | AS91: 32714 | AT91: 223204 | AU91: -190490 | AV91: 168325 | AW91: 6644 | AX91: 9806 | AY91: 184775 | AZ91: 23966 | BA91: 23 | BB91: 1193 | BC91: 468 | BD91: 11 | BE91: 17538 | BG91: 13990 | BH91: 0 | BI91: 0 | BJ91: 3548 | BK91: 22 | BL91: 606 | BM91: 38 | BN91: 4214 | BP91: 24740 | BV91: 22739 | BX91: 111077 | CC91: 19.5 | CD91: 7.03 | CI91: 23248 | CJ91: 0 | CK91: 22519.01799 | CL91: 19650.41766 | CN91: 19650.41766 | CP91: 20685 | CQ91: -759.6910131 | CR91: -1078 | CS91: -24120 | CT91: 64 | CU91: 1601 | CV91: 98
A92: 260 | B92: Kitee | C92: 10832 | D92: 22.5 | G92: 11049 | H92: 74899 | I92: -63850 | J92: 30623 | K92: 2374 | L92: 3100 | M92: 36097 | N92: 36704 | O92: 23 | P92: 280 | Q92: 995 | R92: 3 | S92: 9198 | U92: 2890 | V92: 0 | W92: 0 | X92: 6308 | Y92: 245 | Z92: 0 | AA92: 0 | AB92: 6553 | AD92: 4191 | AG92: -5587 | AJ92: 3148 | AL92: 17360 | AO92: 10719 | AP92: 22 | AS92: 11591 | AT92: 75189 | AU92: -63598 | AV92: 29349 | AW92: 2263 | AX92: 3105 | AY92: 34717 | AZ92: 37676 | BA92: 24 | BB92: 159 | BC92: 501 | BD92: 12 | BE92: 9149 | BG92: 3075 | BH92: 0 | BI92: 0 | BJ92: 6074 | BK92: 71 | BL92: 0 | BM92: 0 | BN92: 6145 | BP92: 10336 | BV92: 2813 | BX92: 12929 | CC92: 21.5 | CD92: 9.03 | CI92: 20251 | CJ92: 0 | CK92: 38024.94675 | CL92: 36954.6482 | CN92: 36954.6482 | CP92: 36704 | CQ92: 192.5144132 | CR92: -119 | CS92: -3765 | CT92: 107 | CU92: 564 | CV92: -648
A93: 261 | B93: Kittilä | C93: 6416 | D93: 19.5 | G93: 6696 | H93: 52106 | I93: -45410 | J93: 18371 | K93: 4330 | L93: 4846 | M93: 27547 | N93: 21182 | O93: 0 | P93: 426 | Q93: 2702 | R93: 7 | S93: 4270 | U93: 2595 | V93: 0 | W93: 0 | X93: 1675 | Y93: -57 | Z93: 277 | AA93: 0 | AB93: 1895 | AD93: 7146 | AG93: -4097 | AJ93: 2900 | AL93: 30917 | AO93: 6383 | AP93: 20.25 | AS93: 9245 | AT93: 52374 | AU93: -43129 | AV93: 19016 | AW93: 3484 | AX93: 5995 | AY93: 28495 | AZ93: 21584 | BA93: 0 | BB93: 430 | BC93: 1059 | BD93: 1 | BE93: 7578 | BG93: 3068 | BH93: 0 | BI93: 0 | BJ93: 4510 | BK93: 159 | BL93: -950 | BM93: 0 | BN93: 3719 | BP93: 10866 | BV93: 1305 | BX93: 26662 | CC93: 20.25 | CD93: 7.78 | CI93: 16777 | CJ93: 0 | CK93: 20430.34681 | CL93: 21129.46523 | CN93: 21129.46523 | CP93: 21182 | CQ93: 41.81522636 | CR93: 0 | CS93: -4137 | CT93: 732 | CU93: 79 | CV93: -80
A94: 263 | B94: Kiuruvesi | C94: 8600 | D94: 20.75 | G94: 7395 | H94: 59951 | I94: -52556 | J94: 21344 | K94: 1935 | L94: 1656 | M94: 24935 | N94: 30238 | O94: 23 | P94: 246 | Q94: 1831 | R94: 97 | S94: 3580 | U94: 3803 | V94: 0 | W94: 0 | X94: -223 | Y94: 19 | Z94: 0 | AA94: 0 | AB94: -204 | AD94: 1732 | AG94: -3230 | AJ94: 7506 | AL94: 29926 | AO94: 8444 | AP94: 20.75 | AS94: 6945 | AT94: 59259 | AU94: -52314 | AV94: 20093 | AW94: 1780 | AX94: 1683 | AY94: 23556 | AZ94: 31263 | BA94: 20 | BB94: 213 | BC94: 672 | BD94: 92 | BE94: 2892 | BG94: 3652 | BH94: 275 | BI94: 219 | BJ94: -704 | BK94: 19 | BL94: 0 | BM94: 0 | BN94: -685 | BP94: 1047 | BV94: 6906 | BX94: 29173 | CC94: 20.75 | CD94: 8.28 | CI94: 27709 | CJ94: 0 | CK94: 31254.27332 | CL94: 29686.99675 | CN94: 29686.99675 | CP94: 30238 | CQ94: 191.6801011 | CR94: -2 | CS94: -3434 | CT94: 0 | CU94: 331 | CV94: 40
A95: 265 | B95: Kivijärvi | C95: 1200 | D95: 21 | G95: 1706 | H95: 10020 | I95: -8314 | J95: 2630 | K95: 375 | L95: 580 | M95: 3585 | N95: 5474 | O95: 0 | P95: 28 | Q95: 33 | R95: 0 | S95: 749 | U95: 476 | V95: 0 | W95: 0 | X95: 273 | Y95: 0 | Z95: 0 | AA95: 0 | AB95: 273 | AD95: 4543 | AG95: -3217 | AJ95: 1616 | AL95: 5174 | AO95: 1161 | AP95: 21 | AS95: 1699 | AT95: 10214 | AU95: -8515 | AV95: 2511 | AW95: 386 | AX95: 530 | AY95: 3427 | AZ95: 5513 | BA95: 0 | BB95: 39 | BC95: 6 | BD95: 0 | BE95: 392 | BG95: 1027 | BH95: 0 | BI95: 0 | BJ95: -635 | BK95: -385 | BL95: 406 | BM95: 0 | BN95: -614 | BP95: 3929 | BV95: 1471 | BX95: 4866 | CC95: 21 | CD95: 8.53 | CI95: 5040 | CJ95: 0 | CK95: 5252.621035 | CL95: 4813.350646 | CN95: 4813.350646 | CP95: 5474 | CQ95: -78.5747702 | CR95: -113 | CS95: -713 | CT95: 240 | CU95: 288 | CV95: 0
A96: 271 | B96: Kokemäki | C96: 7591 | D96: 21.25 | G96: 4685 | H96: 47824 | I96: -43139 | J96: 23112 | K96: 1625 | L96: 2284 | M96: 27021 | N96: 17945 | O96: 154 | P96: 166 | Q96: 142 | R96: 69 | S96: 1887 | U96: 1677 | V96: 0 | W96: 0 | X96: 210 | Y96: 0 | Z96: 0 | AA96: 0 | AB96: 210 | AD96: -676 | AG96: -2539 | AJ96: 789 | AL96: 21844 | AO96: 7498 | AP96: 21.25 | AS96: 4896 | AT96: 48432 | AU96: -43536 | AV96: 22613 | AW96: 1508 | AX96: 2382 | AY96: 26503 | AZ96: 18797 | BA96: 176 | BB96: 173 | BC96: 132 | BD96: 9 | BE96: 1890 | BG96: 1554 | BH96: 0 | BI96: 0 | BJ96: 336 | BK96: 0 | BL96: 0 | BM96: 0 | BN96: 336 | BP96: -340 | BV96: 1373 | BX96: 24704 | CC96: 21.75 | CD96: 9.28 | CI96: 16561 | CJ96: 0 | CK96: 18091.88089 | CL96: 17110.43362 | CN96: 17110.43362 | CP96: 17945 | CQ96: 105.7833079 | CR96: 28 | CS96: -5495 | CT96: 1855 | CU96: 14 | CV96: 38
A97: 272 | B97: Kokkola | C97: 47570 | D97: 21 | G97: 88136 | H97: 342272 | I97: -254136 | J97: 153250 | K97: 14686 | L97: 14172 | M97: 182108 | N97: 78907 | O97: 400 | P97: 2731 | Q97: 842 | R97: 120 | S97: 5065 | U97: 15319 | V97: 0 | W97: 0 | X97: -10254 | Y97: 284 | Z97: 0 | AA97: 395 | AB97: -9575 | AD97: 16875 | AG97: -59847 | AJ97: 21308 | AL97: 250888 | AO97: 47723 | AP97: 21.5 | AS97: 90781 | AT97: 350582 | AU97: -259801 | AV97: 156556 | AW97: 12923 | AX97: 14432 | AY97: 183911 | AZ97: 86936 | BA97: 85 | BB97: 2631 | BC97: 1853 | BD97: 47 | BE97: 10306 | BG97: 15440 | BH97: 0 | BI97: 0 | BJ97: -5134 | BK97: 504 | BL97: -612 | BM97: 91 | BN97: -5151 | BP97: 11724 | BV97: 12210 | BX97: 242833 | CC97: 21.75 | CD97: 9.28 | CI97: 66787 | CJ97: 0 | CK97: 86990.13575 | CL97: 86450.54871 | CN97: 86450.54871 | CP97: 78907 | CQ97: -340.0880426 | CR97: -4069 | CS97: -22182 | CT97: 2898 | CU97: 4060 | CV97: 198
B98: KOKO MAA (Manner-Suomi) | C98: 5458325 | D98: 19.85 | G98: 8030301 | H98: 36335521 | I98: -28305220 | J98: 18443219 | K98: 1638497 | L98: 1581155 | M98: 21662871 | N98: 8196322 | O98: 250238 | P98: 193799 | Q98: 558438 | R98: 75630 | S98: 1894704 | U98: 2081911 | V98: 346559 | W98: 15730 | X98: 143622 | Y98: -16481 | Z98: -15415 | AA98: 52925 | AB98: 164651 | AD98: 9422587 | AG98: -2491926 | AJ98: 4114383 | AL98: 15504296 | AO98: 5474083 | AP98: 19.89 | AS98: 8072125 | AT98: 36517141 | AU98: -28445032 | AV98: 18807344 | AW98: 1539341 | AX98: 1640918 | AY98: 21987603 | AZ98: 8792091 | BA98: 245114 | BB98: 176766 | BC98: 334540 | BD98: 42405 | BE98: 2695145 | BG98: 2114293 | BH98: 334182 | BI98: 21859 | BJ98: 893175 | BK98: -9011 | BL98: -27985 | BM98: 10638 | BN98: 866817 | BP98: 10310344 | BV98: 4593067 | BX98: 16088917 | CC98: 19.92 | CD98: 7.45 | CI98: 7374694 | CJ98: 20000 | CK98: 8501912.987 | CL98: 8201794.861 | CN98: 8201794.861 | CP98: 8196322 | CQ98: 9132.171 | CR98: -635925 | CS98: -3468321 | CT98: 139273 | CU98: 894629 | CV98: -104274
A99: 273 | B99: Kolari | C99: 3848 | D99: 20 | G99: 5786 | H99: 29258 | I99: -23472 | J99: 10300 | K99: 683 | L99: 3234 | M99: 14217 | N99: 12901 | O99: 12 | P99: 144 | Q99: 23 | R99: 24 | S99: 3512 | U99: 1609 | V99: 0 | W99: 0 | X99: 1903 | Y99: 14 | Z99: 0 | AA99: 0 | AB99: 1917 | AD99: 7275 | AG99: -2133 | AJ99: 942 | AL99: 9293 | AO99: 3827 | AP99: 20 | AS99: 4607 | AT99: 29189 | AU99: -24582 | AV99: 10199 | AW99: 630 | AX99: 3097 | AY99: 13926 | AZ99: 14194 | BA99: 11 | BB99: 113 | BC99: 20 | BD99: 5 | BE99: 3451 | BG99: 1701 | BH99: 0 | BI99: 0 | BJ99: 1750 | BK99: 14 | BL99: 0 | BM99: 0 | BN99: 1764 | BP99: 9767 | BV99: 566 | BX99: 8124 | CC99: 20 | CD99: 7.53 | CI99: 10196 | CJ99: 0 | CK99: 14368.65125 | CL99: 14352.11688 | CN99: 14352.11688 | CP99: 12901 | CQ99: 109.8926065 | CR99: -48 | CS99: -2447 | CT99: 159 | CU99: 66 | CV99: 50
A100: 275 | B100: Konnevesi | C100: 2757 | D100: 21.5 | G100: 3577 | H100: 20218 | I100: -16641 | J100: 7372 | K100: 703 | L100: 767 | M100: 8842 | N100: 8870 | O100: 29 | P100: 99 | Q100: 332 | R100: 26 | S100: 1142 | U100: 703 | V100: 0 | W100: 0 | X100: 439 | Y100: 0 | Z100: 0 | AA100: 0 | AB100: 439 | AD100: 5713 | AG100: -5538 | AJ100: 1625 | AL100: 11057 | AO100: 2753 | AP100: 21.5 | AS100: 4022 | AT100: 21505 | AU100: -17483 | AV100: 7270 | AW100: 675 | AX100: 772 | AY100: 8717 | AZ100: 9398 | BA100: 28 | BB100: 124 | BC100: 87 | BD100: 30 | BE100: 593 | BG100: 884 | BH100: 0 | BI100: 0 | BJ100: -291 | BK100: 0 | BL100: 0 | BM100: 0 | BN100: -291 | BP100: 5455 | BV100: 1910 | BX100: 18308 | CC100: 21.5 | CD100: 9.03 | CI100: 7998 | CJ100: 0 | CK100: 8999.532681 | CL100: 8570.32975 | CN100: 8570.32975 | CP100: 8870 | CQ100: -40.55753194 | CR100: 0 | CS100: -5979 | CT100: 0 | CU100: 253 | CV100: 63
A101: 276 | B101: Kontiolahti | C101: 14827 | D101: 20.5 | G101: 13324 | H101: 78562 | I101: -65238 | J101: 45667 | K101: 2104 | L101: 2511 | M101: 50282 | N101: 22194 | O101: 13 | P101: 841 | Q101: 516 | R101: 4 | S101: 6676 | U101: 4214 | V101: 0 | W101: 0 | X101: 2462 | Y101: 80 | Z101: 0 | AA101: 0 | AB101: 2542 | AD101: 14389 | AG101: -3531 | AJ101: 4415 | AL101: 43601 | AO101: 14806 | AP101: 20.5 | AS101: 13457 | AT101: 80369 | AU101: -66912 | AV101: 46273 | AW101: 2005 | AX101: 2601 | AY101: 50879 | AZ101: 23860 | BA101: 3 | BB101: 766 | BC101: 297 | BD101: 1 | BE101: 7360 | BG101: 4085 | BH101: 0 | BI101: 0 | BJ101: 3275 | BK101: 80 | BL101: 0 | BM101: 0 | BN101: 3355 | BP101: 17744 | BV101: 11113 | BX101: 39131 | CC101: 20.5 | CD101: 8.03 | CI101: 21930 | CJ101: 0 | CK101: 23443.6051 | CL101: 22293.23588 | CN101: 22293.23588 | CP101: 22194 | CQ101: -27.63690095 | CR101: -384 | CS101: -4471 | CT101: 27 | CU101: 9090 | CV101: -881
A102: 280 | B102: Korsnäs | C102: 2201 | D102: 21 | G102: 2666 | H102: 15292 | I102: -12626 | J102: 5014 | K102: 969 | L102: 648 | M102: 6631 | N102: 6345 | O102: 2 | P102: 37 | Q102: 20 | R102: 0 | S102: 334 | U102: 936 | V102: 0 | W102: 0 | X102: -602 | Y102: 318 | Z102: 0 | AA102: 0 | AB102: -284 | AD102: 4718 | AG102: -1284 | AJ102: 389 | AL102: 1546 | AO102: 2171 | AP102: 21 | AS102: 2764 | AT102: 14929 | AU102: -12165 | AV102: 5467 | AW102: 882 | AX102: 694 | AY102: 7043 | AZ102: 7121 | BA102: 0 | BB102: 40 | BC102: 16 | BD102: 11 | BE102: 1964 | BG102: 978 | BH102: 0 | BI102: 0 | BJ102: 986 | BK102: -153 | BL102: -550 | BM102: 0 | BN102: 283 | BP102: 5001 | BV102: 837 | BX102: 1818 | CC102: 21 | CD102: 8.53 | CI102: 5701 | CJ102: 0 | CK102: 6824.470678 | CL102: 6451.208499 | CN102: 6451.208499 | CP102: 6345 | CQ102: -844.5480292 | CR102: -23 | CS102: -1784 | CT102: 136 | CU102: 273 | CV102: 5
A103: 284 | B103: Koski tl | C103: 2399 | D103: 19.5 | G103: 3140 | H103: 16619 | I103: -13479 | J103: 6010 | K103: 379 | L103: 480 | M103: 6869 | N103: 7425 | O103: 19 | P103: 1 | Q103: 37 | R103: 2 | S103: 852 | U103: 629 | V103: 0 | W103: 0 | X103: 223 | Y103: -324 | Z103: 350 | AA103: 0 | AB103: 249 | AD103: 3716 | AG103: -700 | AJ103: 2916 | AL103: 200 | AO103: 2416 | AP103: 19.5 | AS103: 3412 | AT103: 16878 | AU103: -13466 | AV103: 5938 | AW103: 374 | AX103: 475 | AY103: 6787 | AZ103: 7515 | BA103: 18 | BB103: 1 | BC103: 18 | BD103: 1 | BE103: 870 | BG103: 664 | BH103: 0 | BI103: 0 | BJ103: 206 | BK103: 37 | BL103: 0 | BM103: 0 | BN103: 243 | BP103: 3959 | BV103: 2641 | BX103: 100 | CC103: 19.5 | CD103: 7.03 | CI103: 6324 | CJ103: 0 | CK103: 7348.382786 | CL103: 7183.21518 | CN103: 7183.21518 | CP103: 7425 | CQ103: 1024.622475 | CR103: 13 | CS103: -1748 | CT103: 262 | CU103: 115 | CV103: 23
A104: 285 | B104: Kotka | C104: 54319 | D104: 20.5 | G104: 90753 | H104: 390951 | I104: -300198 | J104: 185520 | K104: 10334 | L104: 15224 | M104: 211078 | N104: 96737 | O104: 742 | P104: 2979 | Q104: 13411 | R104: 2302 | S104: 9886 | U104: 18684 | V104: 0 | W104: 0 | X104: -8798 | Y104: 271 | Z104: 0 | AA104: 0 | AB104: -8527 | AD104: -41277 | AG104: -22621 | AJ104: 0 | AL104: 281271 | AO104: 54187 | AP104: 20.5 | AS104: 94611 | AT104: 397740 | AU104: -303129 | AV104: 185958 | AW104: 8225 | AX104: 15395 | AY104: 209578 | AZ104: 106309 | BA104: 647 | BB104: 2406 | BC104: 6678 | BD104: 2970 | BE104: 14707 | BG104: 21888 | BH104: 224 | BI104: 66 | BJ104: -7023 | BK104: 271 | BL104: 0 | BM104: 0 | BN104: -6752 | BP104: -48029 | BV104: 26462 | BX104: 310433 | CC104: 21.5 | CD104: 9.03 | CI104: 75460 | CJ104: 0 | CK104: 106481.1603 | CL104: 110114.8524 | CN104: 110114.8524 | CP104: 96737 | CQ104: -982.6727624 | CR104: 1201 | CS104: -21284 | CT104: 189 | CU104: 2251 | CV104: -13
A105: 286 | B105: Kouvola | C105: 85855 | D105: 20.5 | G105: 77332 | H105: 570794 | I105: -493462 | J105: 288291 | K105: 19392 | L105: 25060 | M105: 332743 | N105: 166672 | O105: 2253 | P105: 3158 | Q105: 16983 | R105: 649 | S105: 14582 | U105: 20923 | V105: 2445 | W105: 572 | X105: -4468 | Y105: 102 | Z105: 0 | AA105: 3 | AB105: -4363 | AD105: -954 | AG105: -23379 | AJ105: 44936 | AL105: 203512 | AO105: 85306 | AP105: 20.75 | AS105: 78574 | AT105: 577446 | AU105: -498846 | AV105: 294657 | AW105: 17467 | AX105: 28776 | AY105: 340900 | AZ105: 175852 | BA105: 2050 | BB105: 2794 | BC105: 8232 | BD105: 769 | BE105: 24625 | BG105: 20424 | BH105: 1492 | BI105: 0 | BJ105: 5693 | BK105: 102 | BL105: 0 | BM105: 3 | BN105: 5798 | BP105: 4843 | BV105: 25268 | BX105: 182451 | CC105: 20.75 | CD105: 8.28 | CI105: 146689 | CJ105: 0 | CK105: 169315.38 | CL105: 164686.8053 | CN105: 164686.8053 | CP105: 166672 | CQ105: -390.9063686 | CR105: -6252 | CS105: -29194 | CT105: 2619 | CU105: 7875 | CV105: 1724
A106: 287 | B106: Kristiinankaupunki | C106: 6793 | D106: 21.5 | G106: 8655 | H106: 47622 | I106: -38967 | J106: 20266 | K106: 1185 | L106: 1788 | M106: 23239 | N106: 19390 | O106: 9 | P106: 535 | Q106: 41 | R106: 78 | S106: 3099 | U106: 2278 | V106: 0 | W106: 0 | X106: 821 | Y106: 0 | Z106: 0 | AA106: 0 | AB106: 821 | AD106: 843 | AG106: -2134 | AJ106: 4631 | AL106: 24680 | AO106: 6727 | AP106: 21.5 | AS106: 10828 | AT106: 46578 | AU106: -35750 | AV106: 19971 | AW106: 1257 | AX106: 2026 | AY106: 23254 | AZ106: 20967 | BA106: 1 | BB106: 419 | BC106: 59 | BD106: 15 | BE106: 8097 | BG106: 2491 | BH106: 0 | BI106: 0 | BJ106: 5606 | BK106: 0 | BL106: 0 | BM106: 0 | BN106: 5606 | BP106: 6449 | BV106: 4737 | BX106: 20981 | CC106: 21.5 | CD106: 9.03 | CI106: 16902 | CJ106: 0 | CK106: 20843.24101 | CL106: 20052.91895 | CN106: 20052.91895 | CP106: 19390 | CQ106: 478.7706442 | CR106: -2755 | CS106: -3529 | CT106: 0 | CU106: 2705 | CV106: 0
A107: 288 | B107: Kruunupyy | C107: 6682 | D107: 20.75 | G107: 4211 | H107: 41925 | I107: -37714 | J107: 19049 | K107: 1504 | L107: 2224 | M107: 22777 | N107: 16004 | O107: 4 | P107: 385 | Q107: 43 | R107: 1 | S107: 721 | U107: 1090 | V107: 0 | W107: 0 | X107: -369 | Y107: 0 | Z107: 0 | AA107: 0 | AB107: -369 | AD107: 5408 | AG107: -2716 | AJ107: 219 | AL107: 20364 | AO107: 6620 | AP107: 20.75 | AS107: 3313 | AT107: 40954 | AU107: -37641 | AV107: 18792 | AW107: 1509 | AX107: 2037 | AY107: 22338 | AZ107: 16499 | BA107: 0 | BB107: 351 | BC107: 228 | BD107: 0 | BE107: 1073 | BG107: 1125 | BH107: 0 | BI107: 0 | BJ107: -52 | BK107: 0 | BL107: 0 | BM107: 0 | BN107: -52 | BP107: 5355 | BV107: 1444 | BX107: 20906 | CC107: 21.25 | CD107: 8.78 | CI107: 15567 | CJ107: 0 | CK107: 16560.55015 | CL107: 15909.28051 | CN107: 15909.28051 | CP107: 16004 | CQ107: -298.9826042 | CR107: -170 | CS107: -2296 | CT107: 0 | CU107: 253 | CV107: 0
A108: 290 | B108: Kuhmo | C108: 8806 | D108: 21.5 | G108: 6916 | H108: 67361 | I108: -60445 | J108: 24548 | K108: 2949 | L108: 2083 | M108: 29580 | N108: 32479 | O108: 74 | P108: 183 | Q108: 858 | R108: 206 | S108: 2157 | U108: 1920 | V108: 0 | W108: 0 | X108: 237 | Y108: 43 | Z108: 0 | AA108: 0 | AB108: 280 | AD108: 1763 | AG108: -7949 | AJ108: 18053 | AL108: 20107 | AO108: 8647 | AP108: 21.5 | AS108: 6890 | AT108: 66733 | AU108: -59843 | AV108: 23817 | AW108: 2734 | AX108: 2156 | AY108: 28707 | AZ108: 32534 | BA108: 73 | BB108: 158 | BC108: 1407 | BD108: 414 | BE108: 2306 | BG108: 2051 | BH108: 267 | BI108: 0 | BJ108: 522 | BK108: 42 | BL108: 0 | BM108: 0 | BN108: 564 | BP108: 2327 | BV108: 19343 | BX108: 26239 | CC108: 21.5 | CD108: 9.03 | CI108: 26933 | CJ108: 0 | CK108: 32204.9834 | CL108: 31514.991 | CN108: 31514.991 | CP108: 32479 | CQ108: -38.602502 | CR108: 20 | CS108: -6506 | CT108: 275 | CU108: 202 | CV108: 79
A109: 291 | B109: Kuhmoinen | C109: 2334 | D109: 20.75 | G109: 2664 | H109: 18119 | I109: -15455 | J109: 5917 | K109: 906 | L109: 1332 | M109: 8155 | N109: 9040 | O109: 114 | P109: 21 | Q109: 60 | R109: 79 | S109: 1803 | U109: 1114 | V109: 0 | W109: 0 | X109: 689 | Y109: 3 | Z109: 0 | AA109: 0 | AB109: 692 | AD109: 4199 | AG109: -1436 | AJ109: 3339 | AL109: 2620 | AO109: 2286 | AP109: 20.75 | AS109: 2285 | AT109: 18206 | AU109: -15921 | AV109: 6063 | AW109: 861 | AX109: 1343 | AY109: 8267 | AZ109: 9352 | BA109: 130 | BB109: 25 | BC109: 81 | BD109: 44 | BE109: 1840 | BG109: 1074 | BH109: 0 | BI109: 0 | BJ109: 766 | BK109: 5 | BL109: 0 | BM109: 0 | BN109: 771 | BP109: 4970 | BV109: 3393 | BX109: 1459 | CC109: 20.75 | CD109: 8.28 | CI109: 7978 | CJ109: 0 | CK109: 9184.371042 | CL109: 8338.758772 | CN109: 8338.758772 | CP109: 9040 | CQ109: 22.414356 | CR109: 15 | CS109: -927 | CT109: 0 | CU109: 30 | CV109: 11
A110: 297 | B110: Kuopio | C110: 112117 | D110: 20.5 | G110: 201644 | H110: 764350 | I110: -562706 | J110: 369418 | K110: 21790 | L110: 38175 | M110: 429383 | N110: 164183 | O110: 7910 | P110: 5863 | Q110: 5438 | R110: 12 | S110: 36745 | U110: 50470 | V110: 270 | W110: 0 | X110: -13455 | Y110: 482 | Z110: 0 | AA110: 0 | AB110: -12973 | AD110: 117036 | AG110: -32984 | AJ110: 52196 | AL110: 314106 | AO110: 117740 | AP110: 20.5 | AS110: 202114 | AT110: 776221 | AU110: -574107 | AV110: 372394 | AW110: 20477 | AX110: 36264 | AY110: 429135 | AZ110: 182730 | BA110: 7605 | BB110: 4983 | BC110: 3840 | BD110: 16 | BE110: 44204 | BG110: 51235 | BH110: 5181 | BI110: 4401 | BJ110: -6251 | BK110: 429 | BL110: 0 | BM110: 0 | BN110: -5822 | BP110: 111214 | BV110: 50813 | BX110: 314432 | CC110: 20.5 | CD110: 8.03 | CI110: 128128 | CJ110: 0 | CK110: 197764.6887 | CL110: 191857.7447 | CN110: 191857.7447 | CP110: 164183 | CQ110: -2310.481778 | CR110: -4294 | CS110: -57223 | CT110: 859 | CU110: 15643 | CV110: -22
A111: 300 | B111: Kuortane | C111: 3715 | D111: 21 | G111: 3836 | H111: 26514 | I111: -22678 | J111: 9670 | K111: 611 | L111: 720 | M111: 11001 | N111: 12477 | O111: 21 | P111: 11 | Q111: 20 | R111: 2 | S111: 828 | U111: 1143 | V111: 0 | W111: 0 | X111: -315 | Y111: 0 | Z111: 0 | AA111: 0 | AB111: -315 | AD111: 720 | AG111: -1210 | AJ111: 1506 | AL111: 7482 | AO111: 3690 | AP111: 21 | AS111: 2915 | AT111: 25251 | AU111: -22336 | AV111: 9655 | AW111: 602 | AX111: 855 | AY111: 11112 | AZ111: 13380 | BA111: 15 | BB111: 5 | BC111: 17 | BD111: 1 | BE111: 2182 | BG111: 1191 | BH111: 0 | BI111: 0 | BJ111: 991 | BK111: 0 | BL111: 0 | BM111: 0 | BN111: 991 | BP111: 1711 | BV111: 1758 | BX111: 8010 | CC111: 21 | CD111: 8.53 | CI111: 10844 | CJ111: 0 | CK111: 13457.05779 | CL111: 12947.07445 | CN111: 12947.07445 | CP111: 12477 | CQ111: 77.2672661 | CR111: -33 | CS111: -1827 | CT111: 58 | CU111: 145 | CV111: 37
A112: 301 | B112: Kurikka | C112: 21734 | D112: 19 | G112: 7319 | H112: 89292 | I112: -81973 | J112: 35681 | K112: 2065 | L112: 2169 | M112: 39915 | N112: 35747 | O112: 394 | P112: 493 | Q112: 18313 | R112: 1 | S112: 2765 | U112: 4155 | V112: 0 | W112: 0 | X112: -1390 | Y112: 42 | Z112: 381 | AA112: 0 | AB112: -967 | AD112: 32356 | AG112: -2137 | AJ112: 26974 | AL112: 44545 | AO112: 21501 | AP112: 20 | AS112: 22523 | AT112: 149678 | AU112: -127155 | AV112: 55388 | AW112: 3439 | AX112: 4342 | AY112: 63169 | AZ112: 59705 | BA112: 844 | BB112: 803 | BC112: 8486 | BD112: 1389 | BE112: 2857 | BG112: 8853 | BH112: 0 | BI112: 0 | BJ112: -5996 | BK112: 425 | BL112: 0 | BM112: 0 | BN112: -5571 | BP112: 14303 | BV112: 29697 | BX112: 80719 | CC112: 21 | CD112: 8.53 | CI112: 31058 | CJ112: 0 | CK112: 61228.02691 | CL112: 59889.89844 | CN112: 59889.89844 | CP112: 35747 | CQ112: 164.3221343 | CR112: -54 | CS112: -7223 | CT112: 87 | CU112: 4148 | CV112: 2113
A113: 304 | B113: Kustavi | C113: 895 | D113: 19.25 | G113: 1230 | H113: 7128 | I113: -5898 | J113: 2502 | K113: 167 | L113: 1359 | M113: 4028 | N113: 2363 | O113: 0 | P113: 32 | Q113: 14 | R113: 2 | S113: 471 | U113: 271 | V113: 0 | W113: 0 | X113: 200 | Y113: 18 | Z113: 0 | AA113: 0 | AB113: 218 | AD113: 2584 | AG113: -535 | AJ113: 679 | AL113: 1476 | AO113: 908 | AP113: 19.25 | AS113: 1204 | AT113: 7163 | AU113: -5959 | AV113: 2684 | AW113: 149 | AX113: 1400 | AY113: 4233 | AZ113: 2492 | BA113: 0 | BB113: 25 | BC113: 5 | BD113: 0 | BE113: 746 | BG113: 276 | BH113: 0 | BI113: 400 | BJ113: 70 | BK113: 18 | BL113: 0 | BM113: 0 | BN113: 88 | BP113: 2673 | BV113: 825 | BX113: 1884 | CC113: 19 | CD113: 6.53 | CI113: 2254 | CJ113: 0 | CK113: 2366.901974 | CL113: 2317.827289 | CN113: 2317.827289 | CP113: 2363 | CQ113: -259.010336 | CR113: 0 | CS113: -946 | CT113: 62 | CU113: 4 | CV113: 0
A114: 305 | B114: Kuusamo | C114: 15688 | D114: 20 | G114: 19506 | H114: 112862 | I114: -93356 | J114: 42246 | K114: 3595 | L114: 6873 | M114: 52714 | N114: 44846 | O114: 28 | P114: 520 | Q114: 1726 | R114: 122 | S114: 5254 | U114: 5147 | V114: 0 | W114: 0 | X114: 107 | Y114: 0 | Z114: 0 | AA114: 527 | AB114: 634 | AD114: 11680 | AG114: -4308 | AJ114: 27303 | AL114: 29369 | AO114: 15533 | AP114: 20 | AS114: 23693 | AT114: 115111 | AU114: -91418 | AV114: 41662 | AW114: 3304 | AX114: 6828 | AY114: 51794 | AZ114: 46600 | BA114: -35 | BB114: 502 | BC114: 1701 | BD114: 235 | BE114: 7905 | BG114: 6251 | BH114: 0 | BI114: 0 | BJ114: 1654 | BK114: 0 | BL114: 0 | BM114: 540 | BN114: 2194 | BP114: 14582 | BV114: 29952 | BX114: 32260 | CC114: 20 | CD114: 7.53 | CI114: 40265 | CJ114: 0 | CK114: 46150.12209 | CL114: 45023.71289 | CN114: 45023.71289 | CP114: 44846 | CQ114: -24.36938594 | CR114: -1396 | CS114: -8055 | CT114: 753 | CU114: 1403 | CV114: 130
A115: 312 | B115: Kyyjärvi | C115: 1379 | D115: 20.5 | G115: 1753 | H115: 10364 | I115: -8611 | J115: 3519 | K115: 723 | L115: 285 | M115: 4527 | N115: 4528 | O115: 25 | P115: 35 | Q115: 456 | R115: 26 | S115: 863 | U115: 523 | V115: 0 | W115: 0 | X115: 340 | Y115: 0 | Z115: 0 | AA115: 0 | AB115: 340 | AD115: 2008 | AG115: -1335 | AJ115: 5305 | AL115: 10152 | AO115: 1375 | AP115: 20.5 | AS115: 1608 | AT115: 10747 | AU115: -9139 | AV115: 3083 | AW115: 541 | AX115: 283 | AY115: 3907 | AZ115: 4259 | BA115: 28 | BB115: 19 | BC115: 98 | BD115: 3 | BE115: -869 | BG115: 565 | BH115: 0 | BI115: 0 | BJ115: -1434 | BK115: 0 | BL115: 0 | BM115: 0 | BN115: -1434 | BP115: 574 | BV115: 5502 | BX115: 10122 | CC115: 21 | CD115: 8.53 | CI115: 4298 | CJ115: 0 | CK115: 4388.210596 | CL115: 4193.680938 | CN115: 4193.680938 | CP115: 4528 | CQ115: -13.697662 | CR115: -3 | CS115: -493 | CT115: 22 | CU115: 5 | CV115: 102
A116: 316 | B116: Kärkölä | C116: 4604 | D116: 21.75 | G116: 4441 | H116: 28280 | I116: -23839 | J116: 14315 | K116: 627 | L116: 1228 | M116: 16170 | N116: 7954 | O116: 16 | P116: 96 | Q116: 29 | R116: 75 | S116: 147 | U116: 1304 | V116: 0 | W116: 0 | X116: -1157 | Y116: 0 | Z116: 0 | AA116: 0 | AB116: -1157 | AD116: -1456 | AG116: -1572 | AJ116: 1111 | AL116: 16087 | AO116: 4540 | AP116: 21.75 | AS116: 2877 | AT116: 26698 | AU116: -23821 | AV116: 14435 | AW116: 625 | AX116: 1163 | AY116: 16223 | AZ116: 8576 | BA116: 42 | BB116: 129 | BC116: 23 | BD116: 5 | BE116: 909 | BG116: 1062 | BH116: 4844 | BI116: 0 | BJ116: 4691 | BK116: 0 | BL116: 0 | BM116: 0 | BN116: 4691 | BP116: 3235 | BV116: 1601 | BX116: 9488 | CC116: 21.75 | CD116: 9.28 | CI116: 8022 | CJ116: 0 | CK116: 8205.491103 | CL116: 7666.843021 | CN116: 7666.843021 | CP116: 7954 | CQ116: -3696.401258 | CR116: -4 | CS116: -1923 | CT116: 15 | CU116: 1280 | CV116: 462
A117: 317 | B117: Kärsämäki | C117: 2658 | D117: 21.5 | G117: 2571 | H117: 19759 | I117: -17188 | J117: 6235 | K117: 476 | L117: 504 | M117: 7215 | N117: 10794 | O117: 1 | P117: 101 | Q117: 384 | R117: 63 | S117: 1041 | U117: 513 | V117: 0 | W117: 0 | X117: 528 | Y117: 0 | Z117: 55 | AA117: 0 | AB117: 583 | AD117: 3219 | AG117: -741 | AJ117: 8746 | AL117: 12910 | AO117: 2655 | AP117: 21.5 | AS117: 3067 | AT117: 20065 | AU117: -16998 | AV117: 6065 | AW117: 500 | AX117: 498 | AY117: 7063 | AZ117: 11223 | BA117: 0 | BB117: 69 | BC117: 314 | BD117: 94 | BE117: 1439 | BG117: 583 | BH117: 0 | BI117: 0 | BJ117: 856 | BK117: 0 | BL117: 55 | BM117: 35 | BN117: 946 | BP117: 4167 | BV117: 8860 | BX117: 11828 | CC117: 21.5 | CD117: 9.03 | CI117: 9676 | CJ117: 0 | CK117: 11174.81898 | CL117: 11185.86669 | CN117: 11185.86669 | CP117: 10794 | CQ117: 85.9839601 | CR117: -149 | CS117: -238 | CT117: 0 | CU117: 152 | CV117: 0
A118: 398 | B118: Lahti | C118: 118743 | D118: 20.25 | G118: 121803 | H118: 653297 | I118: -531494 | J118: 336774 | K118: 23485 | L118: 32374 | M118: 392633 | N118: 157685 | O118: 9212 | P118: 13451 | Q118: 21667 | R118: 962 | S118: 24686 | U118: 37509 | V118: 8185 | W118: 0 | X118: -4638 | Y118: 451 | Z118: 0 | AA118: 1184 | AB118: -3003 | AD118: 120814 | AG118: -74132 | AJ118: 91715 | AL118: 689685 | AO118: 119452 | AP118: 20.25 | AS118: 130722 | AT118: 739180 | AU118: -608458 | AV118: 390502 | AW118: 22132 | AX118: 36543 | AY118: 449177 | AZ118: 193429 | BA118: 8902 | BB118: 13929 | BC118: 12113 | BD118: 2548 | BE118: 38686 | BG118: 49416 | BH118: 1600 | BI118: 689 | BJ118: -9819 | BK118: 533 | BL118: 0 | BM118: 0 | BN118: -9286 | BP118: 137950 | BV118: 54499 | BX118: 744458 | CC118: 20.25 | CD118: 7.78 | CI118: 134371 | CJ118: 0 | CK118: 189230.0761 | CL118: 185476.5291 | CN118: 185476.5291 | CP118: 157685 | CQ118: -3867.524904 | CR118: -5551 | CS118: -63551 | CT118: 444 | CU118: 23504 | CV118: -39027
A119: 399 | B119: Laihia | C119: 8090 | D119: 21.5 | G119: 7019 | H119: 49366 | I119: -42347 | J119: 27383 | K119: 1090 | L119: 1352 | M119: 29825 | N119: 13595 | O119: 13 | P119: 155 | Q119: 62 | R119: 13 | S119: 971 | U119: 1976 | V119: 0 | W119: 0 | X119: -1005 | Y119: 102 | Z119: 0 | AA119: 0 | AB119: -903 | AD119: 764 | AG119: -2256 | AJ119: 1168 | AL119: 19312 | AO119: 8139 | AP119: 21.5 | AS119: 6595 | AT119: 50706 | AU119: -44111 | AV119: 27054 | AW119: 933 | AX119: 1227 | AY119: 29214 | AZ119: 14938 | BA119: 6 | BB119: 158 | BC119: 51 | BD119: 8 | BE119: -68 | BG119: 1721 | BH119: 0 | BI119: 0 | BJ119: -1789 | BK119: 102 | BL119: 0 | BM119: 0 | BN119: -1687 | BP119: -1114 | BV119: 954 | BX119: 23227 | CC119: 21.75 | CD119: 9.28 | CI119: 12512 | CJ119: 0 | CK119: 15122.84175 | CL119: 14812.87557 | CN119: 14812.87557 | CP119: 13595 | CQ119: -117.6006545 | CR119: -77 | CS119: -4641 | CT119: 239 | CU119: 330 | CV119: 83
A120: 400 | B120: Laitila | C120: 8520 | D120: 20.75 | G120: 10096 | H120: 55974 | I120: -45878 | J120: 25205 | K120: 2160 | L120: 1890 | M120: 29255 | N120: 19164 | O120: 0 | P120: 24 | Q120: 93 | R120: 2 | S120: 2571 | U120: 2250 | V120: 0 | W120: 0 | X120: 321 | Y120: 149 | Z120: 0 | AA120: 0 | AB120: 470 | AD120: 5180 | AG120: -3554 | AJ120: 120 | AL120: 13425 | AO120: 8520 | AP120: 20.75 | AS120: 10500 | AT120: 56456 | AU120: -45956 | AV120: 24978 | AW120: 1928 | AX120: 1778 | AY120: 28684 | AZ120: 20487 | BA120: 0 | BB120: 13 | BC120: 48 | BD120: 1 | BE120: 3249 | BG120: 2368 | BH120: 0 | BI120: 0 | BJ120: 881 | BK120: 149 | BL120: 0 | BM120: 0 | BN120: 1030 | BP120: 6210 | BV120: 352 | BX120: 15545 | CC120: 20.75 | CD120: 8.28 | CI120: 15878 | CJ120: 0 | CK120: 20468.16043 | CL120: 20053.66393 | CN120: 20053.66393 | CP120: 19164 | CQ120: 303.7892383 | CR120: -219 | CS120: -5284 | CT120: 617 | CU120: 492 | CV120: 0
A121: 407 | B121: Lapinjärvi | C121: 2774 | D121: 20.5 | G121: 3309 | H121: 18232 | I121: -14923 | J121: 7854 | K121: 417 | L121: 553 | M121: 8824 | N121: 6525 | O121: 2 | P121: 103 | Q121: 1556 | R121: 1 | S121: 1117 | U121: 733 | V121: 18 | W121: 0 | X121: 402 | Y121: 0 | Z121: 0 | AA121: 0 | AB121: 402 | AD121: 2796 | AG121: -139 | AJ121: 568 | AL121: 5117 | AO121: 2739 | AP121: 20.5 | AS121: 2371 | AT121: 18441 | AU121: -16070 | AV121: 7551 | AW121: 406 | AX121: 545 | AY121: 8502 | AZ121: 6589 | BA121: 1 | BB121: 74 | BC121: 810 | BD121: 1 | BE121: -243 | BG121: 781 | BH121: 0 | BI121: 0 | BJ121: -1024 | BK121: 0 | BL121: 0 | BM121: 0 | BN121: -1024 | BP121: 1674 | BV121: 187 | BX121: 5642 | CC121: 20.5 | CD121: 8.03 | CI121: 6931 | CJ121: 0 | CK121: 6800.818666 | CL121: 6582.766835 | CN121: 6582.766835 | CP121: 6525 | CQ121: -311.8335016 | CR121: -38 | CS121: -603 | CT121: 0 | CU121: 47 | CV121: 0
A122: 402 | B122: Lapinlahti | C122: 9982 | D122: 20.25 | G122: 8144 | H122: 67208 | I122: -59064 | J122: 25822 | K122: 2008 | L122: 2228 | M122: 30058 | N122: 29995 | O122: 500 | P122: 227 | Q122: 1370 | R122: 7 | S122: 1985 | U122: 2989 | V122: 0 | W122: 0 | X122: -1004 | Y122: 59 | Z122: 0 | AA122: 0 | AB122: -945 | AD122: 1356 | AG122: -3207 | AJ122: 1512 | AL122: 29100 | AO122: 9882 | AP122: 20.25 | AS122: 8174 | AT122: 68026 | AU122: -59852 | AV122: 25300 | AW122: 1707 | AX122: 2223 | AY122: 29230 | AZ122: 31242 | BA122: 584 | BB122: 227 | BC122: 415 | BD122: 2 | BE122: 1390 | BG122: 3113 | BH122: 0 | BI122: 0 | BJ122: -1723 | BK122: 59 | BL122: 0 | BM122: 0 | BN122: -1664 | BP122: -308 | BV122: 196 | BX122: 30508 | CC122: 20.25 | CD122: 7.78 | CI122: 27251 | CJ122: 0 | CK122: 31099.25926 | CL122: 29858.92902 | CN122: 29858.92902 | CP122: 29995 | CQ122: 1.90522026 | CR122: 56 | CS122: -5005 | CT122: 49 | CU122: 88 | CV122: 19
A123: 403 | B123: Lappajärvi | C123: 3215 | D123: 21 | G123: 1862 | H123: 20591 | I123: -18729 | J123: 8254 | K123: 1116 | L123: 923 | M123: 10293 | N123: 10091 | O123: 0 | P123: 105 | Q123: 18 | R123: 1 | S123: 1566 | U123: 1122 | V123: 0 | W123: 0 | X123: 444 | Y123: 0 | Z123: 0 | AA123: 26 | AB123: 470 | AD123: 91 | AG123: -2828 | AJ123: 409 | AL123: 10712 | AO123: 3176 | AP123: 21 | AS123: 2189 | AT123: 21116 | AU123: -18927 | AV123: 8424 | AW123: 1003 | AX123: 927 | AY123: 10354 | AZ123: 10793 | BA123: 0 | BB123: 96 | BC123: 17 | BD123: 1 | BE123: 2140 | BG123: 1203 | BH123: 0 | BI123: 0 | BJ123: 937 | BK123: 27 | BL123: 0 | BM123: 0 | BN123: 964 | BP123: 1054 | BV123: 863 | BX123: 10899 | CC123: 21 | CD123: 8.53 | CI123: 8898 | CJ123: 0 | CK123: 10748.97287 | CL123: 10767.56218 | CN123: 10767.56218 | CP123: 10091 | CQ123: -31.13105 | CR123: 1 | CS123: -1296 | CT123: 180 | CU123: 5 | CV123: 0
A124: 405 | B124: Lappeenranta | C124: 72875 | D124: 21 | G124: 65400 | H124: 447020 | I124: -381620 | J124: 249786 | K124: 23032 | L124: 24144 | M124: 296962 | N124: 99980 | O124: 8514 | P124: 3440 | Q124: 13986 | R124: 1048 | S124: 26728 | U124: 22092 | V124: 0 | W124: 0 | X124: 4636 | Y124: -119 | Z124: 158 | AA124: 0 | AB124: 4675 | AD124: 56791 | AG124: -24149 | AJ124: 29546 | AL124: 233160 | AO124: 72872 | AP124: 21 | AS124: 73990 | AT124: 463086 | AU124: -389096 | AV124: 250126 | AW124: 21482 | AX124: 24813 | AY124: 296421 | AZ124: 108074 | BA124: 8321 | BB124: 3068 | BC124: 7311 | BD124: 1107 | BE124: 26856 | BG124: 23364 | BH124: 0 | BI124: 0 | BJ124: 3492 | BK124: -117 | BL124: 144 | BM124: 0 | BN124: 3519 | BP124: 60310 | BV124: 31648 | BX124: 226973 | CC124: 21 | CD124: 8.53 | CI124: 90361 | CJ124: 0 | CK124: 104931.1215 | CL124: 103306.1033 | CN124: 103306.1033 | CP124: 99980 | CQ124: -2233.984072 | CR124: -576 | CS124: -33199 | CT124: 1946 | CU124: 14452 | CV124: -5
A125: 408 | B125: Lapua | C125: 14609 | D125: 21 | G125: 13427 | H125: 90304 | I125: -76877 | J125: 43150 | K125: 2520 | L125: 2763 | M125: 48433 | N125: 33586 | O125: 55 | P125: 513 | Q125: 356 | R125: 22 | S125: 4974 | U125: 4587 | V125: 0 | W125: 0 | X125: 387 | Y125: 0 | Z125: 0 | AA125: 0 | AB125: 387 | AD125: 11918 | AG125: -6652 | AJ125: 4908 | AL125: 46139 | AO125: 14575 | AP125: 21 | AS125: 13371 | AT125: 90351 | AU125: -76980 | AV125: 43199 | AW125: 2207 | AX125: 2851 | AY125: 48257 | AZ125: 36777 | BA125: 53 | BB125: 468 | BC125: 249 | BD125: 21 | BE125: 7867 | BG125: 4991 | BH125: 0 | BI125: 0 | BJ125: 2876 | BK125: 0 | BL125: 0 | BM125: 0 | BN125: 2876 | BP125: 14793 | BV125: 6231 | BX125: 45907 | CC125: 21 | CD125: 8.53 | CI125: 30856 | CJ125: 0 | CK125: 36472.22633 | CL125: 35211.74808 | CN125: 35211.74808 | CP125: 33586 | CQ125: -71.8504634 | CR125: -594 | CS125: -6754 | CT125: 33 | CU125: 1032 | CV125: 85
A126: 410 | B126: Laukaa | C126: 18865 | D126: 21.5 | G126: 15166 | H126: 108734 | I126: -93568 | J126: 58328 | K126: 2224 | L126: 4754 | M126: 65306 | N126: 33063 | O126: 242 | P126: 84 | Q126: 816 | R126: 1 | S126: 5417 | U126: 7411 | V126: 10349 | W126: 0 | X126: 8355 | Y126: 0 | Z126: 0 | AA126: 0 | AB126: 8355 | AD126: 7118 | AG126: -8490 | AJ126: 896 | AL126: 73969 | AO126: 18970 | AP126: 21.5 | AS126: 13193 | AT126: 112287 | AU126: -99094 | AV126: 59865 | AW126: 2057 | AX126: 4824 | AY126: 66746 | AZ126: 36145 | BA126: 594 | BB126: 48 | BC126: 275 | BD126: 1 | BE126: 4617 | BG126: 5155 | BH126: 0 | BI126: 0 | BJ126: -538 | BK126: 0 | BL126: 0 | BM126: 0 | BN126: -538 | BP126: 6580 | BV126: 1487 | BX126: 80958 | CC126: 21.5 | CD126: 9.03 | CI126: 29357 | CJ126: 0 | CK126: 37051.6239 | CL126: 35732.11199 | CN126: 35732.11199 | CP126: 33063 | CQ126: -52.22171375 | CR126: -511 | CS126: -13024 | CT126: 10 | CU126: 920 | CV126: 552
A127: 416 | B127: Lemi | C127: 3073 | D127: 21 | G127: 1918 | H127: 17475 | I127: -15557 | J127: 9088 | K127: 513 | L127: 784 | M127: 10385 | N127: 5883 | O127: 6 | P127: 79 | Q127: 6 | R127: 2 | S127: 642 | U127: 630 | V127: 0 | W127: 0 | X127: 12 | Y127: 0 | Z127: 0 | AA127: 0 | AB127: 12 | AD127: -127 | AG127: -663 | AJ127: 802 | AL127: 4247 | AO127: 3076 | AP127: 21 | AS127: 1902 | AT127: 18026 | AU127: -16124 | AV127: 9579 | AW127: 486 | AX127: 813 | AY127: 10878 | AZ127: 6190 | BA127: 5 | BB127: 69 | BC127: 14 | BD127: 1 | BE127: 893 | BG127: 597 | BH127: 0 | BI127: 0 | BJ127: 296 | BK127: 0 | BL127: 0 | BM127: 0 | BN127: 296 | BP127: 169 | BV127: 1052 | BX127: 4117 | CC127: 21 | CD127: 8.53 | CI127: 5553 | CJ127: 0 | CK127: 6011.972607 | CL127: 6025.769338 | CN127: =CL127-CM127 -> 6025.769338 | CP127: 5883 | CQ127: -117.7749884 | CR127: -26 | CS127: -1125 | CT127: 2 | CU127: 92 | CV127: -2
A128: 418 | B128: Lempäälä | C128: 22536 | D128: 20.5 | G128: 25421 | H128: 133313 | I128: -107892 | J128: 79515 | K128: 3812 | L128: 5221 | M128: 88548 | N128: 24937 | O128: 12 | P128: 570 | Q128: 369 | R128: 4 | S128: 5350 | U128: 10285 | V128: 0 | W128: 0 | X128: -4935 | Y128: 125 | Z128: 0 | AA128: 0 | AB128: -4810 | AD128: 13156 | AG128: -16711 | AJ128: 3128 | AL128: 78146 | AO128: 22745 | AP128: 20.5 | AS128: 26640 | AT128: 132229 | AU128: -105589 | AV128: 83808 | AW128: 3901 | AX128: 5243 | AY128: 92952 | AZ128: 26429 | BA128: 10 | BB128: 533 | BC128: 201 | BD128: 8 | BE128: 13462 | BG128: 11523 | BH128: 0 | BI128: 0 | BJ128: 1939 | BK128: 103 | BL128: 0 | BM128: 0 | BN128: 2042 | BP128: 15198 | BV128: 3063 | BX128: 73892 | CC128: 20.5 | CD128: 8.03 | CI128: 21852 | CJ128: 0 | CK128: 23115.00888 | CL128: 21470.62581 | CN128: 21470.62581 | CP128: 24937 | CQ128: -462.6323078 | CR128: -2248 | CS128: -8853 | CT128: 225 | CU128: 2705 | CV128: 8
A129: 420 | B129: Leppävirta | C129: 9953 | D129: 20 | G129: 10112 | H129: 63405 | I129: -53293 | J129: 28481 | K129: 2342 | L129: 2275 | M129: 33098 | N129: 25103 | O129: 37 | P129: 175 | Q129: 1136 | R129: 2 | S129: 5416 | U129: 4235 | V129: 0 | W129: 0 | X129: 1181 | Y129: 84 | Z129: -1100 | AA129: 0 | AB129: 165 | AD129: 5330 | AG129: -2175 | AJ129: 7599 | AL129: 7975 | AO129: 9865 | AP129: 20 | AS129: 9946 | AT129: 64972 | AU129: -55026 | AV129: 28524 | AW129: 2317 | AX129: 2346 | AY129: 33187 | AZ129: 25992 | BA129: 53 | BB129: 151 | BC129: 364 | BD129: 2 | BE129: 4417 | BG129: 4407 | BH129: 0 | BI129: 0 | BJ129: 10 | BK129: 83 | BL129: 0 | BM129: 0 | BN129: 93 | BP129: 5397 | BV129: 7494 | BX129: 6662 | CC129: 20 | CD129: 7.53 | CI129: 21592 | CJ129: 0 | CK129: 25247.61934 | CL129: 24413.4058 | CN129: 24413.4058 | CP129: 25103 | CQ129: -224.3303463 | CR129: -70 | CS129: -2916 | CT129: 8 | CU129: 102 | CV129: 0
A130: 421 | B130: Lestijärvi | C130: 798 | D130: 20 | G130: 1704 | H130: 6850 | I130: -5146 | J130: 1876 | K130: 340 | L130: 232 | M130: 2448 | N130: 3150 | O130: 9 | P130: 26 | Q130: 1 | R130: 1 | S130: 435 | U130: 285 | V130: 0 | W130: 0 | X130: 150 | Y130: 0 | Z130: 0 | AA130: 0 | AB130: 150 | AD130: 1952 | AG130: -41 | AJ130: 727 | AL130: 1770 | AO130: 811 | AP130: 21 | AS130: 1957 | AT130: 7253 | AU130: -5296 | AV130: 1681 | AW130: 330 | AX130: 245 | AY130: 2256 | AZ130: 3100 | BA130: 6 | BB130: 24 | BC130: 6 | BD130: 1 | BE130: 47 | BG130: 257 | BH130: 0 | BI130: 0 | BJ130: -210 | BK130: 0 | BL130: 0 | BM130: 0 | BN130: -210 | BP130: 1742 | BV130: 441 | BX130: 1767 | CC130: 21 | CD130: 8.53 | CI130: 2977 | CJ130: 130 | CK130: 3017.778163 | CL130: 2977.922817 | CN130: 2977.922817 | CP130: =N130-CO130 -> 3150 | CQ130: 23.659598 | CR130: 0 | CS130: -694 | CT130: 28 | CU130: 0 | CV130: 90
A131: 422 | B131: Lieksa | C131: 11772 | D131: 21 | G131: 14160 | H131: 86760 | I131: -72600 | J131: 33222 | K131: 4422 | L131: 3282 | M131: 40926 | N131: 38474 | O131: 184 | P131: 260 | Q131: 1124 | R131: 23 | S131: 7306 | U131: 4696 | V131: 0 | W131: 0 | X131: 2610 | Y131: -606 | Z131: -1300 | AA131: 0 | AB131: 704 | AD131: 10334 | AG131: -2386 | AJ131: 8738 | AL131: 15191 | AO131: 11580 | AP131: 21 | AS131: 13476 | AT131: 87662 | AU131: -74186 | AV131: 32192 | AW131: 3316 | AX131: 4303 | AY131: 39811 | AZ131: 40039 | BA131: 162 | BB131: 223 | BC131: 567 | BD131: 17 | BE131: 6153 | BG131: 4005 | BH131: 0 | BI131: 0 | BJ131: 2148 | BK131: 95 | BL131: 0 | BM131: 0 | BN131: 2243 | BP131: 12577 | BV131: 8795 | BX131: 12744 | CC131: 21 | CD131: 8.53 | CI131: 34065 | CJ131: 0 | CK131: 38724.91662 | CL131: 36975.78914 | CN131: 36975.78914 | CP131: 38474 | CQ131: 48.5021759 | CR131: -53 | CS131: -1997 | CT131: 22 | CU131: 101 | CV131: -704
A132: 423 | B132: Lieto | C132: 19263 | D132: 19.5 | G132: 29951 | H132: 117585 | I132: -87634 | J132: 65983 | K132: 3127 | L132: 3500 | M132: 72610 | N132: 21557 | O132: 38 | P132: 647 | Q132: 85 | R132: 5 | S132: 5988 | U132: 5486 | V132: 0 | W132: 0 | X132: 502 | Y132: 9 | Z132: 0 | AA132: 0 | AB132: 511 | AD132: 5224 | AG132: -4250 | AJ132: 2418 | AL132: 47416 | AO132: 19418 | AP132: 19.5 | AS132: 29237 | AT132: 118231 | AU132: -88994 | AV132: 69108 | AW132: 2697 | AX132: 3559 | AY132: 75364 | AZ132: 21424 | BA132: 44 | BB132: 506 | BC132: 163 | BD132: 23 | BE132: 7472 | BG132: 5717 | BH132: 0 | BI132: 0 | BJ132: 1755 | BK132: 9 | BL132: 0 | BM132: 0 | BN132: 1764 | BP132: 6988 | BV132: 5951 | BX132: 53687 | CC132: 19.5 | CD132: =CC132-$CD$1 -> 7.03 | CI132: 16925 | CJ132: 0 | CK132: 20083.25655 | CL132: 18964.18252 | CN132: 18964.18252 | CP132: 21557 | CQ132: -329.8235128 | CR132: -1626 | CS132: -12002 | CT132: 1294 | CU132: 2027 | CV132: 139
A133: 425 | B133: Liminka | C133: 9937 | D133: 20.5 | G133: 8103 | H133: 55705 | I133: -47602 | J133: 27755 | K133: 628 | L133: 1168 | M133: 29551 | N133: 24101 | O133: 3 | P133: 188 | Q133: 82 | R133: 1 | S133: 5914 | U133: 4043 | V133: 0 | W133: 0 | X133: 1871 | Y133: 640 | Z133: -2200 | AA133: 0 | AB133: 311 | AD133: 8770 | AG133: -942 | AJ133: 3507 | AL133: 19581 | AO133: 10000 | AP133: 20.5 | AS133: 8143 | AT133: 58793 | AU133: -50650 | AV133: 28187 | AW133: 622 | AX133: 1181 | AY133: 29990 | AZ133: 25231 | BA133: 2 | BB133: 166 | BC133: 17 | BD133: 0 | BE133: 4424 | BG133: 5610 | BH133: 0 | BI133: 0 | BJ133: -1186 | BK133: 641 | BL133: 0 | BM133: 0 | BN133: -545 | BP133: 8225 | BV133: 3557 | BX133: 17601 | CC133: 21 | CD133: 8.53 | CI133: 21999 | CJ133: 0 | CK133: 25133.43718 | CL133: 23477.36599 | CN133: 23477.36599 | CP133: 24101 | CQ133: -48.42746138 | CR133: -634 | CS133: -2988 | CT133: 170 | CU133: 812 | CV133: 13
A134: 426 | B134: Liperi | C134: 12338 | D134: 21.5 | G134: 14785 | H134: 76919 | I134: -62134 | J134: 36634 | K134: 1379 | L134: 2288 | M134: 40301 | N134: 25747 | O134: 53 | P134: 515 | Q134: 653 | R134: 0 | S134: 3792 | U134: 2439 | V134: 0 | W134: 0 | X134: 1353 | Y134: 119 | Z134: 0 | AA134: 0 | AB134: 1472 | AD134: 753 | AG134: -7115 | AJ134: 3101 | AL134: 32609 | AO134: 12301 | AP134: 21.5 | AS134: 14175 | AT134: 77648 | AU134: -63473 | AV134: 36586 | AW134: 1316 | AX134: 2381 | AY134: 40283 | AZ134: 27616 | BA134: 51 | BB134: 448 | BC134: 329 | BD134: 0 | BE134: 4358 | BG134: 3451 | BH134: 0 | BI134: 0 | BJ134: 907 | BK134: 119 | BL134: 0 | BM134: 0 | BN134: 1026 | BP134: 1780 | BV134: 3172 | BX134: 32958 | CC134: 21.5 | CD134: 9.03 | CI134: 24656 | CJ134: 0 | CK134: 27185.72705 | CL134: 26435.74297 | CN134: 26435.74297 | CP134: 25747 | CQ134: -737.7299252 | CR134: -73 | CS134: -2981 | CT134: 20 | CU134: 394 | CV134: -748
A135: 444 | B135: Lohja | C135: 47353 | D135: 20.5 | G135: 51530 | H135: 291963 | I135: -240433 | J135: 168554 | K135: 6700 | L135: 12222 | M135: 187476 | N135: 62222 | O135: 131 | P135: 1201 | Q135: 2599 | R135: 215 | S135: 9746 | U135: 13632 | V135: 0 | W135: 0 | X135: -3886 | Y135: 82 | Z135: 0 | AA135: 0 | AB135: -3804 | AD135: 6881 | AG135: -21754 | AJ135: 6881 | AL135: 107790 | AO135: 47149 | AP135: 20.5 | AS135: 49385 | AT135: 290733 | AU135: -241348 | AV135: 172144 | AW135: 5582 | AX135: 12405 | AY135: 190131 | AZ135: 69250 | BA135: 135 | BB135: 951 | BC135: 1543 | BD135: 205 | BE135: 18555 | BG135: 16924 | BH135: 0 | BI135: 0 | BJ135: 1631 | BK135: 82 | BL135: 0 | BM135: 0 | BN135: 1713 | BP135: 8594 | BV135: 6599 | BX135: 118856 | CC135: 20.5 | CD135: 8.03 | CI135: 42170 | CJ135: 0 | CK135: 68193.67889 | CL135: 65943.26622 | CN135: 65943.26622 | CP135: 62222 | CQ135: 1752.986935 | CR135: -2860 | CS135: -27189 | CT135: 48 | CU135: 3725 | CV135: -16
A136: 430 | B136: Loimaa | C136: 16467 | D136: 20.5 | G136: 16587 | H136: 107083 | I136: -90496 | J136: 46825 | K136: 3101 | L136: 4080 | M136: 54006 | N136: 41730 | O136: 4 | P136: 313 | Q136: 288 | R136: 38 | S136: 5079 | U136: 4050 | V136: 0 | W136: 0 | X136: 1029 | Y136: 76 | Z136: 177 | AA136: 0 | AB136: 1282 | AD136: 2876 | AG136: -2626 | AJ136: 5504 | AL136: 35563 | AO136: 16267 | AP136: 20.5 | AS136: 19292 | AT136: 114301 | AU136: -95009 | AV136: 46513 | AW136: 3001 | AX136: 4211 | AY136: 53725 | AZ136: 43827 | BA136: 2 | BB136: 291 | BC136: 186 | BD136: 12 | BE136: 2428 | BG136: 3964 | BH136: 0 | BI136: 0 | BJ136: -1536 | BK136: 71 | BL136: 0 | BM136: 0 | BN136: -1465 | BP136: 1411 | BV136: 3008 | BX136: 33709 | CC136: 20.5 | CD136: 8.03 | CI136: 37550 | CJ136: 0 | CK136: 42401.6307 | CL136: 40267.20862 | CN136: 40267.20862 | CP136: 41730 | CQ136: 556.623174 | CR136: -693 | CS136: -3145 | CT136: 12 | CU136: 886 | CV136: -36
A137: 433 | B137: Loppi | C137: 8175 | D137: 20.5 | G137: 5828 | H137: 46061 | I137: -40233 | J137: 24125 | K137: 1478 | L137: 2002 | M137: 27605 | N137: 15242 | O137: 11 | P137: 337 | Q137: 26 | R137: 2 | S137: 2309 | U137: 1770 | V137: 0 | W137: 0 | X137: 539 | Y137: 0 | Z137: 0 | AA137: 0 | AB137: 539 | AD137: 11240 | AG137: -4331 | AJ137: 1206 | AL137: 16144 | AO137: 8098 | AP137: 21.5 | AS137: 5585 | AT137: 46375 | AU137: -40790 | AV137: 25091 | AW137: 1450 | AX137: 2031 | AY137: 28572 | AZ137: 15986 | BA137: 22 | BB137: 326 | BC137: 20 | BD137: 0 | BE137: 3484 | BG137: 2248 | BH137: 0 | BI137: 0 | BJ137: 1236 | BK137: 0 | BL137: 0 | BM137: 0 | BN137: 1236 | BP137: 12477 | BV137: 1852 | BX137: 21328 | CC137: 21.5 | CD137: 9.03 | CI137: 14314 | CJ137: 0 | CK137: 16016.97421 | CL137: 14998.84283 | CN137: 14998.84283 | CP137: 15242 | CQ137: -83.08254624 | CR137: -760 | CS137: -8253 | CT137: 16 | CU137: 294 | CV137: 1000
A138: 434 | B138: Loviisa | C138: 15311 | D138: 19.75 | G138: 22212 | H138: 109442 | I138: -87230 | J138: 49304 | K138: 9103 | L138: 7425 | M138: 65832 | N138: 24732 | O138: 36 | P138: 345 | Q138: 3218 | R138: 32 | S138: 4671 | U138: 4070 | V138: 0 | W138: 155 | X138: 446 | Y138: 198 | Z138: 0 | AA138: 0 | AB138: 644 | AD138: 16832 | AG138: -2168 | AJ138: 7741 | AL138: 32171 | AO138: 15208 | AP138: 19.75 | AS138: 22850 | AT138: 108748 | AU138: -85898 | AV138: 49366 | AW138: 8586 | AX138: 8001 | AY138: 65953 | AZ138: 26174 | BA138: 24 | BB138: 289 | BC138: 1712 | BD138: 20 | BE138: 7656 | BG138: 5468 | BH138: 0 | BI138: 130 | BJ138: 2058 | BK138: 666 | BL138: -2000 | BM138: 0 | BN138: 724 | BP138: 17367 | BV138: 7361 | BX138: 34440 | CC138: 19.75 | CD138: 7.28 | CI138: 22724 | CJ138: 0 | CK138: 25196.30385 | CL138: 23992.80336 | CN138: 23992.80336 | CP138: 24732 | CQ138: 171.8060387 | CR138: -543 | CS138: -11281 | CT138: 543 | CU138: 541 | CV138: 682
A139: 435 | B139: Luhanka | C139: 761 | D139: 19 | G139: 1010 | H139: 5654 | I139: -4644 | J139: 1810 | K139: 267 | L139: 445 | M139: 2522 | N139: 3051 | O139: 14 | P139: 12 | Q139: 17 | R139: 1 | S139: 947 | U139: 198 | V139: 6 | W139: 0 | X139: 755 | Y139: 0 | Z139: 0 | AA139: 0 | AB139: 755 | AD139: 2167 | AG139: -134 | AJ139: 1455 | AL139: 1336 | AO139: 756 | AP139: 18.5 | AS139: 930 | AT139: 6126 | AU139: -5196 | AV139: 1593 | AW139: 238 | AX139: 498 | AY139: 2329 | AZ139: 3088 | BA139: 18 | BB139: 11 | BC139: 10 | BD139: 1 | BE139: 237 | BG139: 203 | BH139: 68 | BI139: 0 | BJ139: 102 | BK139: 0 | BL139: 0 | BM139: 0 | BN139: 102 | BP139: 2268 | BV139: 1457 | BX139: 1231 | CC139: 18.5 | CD139: 6.03 | CI139: 2731 | CJ139: 0 | CK139: 3207.989411 | CL139: 3058.346298 | CN139: 3058.346298 | CP139: 3051 | CQ139: -54.5415996 | CR139: 0 | CS139: -535 | CT139: -1 | CU139: -8 | CV139: -37
A140: 436 | B140: Lumijoki | C140: 2076 | D140: 20.5 | G140: 1857 | H140: 12756 | I140: -10899 | J140: 5039 | K140: 145 | L140: 255 | M140: 5439 | N140: 6004 | O140: 1 | P140: 54 | Q140: 27 | R140: 0 | S140: 506 | U140: 623 | V140: 0 | W140: 0 | X140: -117 | Y140: 88 | Z140: 0 | AA140: 0 | AB140: -29 | AD140: 304 | AG140: -148 | AJ140: 164 | AL140: 5322 | AO140: 2105 | AP140: 20.75 | AS140: 1670 | AT140: 12684 | AU140: -11014 | AV140: 4942 | AW140: 132 | AX140: 291 | AY140: 5365 | AZ140: 6211 | BA140: 2 | BB140: 34 | BC140: 2 | BD140: 0 | BE140: 532 | BG140: 571 | BH140: 0 | BI140: 0 | BJ140: -39 | BK140: 85 | BL140: 0 | BM140: 0 | BN140: 46 | BP140: 373 | BV140: 81 | BX140: 4905 | CC140: 20.75 | CD140: 8.28 | CI140: 4969 | CJ140: 0 | CK140: 6288.875618 | CL140: 6096.8641 | CN140: 6096.8641 | CP140: 6004 | CQ140: 3.02593806 | CR140: -44 | CS140: -230 | CT140: 0 | CU140: 51 | CV140: 0
A141: 440 | B141: Luoto | C141: 5147 | D141: 20 | G141: 3064 | H141: 27922 | I141: -24858 | J141: 13624 | K141: 316 | L141: 989 | M141: 14929 | N141: 13007 | O141: 16 | P141: 47 | Q141: 324 | R141: 262 | S141: 3097 | U141: 1124 | V141: 0 | W141: 0 | X141: 1973 | Y141: 0 | Z141: 0 | AA141: 0 | AB141: 1973 | AD141: 13190 | AG141: -1237 | AJ141: 7816 | AL141: 10933 | AO141: 5176 | AP141: 19.5 | AS141: 3058 | AT141: 28933 | AU141: -25875 | AV141: 13618 | AW141: 283 | AX141: 998 | AY141: 14899 | AZ141: 13703 | BA141: 76 | BB141: 29 | BC141: 365 | BD141: 26 | BE141: 3113 | BG141: 1259 | BH141: 0 | BI141: 0 | BJ141: 1854 | BK141: 0 | BL141: 0 | BM141: 0 | BN141: 1854 | BP141: 15044 | BV141: 8620 | BX141: 13183 | CC141: 19.5 | CD141: 7.03 | CI141: 10541 | CJ141: 0 | CK141: 13722.61996 | CL141: 13091.00871 | CN141: 13091.00871 | CP141: 13007 | CQ141: -301.4108261 | CR141: -201 | CS141: -3786 | CT141: 114 | CU141: 256 | CV141: 0
A142: 441 | B142: Luumäki | C142: 4860 | D142: 19.75 | G142: 3397 | H142: 31663 | I142: -28266 | J142: 13702 | K142: 1943 | L142: 1325 | M142: 16970 | N142: 11497 | O142: 248 | P142: 9 | Q142: 693 | R142: 74 | S142: 719 | U142: 1819 | V142: 0 | W142: 0 | X142: -1100 | Y142: 144 | Z142: 469 | AA142: 0 | AB142: -487 | AD142: 15346 | AG142: -2682 | AJ142: 17047 | AL142: 2819 | AO142: 4831 | AP142: 19.75 | AS142: 3081 | AT142: 31985 | AU142: -28904 | AV142: 13196 | AW142: 1905 | AX142: 1343 | AY142: 16444 | AZ142: 11962 | BA142: 162 | BB142: 26 | BC142: 446 | BD142: 53 | BE142: 31 | BG142: 1828 | BH142: 0 | BI142: 0 | BJ142: -1797 | BK142: 480 | BL142: 220 | BM142: 0 | BN142: -1097 | BP142: 14249 | BV142: 15214 | BX142: 2809 | CC142: 19.75 | CD142: 7.28 | CI142: 10655 | CJ142: 0 | CK142: 12066.31907 | CL142: 11380.25129 | CN142: 11380.25129 | CP142: 11497 | CQ142: -29.28809184 | CR142: -2 | CS142: -2922 | CT142: 333 | CU142: 147 | CV142: 0
A143: 475 | B143: Maalahti | C143: 5545 | D143: 21.5 | G143: 8556 | H143: 42125 | I143: -33569 | J143: 16988 | K143: 1079 | L143: 1319 | M143: 19386 | N143: 15659 | O143: 16 | P143: 88 | Q143: 66 | R143: 19 | S143: 1447 | U143: 1421 | V143: 0 | W143: 0 | X143: 26 | Y143: 23 | Z143: 0 | AA143: 0 | AB143: 49 | AD143: 2791 | AG143: -5390 | AJ143: 1146 | AL143: 16014 | AO143: 5517 | AP143: 21.5 | AS143: 8683 | AT143: 42289 | AU143: -33606 | AV143: 16991 | AW143: 925 | AX143: 1332 | AY143: 19248 | AZ143: 16833 | BA143: 14 | BB143: 84 | BC143: 45 | BD143: 13 | BE143: 2437 | BG143: 2433 | BH143: 0 | BI143: 0 | BJ143: 4 | BK143: 23 | BL143: 0 | BM143: 0 | BN143: 27 | BP143: 3027 | BV143: 538 | BX143: 18416 | CC143: 21.5 | CD143: 9.03 | CI143: 14643 | CJ143: 0 | CK143: 16510.26141 | CL143: 15901.05984 | CN143: 15901.05984 | CP143: 15659 | CQ143: 688.6561833 | CR143: -117 | CS143: -6283 | CT143: 719 | CU143: 152 | CV143: -59
A144: 480 | B144: Marttila | C144: 2028 | D144: 20.25 | G144: 2032 | H144: 12550 | I144: -10518 | J144: 5599 | K144: 254 | L144: 358 | M144: 6211 | N144: 4797 | O144: 3 | P144: 27 | Q144: 4 | R144: 0 | S144: 470 | U144: 424 | V144: 0 | W144: 0 | X144: 46 | Y144: 12 | Z144: 0 | AA144: 0 | AB144: 58 | AD144: 2439 | AG144: -281 | AJ144: 624 | AL144: 2144 | AO144: 2021 | AP144: 20.25 | AS144: 2006 | AT144: 12231 | AU144: -10225 | AV144: 5454 | AW144: 255 | AX144: 370 | AY144: 6079 | AZ144: 5050 | BA144: 3 | BB144: 22 | BC144: 3 | BD144: 1 | BE144: 887 | BG144: 423 | BH144: 0 | BI144: 0 | BJ144: 464 | BK144: 0 | BL144: -400 | BM144: 0 | BN144: 64 | BP144: 2503 | BV144: 951 | BX144: 2436 | CC144: 20.25 | CD144: 7.78 | CI144: 4007 | CJ144: 0 | CK144: 5036.789031 | CL144: 4544.548228 | CN144: 4544.548228 | CP144: 4797 | CQ144: -788.238186 | CR144: -17 | CS144: -982 | CT144: 283 | CU144: 34 | CV144: 0
A145: 481 | B145: Masku | C145: 9706 | D145: 20.75 | G145: 8246 | H145: 52218 | I145: -43972 | J145: 35982 | K145: 1665 | L145: 1831 | M145: 39478 | N145: 8367 | O145: 11 | P145: 125 | Q145: 41 | R145: 11 | S145: 3789 | U145: 2571 | V145: 5828 | W145: 0 | X145: 7046 | Y145: 86 | Z145: 0 | AA145: 0 | AB145: 7132 | AD145: 3391 | AG145: 1642 | AJ145: 545 | AL145: 30150 | AO145: 9675 | AP145: 20.75 | AS145: 5376 | AT145: 51915 | AU145: -46539 | AV145: 35859 | AW145: 1443 | AX145: 1862 | AY145: 39164 | AZ145: 8681 | BA145: 96 | BB145: 85 | BC145: 22 | BD145: 62 | BE145: 1277 | BG145: 4319 | BH145: 0 | BI145: 0 | BJ145: -3042 | BK145: 86 | BL145: 0 | BM145: 0 | BN145: -2956 | BP145: 435 | BV145: 577 | BX145: 32483 | CC145: 20.75 | CD145: 8.28 | CI145: 9002 | CJ145: 0 | CK145: 8632.209783 | CL145: 7468.58164 | CN145: 7468.58164 | CP145: 8367 | CQ145: -62.53605324 | CR145: -714 | CS145: -3678 | CT145: 49 | CU145: 1384 | CV145: 0
A146: 483 | B146: Merijärvi | C146: 1134 | D146: 21 | G146: 1593 | H146: 8185 | I146: -6592 | J146: 2489 | K146: 104 | L146: 189 | M146: 2782 | N146: 3917 | O146: 1 | P146: 31 | Q146: 174 | R146: 13 | S146: 238 | U146: 400 | V146: 0 | W146: 0 | X146: -162 | Y146: 0 | Z146: 0 | AA146: 0 | AB146: -162 | AD146: 3060 | AG146: -105 | AJ146: 2630 | AL146: 2757 | AO146: 1131 | AP146: 21.5 | AS146: 1454 | AT146: 7870 | AU146: -6416 | AV146: 2178 | AW146: 108 | AX146: 198 | AY146: 2484 | AZ146: 4039 | BA146: 1 | BB146: 25 | BC146: 157 | BD146: 10 | BE146: 230 | BG146: 384 | BH146: 0 | BI146: 0 | BJ146: -154 | BK146: 0 | BL146: 0 | BM146: 0 | BN146: -154 | BP146: 2907 | BV146: 3074 | BX146: 2781 | CC146: 21.5 | CD146: 9.03 | CI146: 3996 | CJ146: 0 | CK146: 4302.532821 | CL146: 4196.345852 | CN146: 4196.345852 | CP146: 3917 | CQ146: 72.224036 | CR146: -1 | CS146: -102 | CT146: 0 | CU146: 22 | CV146: 1
A147: 484 | B147: Merikarvia | C147: 3185 | D147: 19.5 | G147: 3531 | H147: 24141 | I147: -20610 | J147: 8346 | K147: 720 | L147: 986 | M147: 10052 | N147: 12559 | O147: 16 | P147: 14 | Q147: 139 | R147: 0 | S147: 2076 | U147: 1137 | V147: 0 | W147: 0 | X147: 939 | Y147: 0 | Z147: 0 | AA147: 0 | AB147: 939 | AD147: 7473 | AG147: -1264 | AJ147: 3543 | AL147: 1431 | AO147: 3169 | AP147: 19.5 | AS147: 3714 | AT147: 23975 | AU147: -20261 | AV147: 7406 | AW147: 696 | AX147: 998 | AY147: 9100 | AZ147: 12486 | BA147: 11 | BB147: 6 | BC147: 24 | BD147: 0 | BE147: 1354 | BG147: 1174 | BH147: 0 | BI147: 0 | BJ147: 180 | BK147: 0 | BL147: 0 | BM147: 0 | BN147: 180 | BP147: 7653 | BV147: 3379 | BX147: 1251 | CC147: 19.5 | CD147: 7.03 | CI147: 11004 | CJ147: 0 | CK147: 12334.32215 | CL147: 11705.7261 | CN147: 11705.7261 | CP147: 12559 | CQ147: 81.1897784 | CR147: 20 | CS147: -1340 | CT147: 50 | CU147: 160 | CV147: 14
A148: 489 | B148: Miehikkälä | C148: 2085 | D148: 20 | G148: 11570 | H148: 23696 | I148: -12126 | J148: 4886 | K148: 715 | L148: 440 | M148: 6041 | N148: 7630 | O148: 8 | P148: 70 | Q148: 19 | R148: 34 | S148: 1468 | U148: 666 | V148: 0 | W148: 0 | X148: 802 | Y148: 0 | Z148: 0 | AA148: 0 | AB148: 802 | AD148: 4811 | AG148: -3026 | AJ148: 1620 | AL148: 7638 | AO148: 2034 | AP148: 20 | AS148: 11573 | AT148: 23594 | AU148: -12021 | AV148: 4706 | AW148: 716 | AX148: 496 | AY148: 5918 | AZ148: 7645 | BA148: 9 | BB148: 51 | BC148: 29 | BD148: 10 | BE148: 1519 | BG148: 816 | BH148: 0 | BI148: 0 | BJ148: 703 | BK148: 0 | BL148: 0 | BM148: 0 | BN148: 703 | BP148: 7204 | BV148: 926 | BX148: 7073 | CC148: 20 | CD148: 7.53 | CI148: 6902 | CJ148: 0 | CK148: 7837.23274 | CL148: 7533.408421 | CN148: 7533.408421 | CP148: 7630 | CQ148: -1350.278163 | CR148: -196 | CS148: -1449 | CT148: 155 | CU148: 11 | CV148: -29
A149: 491 | B149: Mikkeli | C149: 54665 | D149: 20 | G149: 93949 | H149: 388856 | I149: -294907 | J149: 168949 | K149: 12366 | L149: 17988 | M149: 199303 | N149: 103615 | O149: 1861 | P149: 801 | Q149: 9068 | R149: 2541 | S149: 11620 | U149: 18160 | V149: 0 | W149: 0 | X149: -6540 | Y149: -43 | Z149: 0 | AA149: 0 | AB149: -6583 | AD149: 5865 | AG149: -24010 | AJ149: 7985 | AL149: 181555 | AO149: 54517 | AP149: 20 | AS149: 95328 | AT149: 389715 | AU149: -294387 | AV149: 169039 | AW149: 11378 | AX149: 18215 | AY149: 198632 | AZ149: 111476 | BA149: 1823 | BB149: 882 | BC149: 5083 | BD149: 2679 | BE149: 19066 | BG149: 17256 | BH149: 0 | BI149: 0 | BJ149: 1810 | BK149: 318 | BL149: 0 | BM149: 0 | BN149: 2128 | BP149: 7993 | BV149: 15546 | BX149: 200698 | CC149: 20.5 | CD149: 8.03 | CI149: 79610 | CJ149: 0 | CK149: 112621.5592 | CL149: 110846.0353 | CN149: 110846.0353 | CP149: 103615 | CQ149: 62.1375758 | CR149: -3605 | CS149: -28481 | CT149: 1285 | CU149: 3374 | CV149: 638
A150: 494 | B150: Muhos | C150: 9063 | D150: 20.5 | G150: 13946 | H150: 64298 | I150: -50352 | J150: 24169 | K150: 1243 | L150: 3363 | M150: 28775 | N150: 23766 | O150: 122 | P150: 527 | Q150: 68 | R150: 1 | S150: 1822 | U150: 2502 | V150: 0 | W150: 0 | X150: -680 | Y150: 29 | Z150: 0 | AA150: 0 | AB150: -651 | AD150: 2170 | AG150: -13933 | AJ150: 399 | AL150: 39226 | AO150: 8995 | AP150: 20.5 | AS150: 12999 | AT150: 63199 | AU150: -50200 | AV150: 24867 | AW150: 1209 | AX150: 3595 | AY150: 29671 | AZ150: 25615 | BA150: 123 | BB150: 461 | BC150: 8 | BD150: 0 | BE150: 4756 | BG150: 3041 | BH150: 0 | BI150: 0 | BJ150: 1715 | BK150: 27 | BL150: 0 | BM150: 0 | BN150: 1742 | BP150: 3912 | BV150: 997 | BX150: 41333 | CC150: 20.5 | CD150: 8.03 | CI150: 21009 | CJ150: 0 | CK150: 25186.62348 | CL150: 24440.04096 | CN150: 24440.04096 | CP150: 23766 | CQ150: 325.1700435 | CR150: -212 | CS150: -5641 | CT150: 449 | CU150: 279 | CV150: -56
A151: 495 | B151: Multia | C151: 1710 | D151: 21 | G151: 2270 | H151: 13556 | I151: -11286 | J151: 3937 | K151: 1023 | L151: 397 | M151: 5357 | N151: 6507 | O151: 1 | P151: 17 | Q151: 26 | R151: 0 | S151: 588 | U151: 368 | V151: 0 | W151: 0 | X151: 220 | Y151: 0 | Z151: 0 | AA151: 0 | AB151: 220 | AD151: -34 | AG151: -368 | AJ151: 326 | AL151: 1856 | AO151: 1663 | AP151: 21.75 | AS151: 1943 | AT151: 13173 | AU151: -11230 | AV151: 4252 | AW151: 932 | AX151: 404 | AY151: 5588 | AZ151: 6460 | BA151: 1 | BB151: 12 | BC151: 13 | BD151: 8 | BE151: 812 | BG151: 341 | BH151: 0 | BI151: 0 | BJ151: 471 | BK151: 0 | BL151: 0 | BM151: 0 | BN151: 471 | BP151: 436 | BV151: 990 | BX151: 1770 | CC151: 21.75 | CD151: 9.28 | CI151: 5826 | CJ151: 280 | CK151: 5885.677679 | CL151: 5582.111771 | CN151: 5582.111771 | CP151: 6507 | CQ151: 2.4282219 | CR151: -29 | CS151: -345 | CT151: 0 | CU151: 36 | CV151: -31
A152: 498 | B152: Muonio | C152: 2358 | D152: 21 | G152: 2555 | H152: 18593 | I152: -16038 | J152: 6863 | K152: 639 | L152: 902 | M152: 8404 | N152: 8532 | O152: 1 | P152: 119 | Q152: 17 | R152: 8 | S152: 789 | U152: 692 | V152: 0 | W152: 0 | X152: 97 | Y152: 30 | Z152: 0 | AA152: 0 | AB152: 127 | AD152: -1164 | AG152: -678 | AJ152: 367 | AL152: 8975 | AO152: 2350 | AP152: 21 | AS152: 2613 | AT152: 19045 | AU152: -16432 | AV152: 7044 | AW152: 575 | AX152: 921 | AY152: 8540 | AZ152: 8903 | BA152: 0 | BB152: 86 | BC152: 14 | BD152: 5 | BE152: 934 | BG152: 687 | BH152: 0 | BI152: 0 | BJ152: 247 | BK152: 30 | BL152: 0 | BM152: 0 | BN152: 277 | BP152: -887 | BV152: 622 | BX152: 9253 | CC152: 21.5 | CD152: 9.03 | CI152: 6889 | CJ152: 0 | CK152: 9072.19596 | CL152: 9071.932082 | CN152: 9071.932082 | CP152: 8532 | CQ152: 38.602502 | CR152: -17 | CS152: -1620 | CT152: 66 | CU152: 42 | CV152: 68
A153: 499 | B153: Mustasaari | C153: 19302 | D153: 20.75 | G153: 23713 | H153: 121304 | I153: -97591 | J153: 68148 | K153: 2504 | L153: 4500 | M153: 75152 | N153: 27621 | O153: 9 | P153: 565 | Q153: 266 | R153: 2 | S153: 4856 | U153: 7463 | V153: 0 | W153: 0 | X153: -2607 | Y153: 0 | Z153: 0 | AA153: 0 | AB153: -2607 | AD153: 1068 | AG153: -8469 | AJ153: 1947 | AL153: 67700 | AO153: 19380 | AP153: 20.75 | AS153: 24213 | AT153: 119793 | AU153: -95580 | AV153: 69120 | AW153: 2197 | AX153: 4598 | AY153: 75915 | AZ153: 30106 | BA153: 3 | BB153: 517 | BC153: 266 | BD153: 4 | BE153: 10189 | BG153: 7542 | BH153: 0 | BI153: 0 | BJ153: 2647 | BK153: 0 | BL153: 0 | BM153: 0 | BN153: 2647 | BP153: 3715 | BV153: 1130 | BX153: 67700 | CC153: 20.75 | CD153: 8.28 | CI153: 24207 | CJ153: 0 | CK153: 31550.96731 | CL153: 30866.46501 | CN153: 30866.46501 | CP153: 27621 | CQ153: -230.2576982 | CR153: -467 | CS153: -10045 | CT153: 160 | CU153: 520 | CV153: 114
A154: 500 | B154: Muurame | C154: 9791 | D154: 19.5 | G154: 8663 | H154: 50808 | I154: -42145 | J154: 32763 | K154: 2122 | L154: 1953 | M154: 36838 | N154: 8416 | O154: 4 | P154: 99 | Q154: 337 | R154: 1 | S154: 3201 | U154: 3427 | V154: 0 | W154: 0 | X154: -226 | Y154: 0 | Z154: 0 | AA154: 0 | AB154: -226 | AD154: 8273 | AG154: -7320 | AJ154: 220 | AL154: 23725 | AO154: 9941 | AP154: 19.5 | AS154: 8313 | AT154: 51787 | AU154: -43474 | AV154: 33671 | AW154: 1923 | AX154: 2094 | AY154: 37688 | AZ154: 9645 | BA154: 2 | BB154: 67 | BC154: 123 | BD154: 1 | BE154: 3916 | BG154: 3624 | BH154: 0 | BI154: 0 | BJ154: 292 | BK154: 0 | BL154: 0 | BM154: 0 | BN154: 292 | BP154: 8565 | BV154: 258 | BX154: 21445 | CC154: 19.5 | CD154: 7.03 | CI154: 9917 | CJ154: 0 | CK154: 9980.546595 | CL154: 9873.443881 | CN154: 9873.443881 | CP154: 8416 | CQ154: -157.6351848 | CR154: -885 | CS154: -3946 | CT154: 42 | CU154: 996 | CV154: 131
A155: 503 | B155: Mynämäki | C155: 7859 | D155: 20.5 | G155: 5976 | H155: 48240 | I155: -42264 | J155: 23585 | K155: 902 | L155: 1328 | M155: 25815 | N155: 16163 | O155: 4 | P155: 79 | Q155: 35 | R155: 7 | S155: -334 | U155: 1794 | V155: 0 | W155: 0 | X155: -2128 | Y155: 39 | Z155: 0 | AA155: 0 | AB155: -2089 | AD155: 877 | AG155: -1746 | AJ155: 2181 | AL155: 16429 | AO155: 7842 | AP155: 21 | AS155: 5357 | AT155: 47353 | AU155: -41996 | AV155: 24604 | AW155: 885 | AX155: 1581 | AY155: 27070 | AZ155: 16849 | BA155: 2 | BB155: 72 | BC155: 128 | BD155: 4 | BE155: 1977 | BG155: 1856 | BH155: 0 | BI155: 0 | BJ155: 121 | BK155: 35 | BL155: 0 | BM155: 0 | BN155: 156 | BP155: 1034 | BV155: 2325 | BX155: 16825 | CC155: 21 | CD155: 8.53 | CI155: 15376 | CJ155: 0 | CK155: 15850.42565 | CL155: 14942.46435 | CN155: 14942.46435 | CP155: 16163 | CQ155: 39.847744 | CR155: -36 | CS155: -1508 | CT155: 166 | CU155: 48 | CV155: 0
A156: 504 | B156: Myrskylä | C156: 1969 | D156: 21.5 | G156: 1099 | H156: 11126 | I156: -10027 | J156: 5522 | K156: 427 | L156: 400 | M156: 6349 | N156: 4413 | O156: 1 | P156: 20 | Q156: 550 | R156: 1 | S156: 990 | U156: 544 | V156: 0 | W156: 0 | X156: 446 | Y156: 0 | Z156: 0 | AA156: 0 | AB156: 446 | AD156: 1786 | AG156: -920 | AJ156: 605 | AL156: 3046 | AO156: 1986 | AP156: 21.5 | AS156: 1210 | AT156: 11885 | AU156: -10675 | AV156: 5586 | AW156: 403 | AX156: 385 | AY156: 6374 | AZ156: 4286 | BA156: 1 | BB156: 16 | BC156: 281 | BD156: 2 | BE156: 249 | BG156: 531 | BH156: 0 | BI156: 0 | BJ156: -282 | BK156: 0 | BL156: 0 | BM156: 0 | BN156: -282 | BP156: 1504 | BV156: 1811 | BX156: 2964 | CC156: 21.5 | CD156: 9.03 | CI156: 4291 | CJ156: 0 | CK156: 4256.124429 | CL156: 4266.148569 | CN156: 4266.148569 | CP156: 4413 | CQ156: -726.362111 | CR156: -32 | CS156: -107 | CT156: 89 | CU156: 2 | CV156: 1
A157: 505 | B157: Mäntsälä | C157: 20685 | D157: 20.5 | G157: 28252 | H157: 125834 | I157: -97582 | J157: 69507 | K157: 2560 | L157: 6799 | M157: 78866 | N157: 26307 | O157: 1705 | P157: 536 | Q157: 296 | R157: 8 | S157: 9047 | U157: 5773 | V157: 0 | W157: 0 | X157: 3274 | Y157: 22 | Z157: 0 | AA157: 0 | AB157: 3296 | AD157: 68779 | AG157: -15297 | AJ157: 68 | AL157: 54934 | AO157: 20853 | AP157: 20.5 | AS157: 29809 | AT157: 126940 | AU157: -97131 | AV157: 70565 | AW157: 2481 | AX157: 6730 | AY157: 79776 | AZ157: 29253 | BA157: 1707 | BB157: 483 | BC157: 299 | BD157: 2 | BE157: 13419 | BG157: 5873 | BH157: 0 | BI157: 0 | BJ157: 7546 | BK157: 22 | BL157: 0 | BM157: 0 | BN157: 7568 | BP157: 76348 | BV157: 337 | BX157: 57982 | CC157: 20.5 | CD157: 8.03 | CI157: 25311 | CJ157: 0 | CK157: 28834.32538 | CL157: 27587.88297 | CN157: 27587.88297 | CP157: 26307 | CQ157: 109.0084847 | CR157: -1076 | CS157: -14364 | CT157: 6 | CU157: 1232 | CV157: -39
A158: 508 | B158: Mänttä-Vilppula | C158: 10604 | D158: 22 | G158: 19360 | H158: 83641 | I158: -64281 | J158: 37316 | K158: 1514 | L158: 2887 | M158: 41717 | N158: 25371 | O158: 98 | P158: 287 | Q158: 413 | R158: 9 | S158: 2890 | U158: 2344 | V158: 0 | W158: 0 | X158: 546 | Y158: 4 | Z158: 0 | AA158: 0 | AB158: 550 | AD158: 648 | AG158: -8514 | AJ158: 278 | AL158: 35857 | AO158: 10448 | AP158: 22 | AS158: 20529 | AT158: 86633 | AU158: -66104 | AV158: 36201 | AW158: 1422 | AX158: 2896 | AY158: 40519 | AZ158: 26612 | BA158: 144 | BB158: 297 | BC158: 1783 | BD158: 8 | BE158: 2649 | BG158: 2624 | BH158: 0 | BI158: 0 | BJ158: 25 | BK158: 4 | BL158: 0 | BM158: 0 | BN158: 29 | BP158: 934 | BV158: 2733 | BX158: 42373 | CC158: 22 | CD158: 9.53 | CI158: 20512 | CJ158: 0 | CK158: 26751.98951 | CL158: 25379.6283 | CN158: 25379.6283 | CP158: 25371 | CQ158: 133.4276803 | CR158: 158 | CS158: -7720 | CT158: 1222 | CU158: 382 | CV158: 93
A159: 507 | B159: Mäntyharju | C159: 6159 | D159: 19.75 | G159: 7555 | H159: 43768 | I159: -36213 | J159: 16367 | K159: 2304 | L159: 2548 | M159: 21219 | N159: 18150 | O159: 9 | P159: 279 | Q159: 323 | R159: 16 | S159: 3044 | U159: 2197 | V159: 20 | W159: 0 | X159: 867 | Y159: 0 | Z159: 0 | AA159: 0 | AB159: 867 | AD159: 4997 | AG159: -3181 | AJ159: 1682 | AL159: 12298 | AO159: 6097 | AP159: 19.75 | AS159: 7412 | AT159: 43312 | AU159: -35900 | AV159: 15573 | AW159: 2011 | AX159: 2580 | AY159: 20164 | AZ159: 18642 | BA159: 21 | BB159: 308 | BC159: 173 | BD159: 13 | BE159: 2779 | BG159: 2453 | BH159: 66 | BI159: 0 | BJ159: 392 | BK159: 0 | BL159: 0 | BM159: 0 | BN159: 392 | BP159: 5389 | BV159: 1365 | BX159: 14810 | CC159: 19.75 | CD159: 7.28 | CI159: 15041 | CJ159: 0 | CK159: 18658.24323 | CL159: 17823.13778 | CN159: 17823.13778 | CP159: 18150 | CQ159: 261.5755345 | CR159: -166 | CS159: -4271 | CT159: 0 | CU159: 227 | CV159: -1436
A160: 529 | B160: Naantali | C160: 18961 | D160: 18.5 | G160: 25974 | H160: 114780 | I160: -88806 | J160: 67237 | K160: 7391 | L160: 6060 | M160: 80688 | N160: 16219 | O160: 660 | P160: 299 | Q160: 1400 | R160: 1 | S160: 9201 | U160: 8426 | V160: 0 | W160: 0 | X160: 775 | Y160: 70 | Z160: 0 | AA160: 0 | AB160: 845 | AD160: 43713 | AG160: -5899 | AJ160: 1555 | AL160: 30965 | AO160: 19068 | AP160: 18.5 | AS160: 24583 | AT160: 115823 | AU160: -91240 | AV160: 69760 | AW160: 7044 | AX160: 6211 | AY160: 83015 | AZ160: 17430 | BA160: 633 | BB160: 472 | BC160: 1186 | BD160: 18 | BE160: 10534 | BG160: 7932 | BH160: 336 | BI160: 0 | BJ160: 2938 | BK160: 70 | BL160: 1000 | BM160: 0 | BN160: 4008 | BP160: 47720 | BV160: 696 | BX160: 27849 | CC160: 19 | CD160: 6.53 | CI160: 15486 | CJ160: 0 | CK160: 16027.82428 | CL160: 13951.16667 | CN160: 13951.16667 | CP160: 16219 | CQ160: 0.73469278 | CR160: -1265 | CS160: -8983 | CT160: 60 | CU160: 1773 | CV160: -18
A161: 531 | B161: Nakkila | C161: 5651 | D161: 20.75 | G161: 3919 | H161: 32806 | I161: -28887 | J161: 17133 | K161: 677 | L161: 1258 | M161: 19068 | N161: 11026 | O161: 26 | P161: 59 | Q161: 59 | R161: 1 | S161: 1218 | U161: 1260 | V161: 0 | W161: 0 | X161: -42 | Y161: 33 | Z161: 0 | AA161: 0 | AB161: -9 | AD161: 1918 | AG161: -781 | AJ161: 3105 | AL161: 5450 | AO161: 5548 | AP161: 20.75 | AS161: 3939 | AT161: 32361 | AU161: -28422 | AV161: 17593 | AW161: 664 | AX161: 1295 | AY161: 19552 | AZ161: 11296 | BA161: 24 | BB161: 47 | BC161: 43 | BD161: 1 | BE161: 2445 | BG161: 1349 | BH161: 0 | BI161: 0 | BJ161: 1096 | BK161: 33 | BL161: 0 | BM161: 0 | BN161: 1129 | BP161: 3047 | BV161: 3965 | BX161: 4600 | CC161: 21.25 | CD161: 8.78 | CI161: 10072 | CJ161: 0 | CK161: 10694.70899 | CL161: 10555.4191 | CN161: 10555.4191 | CP161: 11026 | CQ161: -63.25455787 | CR161: -66 | CS161: -756 | CT161: 0 | CU161: 117 | CV161: 16
A162: 535 | B162: Nivala | C162: 10876 | D162: 21.5 | G162: 12312 | H162: 74416 | I162: -62104 | J162: 28234 | K162: 2412 | L162: 1307 | M162: 31953 | N162: 32260 | O162: 152 | P162: 162 | Q162: 956 | R162: 161 | S162: 2894 | U162: 2011 | V162: 0 | W162: 0 | X162: 883 | Y162: 2 | Z162: 125 | AA162: 0 | AB162: 1010 | AD162: 2588 | AG162: -2538 | AJ162: 15565 | AL162: 50014 | AO162: 10889 | AP162: 21.5 | AS162: 11164 | AT162: 74450 | AU162: -63286 | AV162: 27076 | AW162: 1035 | AX162: 2435 | AY162: 30546 | AZ162: 34898 | BA162: 132 | BB162: 102 | BC162: 1276 | BD162: 43 | BE162: 3421 | BG162: 2034 | BH162: 0 | BI162: 317 | BJ162: 1070 | BK162: 2 | BL162: 0 | BM162: 0 | BN162: 1072 | BP162: 3659 | BV162: 16859 | BX162: 50384 | CC162: 21.5 | CD162: 9.03 | CI162: 27461 | CJ162: 0 | CK162: 37021.86614 | CL162: 36292.08415 | CN162: 36292.08415 | CP162: 32260 | CQ162: -35.57656394 | CR162: -27 | CS162: -2845 | CT162: 6 | CU162: 34 | CV162: 533
A163: 536 | B163: Nokia | C163: 33162 | D163: 19.75 | G163: 27579 | H163: 184658 | I163: -157079 | J163: 110914 | K163: 6657 | L163: 7011 | M163: 124582 | N163: 40090 | O163: 491 | P163: 1098 | Q163: 1402 | R163: 112 | S163: 7989 | U163: 10603 | V163: 0 | W163: 5200 | X163: -7814 | Y163: 67 | Z163: 0 | AA163: 0 | AB163: -7747 | AD163: 12729 | AG163: -12622 | AJ163: 17258 | AL163: 66126 | AO163: 33210 | AP163: 19.75 | AS163: 31911 | AT163: 187439 | AU163: -155528 | AV163: 114099 | AW163: 5575 | AX163: 6924 | AY163: 126598 | AZ163: 40752 | BA163: 248 | BB163: 1044 | BC163: 795 | BD163: 48 | BE163: 11773 | BG163: 12273 | BH163: 2148 | BI163: 3015 | BJ163: -1367 | BK163: 67 | BL163: 0 | BM163: 0 | BN163: -1300 | BP163: 11546 | BV163: 23931 | BX163: 82221 | CC163: 20 | CD163: 7.53 | CI163: 32524 | CJ163: 0 | CK163: 39027.57507 | CL163: 38442.14788 | CN163: 38442.14788 | CP163: 40090 | CQ163: -616.6239145 | CR163: -10197 | CS163: -13717 | CT163: 272 | CU163: 4082 | CV163: 748
A164: 538 | B164: Nousiainen | C164: 4859 | D164: 21 | G164: 3287 | H164: 28051 | I164: -24764 | J164: 15947 | K164: 317 | L164: 858 | M164: 17122 | N164: 8117 | O164: 1 | P164: 75 | Q164: 64 | R164: 67 | S164: 397 | U164: 899 | V164: 615 | W164: 0 | X164: 113 | Y164: 33 | Z164: 0 | AA164: 0 | AB164: 146 | AD164: -764 | AG164: -1212 | AJ164: 22 | AL164: 9722 | AO164: 4815 | AP164: 21 | AS164: 3201 | AT164: 29072 | AU164: -25866 | AV164: 16254 | AW164: 877 | AX164: 353 | AY164: 17484 | AZ164: 8727 | BA164: 0 | BB164: 56 | BC164: 56 | BD164: 71 | BE164: 274 | BG164: 788 | BH164: 2276 | BI164: 0 | BJ164: 1762 | BK164: 0 | BL164: 0 | BM164: 0 | BN164: 1762 | BP164: 998 | BV164: 25 | BX164: 8842 | CC164: 21 | CD164: 8.53 | CI164: 8748 | CJ164: 0 | CK164: 8863.312337 | CL164: 8421.860095 | CN164: 8421.860095 | CP164: 8117 | CQ164: -99.29559708 | CR164: -2485 | CS164: -3252 | CT164: 134 | CU164: 5296 | CV164: -472
A165: 541 | B165: Nurmes | C165: 7996 | D165: 20.5 | G165: 8289 | H165: 56056 | I165: -47767 | J165: 21347 | K165: 2246 | L165: 1679 | M165: 25272 | N165: 27061 | O165: 73 | P165: 188 | Q165: 654 | R165: 458 | S165: 4336 | U165: 3876 | V165: 0 | W165: 0 | X165: 460 | Y165: 406 | Z165: -450 | AA165: -20 | AB165: 396 | AD165: 6516 | AG165: -3992 | AJ165: 3095 | AL165: 13263 | AO165: 7885 | AP165: 20.5 | AS165: 6434 | AT165: 55197 | AU165: -48763 | AV165: 20182 | AW165: 2304 | AX165: 1729 | AY165: 24215 | AZ165: 28783 | BA165: 57 | BB165: 136 | BC165: 332 | BD165: 29 | BE165: 4459 | BG165: 3927 | BH165: 0 | BI165: 0 | BJ165: 532 | BK165: 407 | BL165: -500 | BM165: 79 | BN165: 518 | BP165: 7033 | BV165: 2766 | BX165: 11366 | CC165: 20.5 | CD165: 8.03 | CI165: 24210 | CJ165: 0 | CK165: 29987.60574 | CL165: 29041.0337 | CN165: 29041.0337 | CP165: 27061 | CQ165: -90.8404039 | CR165: -96 | CS165: -2383 | CT165: 293 | CU165: 103 | CV165: -477
A166: 543 | B166: Nurmijärvi | C166: 41897 | D166: 19.5 | G166: 39616 | H166: 230828 | I166: -191212 | J166: 162221 | K166: 7060 | L166: 8137 | M166: 177418 | N166: 25775 | O166: 40 | P166: 702 | Q166: 4838 | R166: 181 | S166: 13747 | U166: 14019 | V166: 0 | W166: 0 | X166: -272 | Y166: 12 | Z166: 0 | AA166: 0 | AB166: -260 | AD166: 54361 | AG166: -19313 | AJ166: 10589 | AL166: 111565 | AO166: 42010 | AP166: 19.5 | AS166: 39139 | AT166: 231229 | AU166: -192090 | AV166: 167223 | AW166: 6303 | AX166: 8012 | AY166: 181538 | AZ166: 30273 | BA166: 31 | BB166: 1158 | BC166: 2096 | BD166: 8 | BE166: 20682 | BG166: 14575 | BH166: 0 | BI166: 0 | BJ166: 6107 | BK166: 12 | BL166: 0 | BM166: 0 | BN166: 6119 | BP166: 60480 | BV166: 15093 | BX166: 132362 | CC166: 19.5 | CD166: 7.03 | CI166: 27250 | CJ166: 0 | CK166: 29799.36456 | CL166: 27968.2403 | CN166: 27968.2403 | CP166: 25775 | CQ166: -502.1313841 | CR166: -1811 | CS166: -34367 | CT166: 504 | CU166: 3703 | CV166: -1916
A167: 545 | B167: Närpiö | C167: 9387 | D167: 21 | G167: 9315 | H167: 61443 | I167: -52128 | J167: 26239 | K167: 2337 | L167: 2348 | M167: 30924 | N167: 23540 | O167: 72 | P167: 269 | Q167: 862 | R167: 272 | S167: 2631 | U167: 2573 | V167: 0 | W167: 0 | X167: 58 | Y167: 158 | Z167: 0 | AA167: 0 | AB167: 216 | AD167: 3103 | AG167: -3911 | AJ167: 14370 | AL167: 20026 | AO167: 9439 | AP167: 21 | AS167: 9691 | AT167: 62096 | AU167: -52405 | AV167: 25990 | AW167: 2188 | AX167: 2697 | AY167: 30875 | AZ167: 27754 | BA167: 68 | BB167: 219 | BC167: 790 | BD167: 87 | BE167: 6776 | BG167: 2688 | BH167: 0 | BI167: 0 | BJ167: 4088 | BK167: 163 | BL167: -3000 | BM167: 0 | BN167: 1251 | BP167: 4355 | BV167: 16369 | BX167: 19654 | CC167: 21 | CD167: 8.53 | CI167: 21901 | CJ167: 0 | CK167: 28202.17653 | CL167: 28404.77141 | CN167: 28404.77141 | CP167: 23540 | CQ167: 69.08602616 | CR167: -186 | CS167: -6024 | CT167: 535 | CU167: 443 | CV167: 499
A168: 560 | B168: Orimattila | C168: 16326 | D168: 20.5 | G168: 9740 | H168: 93401 | I168: -83661 | J168: 46660 | K168: 2712 | L168: 4333 | M168: 53705 | N168: 31577 | O168: 369 | P168: 505 | Q168: 3175 | R168: 69 | S168: 3076 | U168: 3115 | V168: 921 | W168: 0 | X168: 882 | Y168: 28 | Z168: 0 | AA168: 0 | AB168: 910 | AD168: 7193 | AG168: -6007 | AJ168: 3784 | AL168: 36045 | AO168: 16279 | AP168: 20.75 | AS168: 11285 | AT168: 95910 | AU168: -84625 | AV168: 48784 | AW168: 2429 | AX168: 4427 | AY168: 55640 | AZ168: 33374 | BA168: 314 | BB168: 396 | BC168: 1663 | BD168: 53 | BE168: 5917 | BG168: 3379 | BH168: 0 | BI168: 0 | BJ168: 2538 | BK168: 28 | BL168: 0 | BM168: 0 | BN168: 2566 | BP168: 9879 | BV168: 6644 | BX168: 34419 | CC168: 20.75 | CD168: 8.28 | CI168: 31324 | CJ168: 0 | CK168: 32394.05766 | CL168: 31780.25299 | CN168: 31780.25299 | CP168: 31577 | CQ168: -90.03971329 | CR168: -352 | CS168: -4114 | CT168: 0 | CU168: 239 | CV168: 615
A169: 561 | B169: Oripää | C169: 1377 | D169: 19.5 | G169: 1320 | H169: 8713 | I169: -7393 | J169: 3494 | K169: 399 | L169: 308 | M169: 4201 | N169: 3662 | O169: 5 | P169: 49 | Q169: 0 | R169: 0 | S169: 426 | U169: 377 | V169: 122 | W169: 0 | X169: 171 | Y169: 15 | Z169: 0 | AA169: 0 | AB169: 186 | AD169: 1058 | AG169: -660 | AJ169: 142 | AL169: 3276 | AO169: 1363 | AP169: 19.5 | AS169: 1334 | AT169: 8764 | AU169: -7430 | AV169: 3331 | AW169: 395 | AX169: 342 | AY169: 4068 | AZ169: 3860 | BA169: 4 | BB169: 39 | BC169: 1 | BD169: 0 | BE169: 464 | BG169: 410 | BH169: 0 | BI169: 0 | BJ169: 54 | BK169: 15 | BL169: 0 | BM169: 0 | BN169: 69 | BP169: 1127 | BV169: 48 | BX169: 3409 | CC169: 19.5 | CD169: 7.03 | CI169: 2793 | CJ169: 0 | CK169: 3795.691939 | CL169: 3612.453279 | CN169: 3612.453279 | CP169: 3662 | CQ169: -613.904306 | CR169: 0 | CS169: -347 | CT169: 40 | CU169: 0 | CV169: 0
A170: 562 | B170: Orivesi | C170: 9408 | D170: 22.25 | G170: 7788 | H170: 61048 | I170: -53260 | J170: 28783 | K170: 1717 | L170: 3004 | M170: 33504 | N170: 23863 | O170: 72 | P170: 451 | Q170: 226 | R170: 0 | S170: 3897 | U170: 3076 | V170: 0 | W170: 364 | X170: 457 | Y170: 0 | Z170: 0 | AA170: 0 | AB170: 457 | AD170: 4418 | AG170: -4107 | AJ170: 2813 | AL170: 28971 | AO170: 9312 | AP170: 22.25 | AS170: 7347 | AT170: 60408 | AU170: -53061 | AV170: 29201 | AW170: 1658 | AX170: 3036 | AY170: 33895 | AZ170: 25129 | BA170: 63 | BB170: 414 | BC170: 195 | BD170: 0 | BE170: 5807 | BG170: 3028 | BH170: 0 | BI170: 0 | BJ170: 2779 | BK170: 0 | BL170: -1000 | BM170: 0 | BN170: 1779 | BP170: 6197 | BV170: 4429 | BX170: 27979 | CC170: 22 | CD170: 9.53 | CI170: 20650 | CJ170: 0 | CK170: 23806.14901 | CL170: 21789.49407 | CN170: 21789.49407 | CP170: 23863 | CQ170: -83.77988176 | CR170: -42 | CS170: -4731 | CT170: 1663 | CU170: 243 | CV170: 53
A171: 563 | B171: Oulainen | C171: 7610 | D171: 21.75 | G171: 7226 | H171: 52782 | I171: -45556 | J171: 22315 | K171: 1174 | L171: 1805 | M171: 25294 | N171: 22945 | O171: 9 | P171: 198 | Q171: 725 | R171: 152 | S171: 2989 | U171: 2013 | V171: 0 | W171: 0 | X171: 976 | Y171: 55 | Z171: -50 | AA171: 0 | AB171: 981 | AD171: 3364 | AG171: -5657 | AJ171: 14831 | AL171: 29050 | AO171: 7514 | AP171: 21.75 | AS171: 7653 | AT171: 54933 | AU171: -47280 | AV171: 22052 | AW171: 1022 | AX171: 1847 | AY171: 24921 | AZ171: 24393 | BA171: 24 | BB171: 123 | BC171: 1113 | BD171: 126 | BE171: 2922 | BG171: 2145 | BH171: 0 | BI171: 0 | BJ171: 777 | BK171: 55 | BL171: -35 | BM171: 0 | BN171: 797 | BP171: 4161 | BV171: 15779 | BX171: 32306 | CC171: 21.5 | CD171: 9.03 | CI171: 19497 | CJ171: 0 | CK171: 24667.82567 | CL171: 23705.63093 | CN171: 23705.63093 | CP171: 22945 | CQ171: 76.24616766 | CR171: 3 | CS171: -6392 | CT171: 619 | CU171: 470 | CV171: 40
A172: 564 | B172: Oulu | C172: 198525 | D172: 20 | G172: 274385 | H172: 1203902 | I172: -929517 | J172: 653256 | K172: 37295 | L172: 43609 | M172: 734160 | N172: 253771 | O172: 13133 | P172: 8829 | Q172: 47969 | R172: 3232 | S172: 85323 | U172: 79616 | V172: 0 | W172: 0 | X172: 5707 | Y172: 3327 | Z172: -3900 | AA172: 0 | AB172: 5134 | AD172: 830251 | AG172: -77755 | AJ172: 167924 | AL172: 655340 | AO172: 200526 | AP172: 20 | AS172: 267508 | AT172: 1216684 | AU172: -949176 | AV172: 664334 | AW172: 33793 | AX172: 45522 | AY172: 743649 | AZ172: 273358 | BA172: 10726 | BB172: 10148 | BC172: 8991 | BD172: 1134 | BE172: 76266 | BG172: 80982 | BH172: 0 | BI172: 0 | BJ172: -4716 | BK172: 2887 | BL172: -12300 | BM172: 0 | BN172: -14129 | BP172: 812361 | BV172: 167881 | BX172: 671141 | CC172: 20 | CD172: 7.53 | CI172: 134043 | CJ172: 0 | CK172: 269792.6067 | CL172: 264130.9435 | CN172: 264130.9435 | CP172: 253771 | CQ172: -8702.580427 | CR172: -15867 | CS172: -125288 | CT172: 779 | CU172: 29755 | CV172: 690
A173: 309 | B173: Outokumpu | C173: 7139 | D173: 22.25 | G173: 7387 | H173: 46847 | I173: -39460 | J173: 20287 | K173: 1766 | L173: 1560 | M173: 23613 | N173: 20069 | O173: 48 | P173: 238 | Q173: 822 | R173: 1 | S173: 4542 | U173: 1734 | V173: 0 | W173: 0 | X173: 2808 | Y173: 0 | Z173: 0 | AA173: -47 | AB173: 2761 | AD173: 1121 | AG173: -2051 | AJ173: 1124 | AL173: 14236 | AO173: 7091 | AP173: 22.25 | AS173: 6712 | AT173: 47582 | AU173: -40870 | AV173: 19876 | AW173: 1319 | AX173: 1775 | AY173: 22970 | AZ173: 20578 | BA173: 83 | BB173: 227 | BC173: 622 | BD173: 107 | BE173: 3049 | BG173: 1735 | BH173: 0 | BI173: 0 | BJ173: 1314 | BK173: 0 | BL173: 0 | BM173: 298 | BN173: 1612 | BP173: 2733 | BV173: 784 | BX173: 13537 | CC173: 21.75 | CD173: 9.28 | CI173: 16528 | CJ173: 1000 | CK173: 20738.24203 | CL173: 20404.88278 | CN173: 20404.88278 | CP173: 20069 | CQ173: 59.43540066 | CR173: 45 | CS173: -8632 | CT173: 4226 | CU173: 90 | CV173: -231
A174: 576 | B174: Padasjoki | C174: 3143 | D174: 21 | G174: 3297 | H174: 21983 | I174: -18686 | J174: 8296 | K174: 1184 | L174: 1393 | M174: 10873 | N174: 9689 | O174: 27 | P174: 120 | Q174: 160 | R174: 3 | S174: 1925 | U174: 1493 | V174: 0 | W174: 0 | X174: 432 | Y174: -548 | Z174: 0 | AA174: 622 | AB174: 506 | AD174: 3143 | AG174: -1995 | AJ174: 6053 | AL174: 8623 | AO174: 3073 | AP174: 21 | AS174: 2861 | AT174: 22295 | AU174: -19434 | AV174: 8425 | AW174: 1140 | AX174: 1394 | AY174: 10959 | AZ174: 9949 | BA174: 151 | BB174: 97 | BC174: 14 | BD174: 498 | BE174: 1044 | BG174: 1555 | BH174: 0 | BI174: 0 | BJ174: -511 | BK174: -199 | BL174: 375 | BM174: 0 | BN174: -335 | BP174: 2809 | BV174: 5875 | BX174: 8914 | CC174: 21 | CD174: 8.53 | CI174: 8983 | CJ174: 0 | CK174: 9573.693344 | CL174: 9346.463539 | CN174: 9346.463539 | CP174: 9689 | CQ174: -42.338228 | CR174: -9 | CS174: -1631 | CT174: 0 | CU174: 23 | CV174: -7
A175: 577 | B175: Paimio | C175: 10620 | D175: 20.75 | G175: 7243 | H175: 62397 | I175: -55154 | J175: 37138 | K175: 1354 | L175: 1964 | M175: 40456 | N175: 12948 | O175: 21 | P175: 499 | Q175: 824 | R175: 7 | S175: -1803 | U175: 1808 | V175: 0 | W175: 0 | X175: -3611 | Y175: 84 | Z175: 0 | AA175: 0 | AB175: -3527 | AD175: 7676 | AG175: -5596 | AJ175: 1365 | AL175: 48295 | AO175: 10713 | AP175: 20.75 | AS175: 7360 | AT175: 61443 | AU175: -54083 | AV175: 38973 | AW175: 1307 | AX175: 1810 | AY175: 42090 | AZ175: 14305 | BA175: 451 | BB175: 401 | BC175: 474 | BD175: 7 | BE175: 2829 | BG175: 1875 | BH175: 0 | BI175: 193 | BJ175: 761 | BK175: 84 | BL175: 0 | BM175: 0 | BN175: 845 | BP175: 9362 | BV175: 1331 | BX175: 49548 | CC175: 20.75 | CD175: 8.28 | CI175: 10768 | CJ175: 1500 | CK175: 13730.10277 | CL175: 13271.65966 | CN175: 13271.65966 | CP175: 12948 | CQ175: -59.62218696 | CR175: -271 | CS175: -3631 | CT175: 90 | CU175: 331 | CV175: -100
A176: 578 | B176: Paltamo | C176: 3488 | D176: 22 | G176: 3664 | H176: 25681 | I176: -22017 | J176: 9507 | K176: 685 | L176: 1257 | M176: 11449 | N176: 12297 | O176: 0 | P176: 176 | Q176: 14 | R176: 0 | S176: 1565 | U176: 1270 | V176: 0 | W176: 0 | X176: 295 | Y176: 21 | Z176: 0 | AA176: 0 | AB176: 316 | AD176: 1248 | AG176: -1816 | AJ176: 3577 | AL176: 11151 | AO176: 3491 | AP176: 22 | AS176: 3849 | AT176: 25879 | AU176: -22030 | AV176: 9257 | AW176: 622 | AX176: 1274 | AY176: 11153 | AZ176: 12645 | BA176: 0 | BB176: 106 | BC176: 9 | BD176: 28 | BE176: 1643 | BG176: 1034 | BH176: 0 | BI176: 0 | BJ176: 609 | BK176: 20 | BL176: 0 | BM176: 0 | BN176: 629 | BP176: 1879 | BV176: 3308 | BX176: 12283 | CC176: 22 | CD176: 9.53 | CI176: 10619 | CJ176: 0 | CK176: 12699.96801 | CL176: 12388.30645 | CN176: 12388.30645 | CP176: 12297 | CQ176: 2.5527461 | CR176: -430 | CS176: -2429 | CT176: 25 | CU176: 509 | CV176: 0
A177: 445 | B177: Parainen | C177: 15457 | D177: 19.75 | G177: 15509 | H177: 103371 | I177: -87862 | J177: 53325 | K177: 2354 | L177: 9092 | M177: 64771 | N177: 31146 | O177: 9 | P177: 989 | Q177: 126 | R177: 14 | S177: 7187 | U177: 4609 | V177: 0 | W177: 0 | X177: 2578 | Y177: 70 | Z177: 0 | AA177: 0 | AB177: 2648 | AD177: 10746 | AG177: -5521 | AJ177: 3114 | AL177: 42009 | AO177: 15398 | AP177: 19.75 | AS177: 15918 | AT177: 105997 | AU177: -90079 | AV177: 54746 | AW177: 2014 | AX177: 9156 | AY177: 65916 | AZ177: 31849 | BA177: 1 | BB177: 1072 | BC177: 120 | BD177: 12 | BE177: 6723 | BG177: 4718 | BH177: 0 | BI177: 0 | BJ177: 2005 | BK177: 42 | BL177: 0 | BM177: 0 | BN177: 2047 | BP177: 12794 | BV177: 2820 | BX177: 40187 | CC177: 19.75 | CD177: 7.28 | CI177: 27301 | CJ177: 0 | CK177: 30036.55354 | CL177: 28329.25036 | CN177: 28329.25036 | CP177: 31146 | CQ177: 5.7903753 | CR177: 14 | CS177: -5748 | CT177: 139 | CU177: 327 | CV177: 275
A178: 580 | B178: Parikkala | C178: 5235 | D178: 19.5 | G178: 9079 | H178: 40164 | I178: -31085 | J178: 13444 | K178: 1252 | L178: 1362 | M178: 16058 | N178: 17862 | O178: 32 | P178: 25 | Q178: 52 | R178: 1 | S178: 2873 | U178: 1705 | V178: 0 | W178: 0 | X178: 1168 | Y178: 24 | Z178: 0 | AA178: 0 | AB178: 1192 | AD178: 15810 | AG178: -2670 | AJ178: 5870 | AL178: 2755 | AO178: 5126 | AP178: 19.5 | AS178: 8494 | AT178: 39305 | AU178: -30811 | AV178: 12990 | AW178: 1418 | AX178: 1381 | AY178: 15789 | AZ178: 18201 | BA178: 35 | BB178: 17 | BC178: 34 | BD178: 1 | BE178: 3230 | BG178: 1969 | BH178: 0 | BI178: 0 | BJ178: 1261 | BK178: 22 | BL178: 0 | BM178: 0 | BN178: 1283 | BP178: 17093 | BV178: 5373 | BX178: 2417 | CC178: 19.5 | CD178: 7.03 | CI178: 15519 | CJ178: 0 | CK178: 17758.96031 | CL178: 16324.26617 | CN178: 16324.26617 | CP178: 17862 | CQ178: -136.3166417 | CR178: -151 | CS178: -3353 | CT178: 199 | CU178: 311 | CV178: 47
A179: 581 | B179: Parkano | C179: 6766 | D179: 20.5 | G179: 14445 | H179: 50902 | I179: -36457 | J179: 18469 | K179: 1865 | L179: 1891 | M179: 22225 | N179: 17134 | O179: 9 | P179: 132 | Q179: 109 | R179: 3 | S179: 2877 | U179: 2189 | V179: 0 | W179: 0 | X179: 688 | Y179: 0 | Z179: 0 | AA179: 0 | AB179: 688 | AD179: 8148 | AG179: -2132 | AJ179: 2757 | AL179: 19161 | AO179: 6692 | AP179: 21 | AS179: 19340 | AT179: 57409 | AU179: -38069 | AV179: 18541 | AW179: 1848 | AX179: 1843 | AY179: 22232 | AZ179: 18264 | BA179: 5 | BB179: 130 | BC179: 379 | BD179: 7 | BE179: 2674 | BG179: 2286 | BH179: 0 | BI179: 0 | BJ179: 388 | BK179: 0 | BL179: 0 | BM179: 0 | BN179: 388 | BP179: 8536 | BV179: 1603 | BX179: 18778 | CC179: 21 | CD179: 8.53 | CI179: 13786 | CJ179: 0 | CK179: 18455.37116 | CL179: 17952.72992 | CN179: 17952.72992 | CP179: 17134 | CQ179: 44.18118616 | CR179: -1276 | CS179: -5215 | CT179: 0 | CU179: 1396 | CV179: -41
A180: 599 | B180: Pedersören kunta | C180: 11129 | D180: 20.5 | G180: 16065 | H180: 74953 | I180: -58888 | J180: 30703 | K180: 3536 | L180: 2057 | M180: 36296 | N180: 24538 | O180: 32 | P180: 111 | Q180: 319 | R180: 40 | S180: 2127 | U180: 1942 | V180: 0 | W180: 0 | X180: 185 | Y180: 45 | Z180: 0 | AA180: 0 | AB180: 230 | AD180: 12689 | AG180: -4106 | AJ180: 3468 | AL180: 20588 | AO180: 11067 | AP180: 20.5 | AS180: 14879 | AT180: 74690 | AU180: -59811 | AV180: 30276 | AW180: 3058 | AX180: 2146 | AY180: 35480 | AZ180: 25316 | BA180: 62 | BB180: 79 | BC180: 232 | BD180: 27 | BE180: 1173 | BG180: 2055 | BH180: 0 | BI180: 0 | BJ180: -882 | BK180: 45 | BL180: 0 | BM180: 0 | BN180: -837 | BP180: 11833 | BV180: 496 | BX180: 20452 | CC180: 20.5 | CD180: 8.03 | CI180: 24766 | CJ180: 0 | CK180: 25485.84859 | CL180: 25030.10159 | CN180: 25030.10159 | CP180: 24538 | CQ180: -303.4903802 | CR180: -303 | CS180: -3918 | CT180: 221 | CU180: 3699 | CV180: -1220
A181: 583 | B181: Pelkosenniemi | C181: 958 | D181: 19.5 | G181: 1128 | H181: 9033 | I181: -7905 | J181: 2476 | K181: 322 | L181: 1650 | M181: 4448 | N181: 4056 | O181: 0 | P181: 32 | Q181: 15 | R181: 1 | S181: 576 | U181: 333 | V181: 775 | W181: 1052 | X181: -34 | Y181: 0 | Z181: 0 | AA181: 0 | AB181: -34 | AD181: 2096 | AG181: -195 | AJ181: 824 | AL181: 2876 | AO181: 951 | AP181: 21.5 | AS181: 1244 | AT181: 9441 | AU181: -8197 | AV181: 2868 | AW181: 276 | AX181: 1752 | AY181: 4896 | AZ181: 4027 | BA181: 11 | BB181: 19 | BC181: 9 | BD181: 1 | BE181: 726 | BG181: 588 | BH181: 0 | BI181: 0 | BJ181: 138 | BK181: 0 | BL181: 0 | BM181: 0 | BN181: 138 | BP181: 2234 | BV181: 885 | BX181: 2893 | CC181: 22 | CD181: 9.53 | CI181: 3431 | CJ181: 0 | CK181: 3960.185002 | CL181: 3952.583524 | CN181: 3952.583524 | CP181: 4056 | CQ181: 56.03589 | CR181: -6 | CS181: -440 | CT181: 37 | CU181: 4 | CV181: 0
A182: 854 | B182: Pello | C182: 3623 | D182: 20.25 | G182: 4209 | H182: 29867 | I182: -25658 | J182: 9860 | K182: 776 | L182: 677 | M182: 11313 | N182: 14426 | O182: 0 | P182: 28 | Q182: 326 | R182: 12 | S182: 215 | U182: 1143 | V182: 0 | W182: 0 | X182: -928 | Y182: 52 | Z182: 0 | AA182: 0 | AB182: -876 | AD182: 3783 | AG182: 373 | AJ182: 1796 | AL182: 3262 | AO182: 3565 | AP182: 20.25 | AS182: 3772 | AT182: 29465 | AU182: -25693 | AV182: 9937 | AW182: 672 | AX182: 720 | AY182: 11329 | AZ182: 14959 | BA182: 0 | BB182: 22 | BC182: 83 | BD182: 0 | BE182: 656 | BG182: 1119 | BH182: 0 | BI182: 0 | BJ182: -463 | BK182: 52 | BL182: 0 | BM182: 0 | BN182: -411 | BP182: 3372 | BV182: 558 | BX182: 2923 | CC182: 20.25 | CD182: 7.78 | CI182: 14081 | CJ182: 0 | CK182: 14833.95078 | CL182: 14851.61064 | CN182: 14851.61064 | CP182: 14426 | CQ182: -33.1856993 | CR182: -23 | CS182: -2078 | CT182: 115 | CU182: 527 | CV182: -8
A183: 584 | B183: Perho | C183: 2931 | D183: 21 | G183: 3403 | H183: 19820 | I183: -16417 | J183: 6430 | K183: 560 | L183: 473 | M183: 7463 | N183: 11647 | O183: 317 | P183: 19 | Q183: 21 | R183: 12 | S183: 2997 | U183: 1143 | V183: 0 | W183: 0 | X183: 1854 | Y183: 6 | Z183: 0 | AA183: -800 | AB183: 1060 | AD183: 3905 | AG183: -2030 | AJ183: 5050 | AL183: 6629 | AO183: 2907 | AP183: 21 | AS183: 3213 | AT183: 20621 | AU183: -17408 | AV183: 6094 | AW183: 547 | AX183: 487 | AY183: 7128 | AZ183: 11720 | BA183: 224 | BB183: 23 | BC183: 11 | BD183: -6 | BE183: 1658 | BG183: 1293 | BH183: 0 | BI183: 0 | BJ183: 365 | BK183: 6 | BL183: 0 | BM183: 0 | BN183: 371 | BP183: 4275 | BV183: 5492 | BX183: 8730 | CC183: 21.5 | CD183: 9.03 | CI183: 10360 | CJ183: 0 | CK183: 11536.8457 | CL183: 11227.07278 | CN183: 11227.07278 | CP183: 11647 | CQ183: 15.54062016 | CR183: -43 | CS183: -4496 | CT183: 819 | CU183: 43 | CV183: 0
A184: 588 | B184: Pertunmaa | C184: 1817 | D184: 21 | G184: 2533 | H184: 13531 | I184: -10998 | J184: 4103 | K184: 818 | L184: 780 | M184: 5701 | N184: 6109 | O184: 1 | P184: 33 | Q184: 94 | R184: 0 | S184: 828 | U184: 685 | V184: 0 | W184: 0 | X184: 143 | Y184: 0 | Z184: 0 | AA184: 0 | AB184: 143 | AD184: 736 | AG184: -248 | AJ184: 1657 | AL184: 5305 | AO184: 1796 | AP184: 21 | AS184: 2499 | AT184: 13749 | AU184: -11250 | AV184: 4056 | AW184: 734 | AX184: 836 | AY184: 5626 | AZ184: 6301 | BA184: 0 | BB184: 26 | BC184: 56 | BD184: 1 | BE184: 706 | BG184: 649 | BH184: 0 | BI184: 0 | BJ184: 57 | BK184: 0 | BL184: 0 | BM184: 0 | BN184: 57 | BP184: 792 | BV184: 1689 | BX184: 5832 | CC184: 21 | CD184: 8.53 | CI184: 5420 | CJ184: 0 | CK184: 6163.135615 | CL184: 5714.545087 | CN184: 5714.545087 | CP184: 6109 | CQ184: -33.621534 | CR184: 57 | CS184: -1365 | CT184: 0 | CU184: 34 | CV184: -82
A185: 592 | B185: Petäjävesi | C185: 4008 | D185: 21.25 | G185: 3468 | H185: 25449 | I185: -21981 | J185: 11283 | K185: 858 | L185: 899 | M185: 13040 | N185: 11179 | O185: 1 | P185: 37 | Q185: 480 | R185: 60 | S185: 2616 | U185: 1032 | V185: 0 | W185: 0 | X185: 1584 | Y185: 7 | Z185: 0 | AA185: 0 | AB185: 1591 | AD185: 9008 | AG185: -659 | AJ185: 4947 | AL185: 6854 | AO185: 3981 | AP185: 21.25 | AS185: 2904 | AT185: 26177 | AU185: -23273 | AV185: 10960 | AW185: 884 | AX185: 852 | AY185: 12696 | AZ185: 10969 | BA185: 0 | BB185: 32 | BC185: 144 | BD185: 15 | BE185: 489 | BG185: 1011 | BH185: 0 | BI185: 0 | BJ185: -522 | BK185: 7 | BL185: 0 | BM185: 0 | BN185: -515 | BP185: 8493 | BV185: 4803 | BX185: 8437 | CC185: 21.25 | CD185: 8.78 | CI185: 9266 | CJ185: 0 | CK185: 10788.01996 | CL185: 10118.00314 | CN185: 10118.00314 | CP185: 11179 | CQ185: 77.6408387 | CR185: -88 | CS185: -2435 | CT185: 0 | CU185: 136 | CV185: 5
A186: 593 | B186: Pieksämäki | C186: 18801 | D186: 21.5 | G186: 24024 | H186: 135280 | I186: -111256 | J186: 58853 | K186: 4706 | L186: 3769 | M186: 67328 | N186: 46303 | O186: 26 | P186: 596 | Q186: 1094 | R186: 28 | S186: 2342 | U186: 6290 | V186: 6928 | W186: 0 | X186: 2980 | Y186: 35 | Z186: 0 | AA186: 0 | AB186: 3015 | AD186: 767 | AG186: 6924 | AJ186: 384 | AL186: 71531 | AO186: 18475 | AP186: 22 | AS186: 21484 | AT186: 130778 | AU186: -109294 | AV186: 59467 | AW186: 4151 | AX186: 4264 | AY186: 67882 | AZ186: 49675 | BA186: 422 | BB186: 465 | BC186: 583 | BD186: 12 | BE186: 8791 | BG186: 6668 | BH186: 0 | BI186: 0 | BJ186: 2123 | BK186: 35 | BL186: 0 | BM186: 102 | BN186: 2260 | BP186: 3151 | BV186: 516 | BX186: 68686 | CC186: 22 | CD186: 9.53 | CI186: 41062 | CJ186: 0 | CK186: 49602.32225 | CL186: 47737.66045 | CN186: 47737.66045 | CP186: 46303 | CQ186: -168.1039343 | CR186: -647 | CS186: -4764 | CT186: 0 | CU186: 637 | CV186: 34
A187: 595 | B187: Pielavesi | C187: 4740 | D187: 20.75 | G187: 4620 | H187: 37204 | I187: -32584 | J187: 11000 | K187: 1452 | L187: 1153 | M187: 13605 | N187: 19024 | O187: 65 | P187: 116 | Q187: 833 | R187: 3 | S187: 450 | U187: 1179 | V187: 352 | W187: 7 | X187: -384 | Y187: 0 | Z187: 0 | AA187: 0 | AB187: -384 | AD187: -1839 | AG187: -2712 | AJ187: 1701 | AL187: 9161 | AO187: 4697 | AP187: 20.75 | AS187: 5181 | AT187: 36743 | AU187: -31562 | AV187: 10470 | AW187: 1339 | AX187: 1164 | AY187: 12973 | AZ187: 19593 | BA187: 54 | BB187: 106 | BC187: 240 | BD187: 5 | BE187: 1187 | BG187: 1450 | BH187: 11 | BI187: 0 | BJ187: -252 | BK187: 0 | BL187: 0 | BM187: 0 | BN187: -252 | BP187: -2092 | BV187: 1935 | BX187: 17197 | CC187: 20.75 | CD187: 8.28 | CI187: 17265 | CJ187: 0 | CK187: 20364.45725 | CL187: 19723.97552 | CN187: 19723.97552 | CP187: 19024 | CQ187: 29.885808 | CR187: 0 | CS187: -8468 | CT187: 0 | CU187: 8 | CV187: 20
A188: 598 | B188: Pietarsaari | C188: 19436 | D188: 21.25 | G188: 95264 | H188: 205187 | I188: -109923 | J188: 68907 | K188: 5867 | L188: 5438 | M188: 80212 | N188: 37218 | O188: 140 | P188: 1229 | Q188: 638 | R188: 56 | S188: 6979 | U188: 6965 | V188: 0 | W188: 0 | X188: 14 | Y188: 0 | Z188: 0 | AA188: 0 | AB188: 14 | AD188: 82617 | AG188: -11311 | AJ188: 10134 | AL188: 42700 | AO188: 19377 | AP188: 21.25 | AS188: 92003 | AT188: 206704 | AU188: -114701 | AV188: 67731 | AW188: 5140 | AX188: 4677 | AY188: 77548 | AZ188: 39204 | BA188: 117 | BB188: 778 | BC188: 574 | BD188: 61 | BE188: 1903 | BG188: 6779 | BH188: 0 | BI188: 0 | BJ188: -4876 | BK188: 0 | BL188: 0 | BM188: 0 | BN188: -4876 | BP188: 77743 | BV188: 1299 | BX188: 43700 | CC188: 21.25 | CD188: 8.78 | CI188: 33518 | CJ188: 0 | CK188: 39249.62324 | CL188: 38649.39181 | CN188: 38649.39181 | CP188: 37218 | CQ188: 629.8184988 | CR188: -205 | CS188: -8011 | CT188: 434 | CU188: 502 | CV188: -3362
A189: 601 | B189: Pihtipudas | C189: 4221 | D189: 21 | G189: 14667 | H189: 41766 | I189: -27099 | J189: 10132 | K189: 1473 | L189: 875 | M189: 12480 | N189: 17259 | O189: 315 | P189: 179 | Q189: 69 | R189: 177 | S189: 2668 | U189: 1499 | V189: 0 | W189: 0 | X189: 1169 | Y189: 107 | Z189: 0 | AA189: 0 | AB189: 1276 | AD189: 10375 | AG189: -926 | AJ189: 8640 | AL189: 16794 | AO189: 4202 | AP189: 21 | AS189: 14790 | AT189: 42205 | AU189: -27415 | AV189: 9536 | AW189: 1398 | AX189: 859 | AY189: 11793 | AZ189: 17746 | BA189: 342 | BB189: 120 | BC189: 49 | BD189: 38 | BE189: 2357 | BG189: 1490 | BH189: 0 | BI189: 0 | BJ189: 867 | BK189: 107 | BL189: 0 | BM189: 0 | BN189: 974 | BP189: 11592 | BV189: 8193 | BX189: 15600 | CC189: 21 | CD189: 8.53 | CI189: 15100 | CJ189: 0 | CK189: 17185.75717 | CL189: 16315.52903 | CN189: =CL189-CM189 -> 16315.52903 | CP189: 17259 | CQ189: 4667.453422 | CR189: 0 | CS189: -1623 | CT189: 24 | CU189: 118 | CV189: 0
A190: 604 | B190: Pirkkala | C190: 18913 | D190: 20 | G190: 31871 | H190: 116132 | I190: -84261 | J190: 74077 | K190: 3275 | L190: 3964 | M190: 81316 | N190: 10963 | O190: 0 | P190: 769 | Q190: 894 | R190: 697 | S190: 7376 | U190: 6950 | V190: 0 | W190: 0 | X190: 426 | Y190: 0 | Z190: -415 | AA190: 0 | AB190: 11 | AD190: 45621 | AG190: -5545 | AJ190: 3986 | AL190: 44850 | AO190: 19163 | AP190: 20 | AS190: 37386 | AT190: 117407 | AU190: -80021 | AV190: 77696 | AW190: 2989 | AX190: 4124 | AY190: 84809 | AZ190: 11735 | BA190: 0 | BB190: 558 | BC190: 629 | BD190: 472 | BE190: 16122 | BG190: 9046 | BH190: 0 | BI190: 0 | BJ190: 7076 | BK190: 0 | BL190: -7070 | BM190: 0 | BN190: 6 | BP190: 45627 | BV190: 10048 | BX190: 44100 | CC190: 20 | CD190: 7.53 | CI190: 12842 | CJ190: 0 | CK190: 11264.74413 | CL190: 10576.65385 | CN190: 10576.65385 | CP190: 10963 | CQ190: -655.964845 | CR190: -8062 | CS190: -9962 | CT190: 596 | CU190: 8304 | CV190: 8
A191: 607 | B191: Polvijärvi | C191: 4556 | D191: 19.5 | G191: 4438 | H191: 29380 | I191: -24942 | J191: 10195 | K191: 1097 | L191: 897 | M191: 12189 | N191: 14960 | O191: 24 | P191: 41 | Q191: 470 | R191: 59 | S191: 2366 | U191: 1224 | V191: 0 | W191: 0 | X191: 1142 | Y191: 331 | Z191: -1430 | AA191: 0 | AB191: 43 | AD191: 6843 | AG191: -1162 | AJ191: 8115 | AL191: 1689 | AO191: 4514 | AP191: 20.25 | AS191: 4623 | AT191: 29414 | AU191: -24791 | AV191: 9659 | AW191: 1026 | AX191: 919 | AY191: 11604 | AZ191: 15123 | BA191: 21 | BB191: 32 | BC191: 231 | BD191: 16 | BE191: 2140 | BG191: 1562 | BH191: 0 | BI191: 0 | BJ191: 578 | BK191: 330 | BL191: 0 | BM191: 0 | BN191: 908 | BP191: 7744 | BV191: 8161 | BX191: 1350 | CC191: 20.25 | CD191: 7.78 | CI191: 14119 | CJ191: 0 | CK191: 14490.69587 | CL191: 14120.86116 | CN191: 14120.86116 | CP191: 14960 | CQ191: -66.23442198 | CR191: -1 | CS191: -1868 | CT191: 141 | CU191: 13 | CV191: -161
A192: 608 | B192: Pomarkku | C192: 2240 | D192: 20.5 | G192: 1859 | H192: 15921 | I192: -14062 | J192: 5681 | K192: 459 | L192: 447 | M192: 6587 | N192: 8086 | O192: 12 | P192: 18 | Q192: 8 | R192: 9 | S192: 604 | U192: 401 | V192: 0 | W192: 0 | X192: 203 | Y192: 0 | Z192: 0 | AA192: 0 | AB192: 203 | AD192: 3879 | AG192: -2138 | AJ192: 0 | AL192: 4069 | AO192: 2233 | AP192: 20.5 | AS192: 1678 | AT192: 15803 | AU192: -14125 | AV192: 5578 | AW192: 434 | AX192: 443 | AY192: 6455 | AZ192: 8004 | BA192: 13 | BB192: 25 | BC192: 8 | BD192: 5 | BE192: 325 | BG192: 549 | BH192: 0 | BI192: 0 | BJ192: -224 | BK192: 0 | BL192: 0 | BM192: 0 | BN192: -224 | BP192: 3655 | BV192: 0 | BX192: 4149 | CC192: 20.5 | CD192: 8.03 | CI192: 7283 | CJ192: 0 | CK192: 7763.786984 | CL192: 7631.852236 | CN192: 7631.852236 | CP192: 8086 | CQ192: -41.9023933 | CR192: 5 | CS192: -284 | CT192: 0 | CU192: 121 | CV192: -8
A193: 609 | B193: Pori | C193: 85363 | D193: 19.75 | G193: 200179 | H193: 637309 | I193: -437130 | J193: 268349 | K193: 17944 | L193: 22102 | M193: 308395 | N193: 139056 | O193: 7832 | P193: 2884 | Q193: 7095 | R193: 18 | S193: 20728 | U193: 27977 | V193: 0 | W193: 3327 | X193: -10576 | Y193: 33 | Z193: 0 | AA193: 582 | AB193: -9961 | AD193: 63906 | AG193: -28553 | AJ193: 21398 | AL193: 237587 | AO193: 85059 | AP193: 19.75 | AS193: 202141 | AT193: 621910 | AU193: -419769 | AV193: 271049 | AW193: 14121 | AX193: 23230 | AY193: 308400 | AZ193: 143557 | BA193: 6415 | BB193: 2878 | BC193: 2900 | BD193: 668 | BE193: 37957 | BG193: 28237 | BH193: 0 | BI193: 0 | BJ193: 9720 | BK193: 33 | BL193: 0 | BM193: 66 | BN193: 9819 | BP193: 73725 | BV193: 14883 | BX193: 221519 | CC193: 19.75 | CD193: 7.28 | CI193: 162805 | CJ193: 0 | CK193: 139000.0646 | CL193: 138742.1088 | CN193: 138742.1088 | CP193: =N193-CO193 -> 139056 | CQ193: -2194.511146 | CR193: -10968 | CS193: -32358 | CT193: 241 | CU193: 16317 | CV193: 3240
A194: 611 | B194: Pornainen | C194: 5125 | D194: 20 | G194: 2980 | H194: 25381 | I194: -22401 | J194: 17007 | K194: 387 | L194: 1105 | M194: 18499 | N194: 5569 | O194: 33 | P194: 189 | Q194: 8 | R194: 1 | S194: 1518 | U194: 1753 | V194: 481 | W194: 0 | X194: 246 | Y194: 0 | Z194: 0 | AA194: 0 | AB194: 246 | AD194: 5580 | AG194: -165 | AJ194: 1283 | AL194: 14759 | AO194: 5108 | AP194: 20.5 | AS194: 3236 | AT194: 25142 | AU194: -21906 | AV194: 17837 | AW194: 351 | AX194: 1099 | AY194: 19287 | AZ194: 6104 | BA194: 32 | BB194: 192 | BC194: 6 | BD194: 1 | BE194: 3330 | BG194: 1749 | BH194: 0 | BI194: 0 | BJ194: 1581 | BK194: 0 | BL194: 0 | BM194: 0 | BN194: 1581 | BP194: 7161 | BV194: 4012 | BX194: 14986 | CC194: 20.5 | CD194: 8.03 | CI194: 6500 | CJ194: 0 | CK194: 6002.922386 | CL194: 5452.21349 | CN194: 5452.21349 | CP194: 5569 | CQ194: -127.9361631 | CR194: -164 | CS194: -1954 | CT194: 50 | CU194: 365 | CV194: 15
A195: 638 | B195: Porvoo | C195: 49928 | D195: 19.75 | G195: 68909 | H195: 315279 | I195: -246370 | J195: 187564 | K195: 17859 | L195: 16419 | M195: 221842 | N195: 46652 | O195: 54 | P195: 1211 | Q195: 4074 | R195: 10 | S195: 23330 | U195: 24294 | V195: 0 | W195: 0 | X195: -964 | Y195: 115 | Z195: 200 | AA195: 467 | AB195: -182 | AD195: 43775 | AG195: -15170 | AJ195: 25537 | AL195: 115059 | AO195: 50144 | AP195: 19.75 | AS195: 74622 | AT195: 321286 | AU195: -246664 | AV195: 196962 | AW195: 14924 | AX195: 16841 | AY195: 228727 | AZ195: 52316 | BA195: 274 | BB195: 961 | BC195: 2398 | BD195: 7 | BE195: 36083 | BG195: 30613 | BH195: 2030 | BI195: 0 | BJ195: 7500 | BK195: -304 | BL195: -949 | BM195: -2328 | BN195: 3919 | BP195: 47694 | BV195: 23451 | BX195: 117863 | CC195: 19.75 | CD195: 7.28 | CI195: 47509 | CJ195: 0 | CK195: 49098.30335 | CL195: 48447.3613 | CN195: 48447.3613 | CP195: 46652 | CQ195: 223.6454632 | CR195: -6936 | CS195: -45724 | CT195: 1084 | CU195: 10615 | CV195: -2958
A196: 614 | B196: Posio | C196: 3477 | D196: 21 | G196: 8138 | H196: 33495 | I196: -25357 | J196: 8723 | K196: 707 | L196: 1127 | M196: 10557 | N196: 15319 | O196: 18 | P196: 225 | Q196: 487 | R196: 49 | S196: 750 | U196: 1078 | V196: 0 | W196: 0 | X196: -328 | Y196: 163 | Z196: 0 | AA196: 0 | AB196: -165 | AD196: -165 | AG196: -332 | AJ196: 7961 | AL196: 14673 | AO196: 3424 | AP196: 21.75 | AS196: 7501 | AT196: 32376 | AU196: -24875 | AV196: 8126 | AW196: 705 | AX196: 1234 | AY196: 10065 | AZ196: 15907 | BA196: 17 | BB196: 205 | BC196: 139 | BD196: 38 | BE196: 1010 | BG196: 1056 | BH196: 0 | BI196: 0 | BJ196: -46 | BK196: 156 | BL196: 0 | BM196: 165 | BN196: 275 | BP196: 111 | BV196: 5245 | BX196: 14364 | CC196: 21.75 | CD196: =CC196-$CD$1 -> 9.28 | CI196: 14059 | CJ196: 0 | CK196: 17214.19948 | CL196: 16583.16364 | CN196: 16583.16364 | CP196: 15319 | CQ196: -48.6889622 | CR196: 2 | CS196: -409 | CT196: 0 | CU196: 1 | CV196: 0
A197: 615 | B197: Pudasjärvi | C197: 8257 | D197: 20.5 | G197: 8849 | H197: 64588 | I197: -55739 | J197: 18865 | K197: 2527 | L197: 1822 | M197: 23214 | N197: 38040 | O197: 61 | P197: 219 | Q197: 646 | R197: 43 | S197: 5960 | U197: 3505 | V197: 0 | W197: 0 | X197: 2455 | Y197: 103 | Z197: 0 | AA197: 69 | AB197: 2627 | AD197: 10239 | AG197: -1483 | AJ197: 13019 | AL197: 20845 | AO197: 8187 | AP197: 20.5 | AS197: 9268 | AT197: 66146 | AU197: -56878 | AV197: 18211 | AW197: 2398 | AX197: 1839 | AY197: 22448 | AZ197: 38491 | BA197: 31 | BB197: 304 | BC197: 453 | BD197: 44 | BE197: 4197 | BG197: 5610 | BH197: 0 | BI197: 0 | BJ197: -1413 | BK197: 103 | BL197: 0 | BM197: 100 | BN197: -1210 | BP197: 8800 | BV197: 13241 | BX197: 23256 | CC197: 20.5 | CD197: 8.03 | CI197: 33842 | CJ197: 1200 | CK197: 37145.96677 | CL197: 35460.43633 | CN197: 35460.43633 | CP197: 38040 | CQ197: -1.76824364 | CR197: -2730 | CS197: -6199 | CT197: 184 | CU197: 354 | CV197: 0
A198: 616 | B198: Pukkila | C198: 1971 | D198: 22 | G198: 1718 | H198: 12175 | I198: -10457 | J198: 6446 | K198: 340 | L198: 434 | M198: 7220 | N198: 3626 | O198: 0 | P198: 125 | Q198: 283 | R198: 1 | S198: 406 | U198: 463 | V198: 0 | W198: 0 | X198: -57 | Y198: 0 | Z198: 0 | AA198: 0 | AB198: -57 | AD198: 772 | AG198: 303 | AJ198: 720 | AL198: 5646 | AO198: 1988 | AP198: 22 | AS198: 1464 | AT198: 12100 | AU198: -10636 | AV198: 6509 | AW198: 399 | AX198: 406 | AY198: 7314 | AZ198: 3587 | BA198: 0 | BB198: 120 | BC198: 146 | BD198: 1 | BE198: 290 | BG198: 2521 | BH198: 4409 | BI198: 0 | BJ198: 2178 | BK198: 0 | BL198: 0 | BM198: 0 | BN198: 2178 | BP198: 3013 | BV198: 558 | BX198: 5199 | CC198: 22 | CD198: 9.53 | CI198: 3759 | CJ198: 0 | CK198: 3433.341008 | CL198: 3224.802007 | CN198: 3224.802007 | CP198: 3626 | CQ198: -1017.362714 | CR198: -4451 | CS198: -368 | CT198: 54 | CU198: 4636 | CV198: -4087
A199: 619 | B199: Punkalaidun | C199: 3049 | D199: 21.5 | G199: 2916 | H199: 21438 | I199: -18522 | J199: 7872 | K199: 502 | L199: 615 | M199: 8989 | N199: 10862 | O199: 6 | P199: 29 | Q199: 9 | R199: 0 | S199: 1313 | U199: 771 | V199: 0 | W199: 0 | X199: 542 | Y199: -51 | Z199: 107 | AA199: 0 | AB199: 598 | AD199: 2764 | AG199: -986 | AJ199: 252 | AL199: 2360 | AO199: 3003 | AP199: 21.5 | AS199: 3186 | AT199: 21903 | AU199: -18717 | AV199: 7507 | AW199: 522 | AX199: 617 | AY199: 8646 | AZ199: 11231 | BA199: 7 | BB199: 19 | BC199: 4 | BD199: 0 | BE199: 1152 | BG199: 848 | BH199: 0 | BI199: 0 | BJ199: 304 | BK199: 58 | BL199: 0 | BM199: 0 | BN199: 362 | BP199: 3126 | BV199: 926 | BX199: 2291 | CC199: 21.5 | CD199: 9.03 | CI199: 10219 | CJ199: 0 | CK199: 10917.47897 | CL199: 10151.05897 | CN199: 10151.05897 | CP199: 10862 | CQ199: 205.6019066 | CR199: 0 | CS199: -1093 | CT199: 176 | CU199: 104 | CV199: 0
A200: 620 | B200: Puolanka | C200: 2776 | D200: 21.5 | G200: 4560 | H200: 26290 | I200: -21730 | J200: 7254 | K200: 1277 | L200: 794 | M200: 9325 | N200: 13855 | O200: 2 | P200: 73 | Q200: 22 | R200: 14 | S200: 1387 | U200: 996 | V200: 0 | W200: 0 | X200: 391 | Y200: 72 | Z200: 0 | AA200: 0 | AB200: 463 | AD200: 1929 | AG200: -766 | AJ200: 1431 | AL200: 7566 | AO200: 2735 | AP200: 21.5 | AS200: 4559 | AT200: 26052 | AU200: -21493 | AV200: 6859 | AW200: 1244 | AX200: 813 | AY200: 8916 | AZ200: 14110 | BA200: 0 | BB200: 49 | BC200: 31 | BD200: 28 | BE200: 1487 | BG200: 1150 | BH200: 0 | BI200: 0 | BJ200: 337 | BK200: 72 | BL200: 0 | BM200: 0 | BN200: 409 | BP200: 2338 | BV200: 885 | BX200: 6984 | CC200: 21.5 | CD200: 9.03 | CI200: 12863 | CJ200: 0 | CK200: 14220.02569 | CL200: 13754.53295 | CN200: 13754.53295 | CP200: 13855 | CQ200: -6.1639479 | CR200: -12 | CS200: -387 | CT200: 0 | CU200: 15 | CV200: 44
... 98 more rows

Sheet väestöennuste
A1: Väestöennuste 2015 kunnittain 2017-2024
A2: TK, 28.9.2015
A3: 2017 kuntajako | B3: 3 | C3: 4 | D3: 6 | E3: 7 | F3: 8 | G3: 9 | H3: 10 | I3: 11 | J3: 12 | K3: 13
B5: 2015 | C5: 2016 | D5: 2017 | E5: 2018 | F5: 2019 | G5: 2020 | H5: 2021 | I5: 2022 | J5: 2023 | K5: 2024
A8: Akaa | B8: =pohjatiedot!C3 -> 17043 | C8: =pohjatiedot!AO3 -> 16923 | D8: 17070 | E8: 17092 | F8: 17116 | G8: 17150 | H8: 17184 | I8: 17218 | J8: 17248 | K8: 17275
A9: Alajärvi | B9: =pohjatiedot!C4 -> 10006 | C9: =pohjatiedot!AO4 -> 9899 | D9: 10001 | E9: 9923 | F9: 9845 | G9: 9769 | H9: 9697 | I9: 9629 | J9: 9560 | K9: 9499
A10: Alavieska | B10: =pohjatiedot!C5 -> 2687 | C10: =pohjatiedot!AO5 -> 2639 | D10: 2650 | E10: 2631 | F10: 2615 | G10: 2599 | H10: 2586 | I10: 2572 | J10: 2560 | K10: 2549
A11: Alavus | B11: =pohjatiedot!C6 -> 12044 | C11: =pohjatiedot!AO6 -> 11907 | D11: 11877 | E11: 11780 | F11: 11689 | G11: 11605 | H11: 11527 | I11: 11454 | J11: 11384 | K11: 11319
A12: Asikkala | B12: =pohjatiedot!C7 -> 8287 | C12: =pohjatiedot!AO7 -> 8323 | D12: 8294 | E12: 8262 | F12: 8239 | G12: 8219 | H12: 8200 | I12: 8184 | J12: 8172 | K12: 8159
A13: Askola | B13: =pohjatiedot!C8 -> 5104 | C13: =pohjatiedot!AO8 -> 5046 | D13: 5169 | E13: 5220 | F13: 5270 | G13: 5320 | H13: 5365 | I13: 5410 | J13: 5449 | K13: 5490
A14: Aura | B14: =pohjatiedot!C9 -> 3986 | C14: =pohjatiedot!AO9 -> 3984 | D14: 4035 | E14: 4058 | F14: 4079 | G14: 4099 | H14: 4118 | I14: 4134 | J14: 4152 | K14: 4168
A15: Enonkoski | B15: =pohjatiedot!C10 -> 1473 | C15: =pohjatiedot!AO10 -> 1453 | D15: 1462 | E15: 1445 | F15: 1430 | G15: 1416 | H15: 1401 | I15: 1388 | J15: 1375 | K15: 1363
A16: Enontekiö | B16: =pohjatiedot!C11 -> 1861 | C16: =pohjatiedot!AO11 -> 1872 | D16: 1896 | E16: 1902 | F16: 1910 | G16: 1917 | H16: 1926 | I16: 1936 | J16: 1945 | K16: 1956
A17: Espoo | B17: =pohjatiedot!C12 -> 269802 | C17: =pohjatiedot!AO12 -> 274583 | D17: 273484 | E17: 277445 | F17: 281312 | G17: 285087 | H17: 288763 | I17: 292333 | J17: 295784 | K17: 299117
A18: Eura | B18: =pohjatiedot!C13 -> 12128 | C18: =pohjatiedot!AO13 -> 12004 | D18: 12205 | E18: 12166 | F18: 12127 | G18: 12091 | H18: 12059 | I18: 12028 | J18: 11995 | K18: 11960
A19: Eurajoki | B19: =pohjatiedot!C14 -> 5938 | C19: =pohjatiedot!AO14 -> 9418 | D19: 5964 | E19: 5972 | F19: 5984 | G19: 5995 | H19: 6007 | I19: 6016 | J19: 6024 | K19: 6029
A20: Evijärvi | B20: =pohjatiedot!C15 -> 2576 | C20: =pohjatiedot!AO15 -> 2535 | D20: 2596 | E20: 2571 | F20: 2548 | G20: 2528 | H20: 2510 | I20: 2492 | J20: 2474 | K20: 2458
A21: Forssa | B21: =pohjatiedot!C16 -> 17422 | C21: =pohjatiedot!AO16 -> 17332 | D21: 17389 | E21: 17336 | F21: 17286 | G21: 17237 | H21: 17197 | I21: 17163 | J21: 17132 | K21: 17101
A22: Haapajärvi | B22: =pohjatiedot!C17 -> 7438 | C22: =pohjatiedot!AO17 -> 7332 | D22: 7381 | E22: 7332 | F22: 7284 | G22: 7237 | H22: 7195 | I22: 7153 | J22: 7117 | K22: 7080
A23: Haapavesi | B23: =pohjatiedot!C18 -> 7167 | C23: =pohjatiedot!AO18 -> 7098 | D23: 7069 | E23: 7020 | F23: 6974 | G23: 6927 | H23: 6886 | I23: 6844 | J23: 6803 | K23: 6763
A24: Hailuoto | B24: =pohjatiedot!C19 -> 993 | C24: =pohjatiedot!AO19 -> 994 | D24: 995 | E24: 994 | F24: 996 | G24: 997 | H24: 997 | I24: 998 | J24: 999 | K24: 1000
A25: Halsua | B25: =pohjatiedot!C20 -> 1225 | C25: =pohjatiedot!AO20 -> 1219 | D25: 1177 | E25: 1156 | F25: 1137 | G25: 1116 | H25: 1096 | I25: 1078 | J25: 1062 | K25: 1047
A26: Hamina | B26: =pohjatiedot!C21 -> 20851 | C26: =pohjatiedot!AO21 -> 20636 | D26: 20848 | E26: 20752 | F26: 20659 | G26: 20565 | H26: 20470 | I26: 20376 | J26: 20285 | K26: 20196
A27: Hankasalmi | B27: =pohjatiedot!C22 -> 5240 | C27: =pohjatiedot!AO22 -> 5159 | D27: 5213 | E27: 5171 | F27: 5133 | G27: 5096 | H27: 5063 | I27: 5031 | J27: 5000 | K27: 4971
A28: Hanko | B28: =pohjatiedot!C23 -> 8864 | C28: =pohjatiedot!AO23 -> 8663 | D28: 8789 | E28: 8690 | F28: 8598 | G28: 8510 | H28: 8428 | I28: 8351 | J28: 8281 | K28: 8211
A29: Harjavalta | B29: =pohjatiedot!C24 -> 7296 | C29: =pohjatiedot!AO24 -> 7240 | D29: 7292 | E29: 7255 | F29: 7221 | G29: 7190 | H29: 7159 | I29: 7126 | J29: 7094 | K29: 7063
A30: Hartola | B30: =pohjatiedot!C25 -> 2982 | C30: =pohjatiedot!AO25 -> 2924 | D30: 2960 | E30: 2914 | F30: 2875 | G30: 2843 | H30: 2816 | I30: 2790 | J30: 2767 | K30: 2746
A31: Hattula | B31: =pohjatiedot!C26 -> 9747 | C31: =pohjatiedot!AO26 -> 9682 | D31: 9788 | E31: 9807 | F31: 9824 | G31: 9837 | H31: 9848 | I31: 9861 | J31: 9873 | K31: 9885
A32: Hausjärvi | B32: =pohjatiedot!C27 -> 8729 | C32: =pohjatiedot!AO27 -> 8641 | D32: 8814 | E32: 8817 | F32: 8825 | G32: 8836 | H32: 8848 | I32: 8863 | J32: 8880 | K32: 8895
A33: Heinola | B33: =pohjatiedot!C28 -> 19575 | C33: =pohjatiedot!AO28 -> 19350 | D33: 19359 | E33: 19213 | F33: 19081 | G33: 18961 | H33: 18845 | I33: 18743 | J33: 18644 | K33: 18547
A34: Heinävesi | B34: =pohjatiedot!C29 -> 3574 | C34: =pohjatiedot!AO29 -> 3514 | D34: 3497 | E34: 3434 | F34: 3376 | G34: 3319 | H34: 3267 | I34: 3216 | J34: 3170 | K34: 3124
A35: Helsinki | B35: =pohjatiedot!C30 -> 628208 | C35: =pohjatiedot!AO30 -> 635181 | D35: 634731 | E35: 641830 | F35: 648760 | G35: 655512 | H35: 662101 | I35: 668491 | J35: 674714 | K35: 680782
A36: Hirvensalmi | B36: =pohjatiedot!C31 -> 2290 | C36: =pohjatiedot!AO31 -> 2274 | D36: 2287 | E36: 2265 | F36: 2241 | G36: 2222 | H36: 2203 | I36: 2188 | J36: 2174 | K36: 2160
A37: Hollola | B37: =pohjatiedot!C32 -> 23915 | C37: =pohjatiedot!AO32 -> 23791 | D37: 23976 | E37: 23981 | F37: 23987 | G37: 23991 | H37: 23989 | I37: 23981 | J37: 23970 | K37: 23949
A38: Honkajoki | B38: =pohjatiedot!C33 -> 1793 | C38: =pohjatiedot!AO33 -> 1759 | D38: 1744 | E38: 1727 | F38: 1714 | G38: 1701 | H38: 1689 | I38: 1679 | J38: 1670 | K38: 1663
A39: Huittinen | B39: =pohjatiedot!C34 -> 10473 | C39: =pohjatiedot!AO34 -> 10403 | D39: 10383 | E39: 10337 | F39: 10295 | G39: 10258 | H39: 10220 | I39: 10189 | J39: 10158 | K39: 10130
A40: Humppila | B40: =pohjatiedot!C35 -> 2388 | C40: =pohjatiedot!AO35 -> 2345 | D40: 2409 | E40: 2390 | F40: 2373 | G40: 2357 | H40: 2343 | I40: 2332 | J40: 2320 | K40: 2309
A41: Hyrynsalmi | B41: =pohjatiedot!C36 -> 2422 | C41: =pohjatiedot!AO36 -> 2406 | D41: 2372 | E41: 2320 | F41: 2270 | G41: 2225 | H41: 2182 | I41: 2140 | J41: 2102 | K41: 2066
A42: Hyvinkää | B42: =pohjatiedot!C37 -> 46463 | C42: =pohjatiedot!AO37 -> 46596 | D42: 46732 | E42: 46921 | F42: 47115 | G42: 47313 | H42: 47514 | I42: 47715 | J42: 47916 | K42: 48116
A43: Hämeenkyrö | B43: =pohjatiedot!C38 -> 10667 | C43: =pohjatiedot!AO38 -> 10681 | D43: 10672 | E43: 10709 | F43: 10744 | G43: 10782 | H43: 10818 | I43: 10852 | J43: 10883 | K43: 10916
A44: Hämeenlinna | B44: =pohjatiedot!C39 -> 68011 | C44: =pohjatiedot!AO39 -> 67850 | D44: 68509 | E44: 68785 | F44: 69056 | G44: 69317 | H44: 69584 | I44: 69852 | J44: 70115 | K44: 70372
A45: Ii | B45: =pohjatiedot!C40 -> 9663 | C45: =pohjatiedot!AO40 -> 9628 | D45: 9791 | E45: 9847 | F45: 9897 | G45: 9944 | H45: 9982 | I45: 10018 | J45: 10048 | K45: 10074
A46: Iisalmi | B46: =pohjatiedot!C41 -> 21945 | C46: =pohjatiedot!AO41 -> 21767 | D46: 22111 | E46: 22106 | F46: 22098 | G46: 22089 | H46: 22080 | I46: 22067 | J46: 22058 | K46: 22047
A47: Iitti | B47: =pohjatiedot!C42 -> 6910 | C47: =pohjatiedot!AO42 -> 6889 | D47: 6892 | E47: 6872 | F47: 6855 | G47: 6842 | H47: 6831 | I47: 6823 | J47: 6814 | K47: 6807
A48: Ikaalinen | B48: =pohjatiedot!C43 -> 7207 | C48: =pohjatiedot!AO43 -> 7128 | D48: 7229 | E48: 7209 | F48: 7195 | G48: 7182 | H48: 7175 | I48: 7172 | J48: 7171 | K48: 7173
A49: Ilmajoki | B49: =pohjatiedot!C44 -> 12159 | C49: =pohjatiedot!AO44 -> 12167 | D49: 12327 | E49: 12399 | F49: 12470 | G49: 12541 | H49: 12609 | I49: 12674 | J49: 12743 | K49: 12812
A50: Ilomantsi | B50: =pohjatiedot!C45 -> 5336 | C50: =pohjatiedot!AO45 -> 5237 | D50: 5295 | E50: 5201 | F50: 5112 | G50: 5030 | H50: 4951 | I50: 4878 | J50: 4807 | K50: 4740
A51: Imatra | B51: =pohjatiedot!C46 -> 27835 | C51: =pohjatiedot!AO46 -> 27517 | D51: 27722 | E51: 27589 | F51: 27470 | G51: 27359 | H51: 27254 | I51: 27152 | J51: 27052 | K51: 26951
A52: Inari | B52: =pohjatiedot!C47 -> 6804 | C52: =pohjatiedot!AO47 -> 6825 | D52: 6800 | E52: 6796 | F52: 6797 | G52: 6800 | H52: 6803 | I52: 6810 | J52: 6817 | K52: 6823
A53: Inkoo | B53: =pohjatiedot!C48 -> 5541 | C53: =pohjatiedot!AO48 -> 5585 | D53: 5523 | E53: 5516 | F53: 5512 | G53: 5511 | H53: 5510 | I53: 5512 | J53: 5515 | K53: 5519
A54: Isojoki | B54: =pohjatiedot!C49 -> 2123 | C54: =pohjatiedot!AO49 -> 2079 | D54: 2120 | E54: 2084 | F54: 2053 | G54: 2026 | H54: 2001 | I54: 1979 | J54: 1957 | K54: 1937
A55: Isokyrö | B55: =pohjatiedot!C50 -> 4785 | C55: =pohjatiedot!AO50 -> 4712 | D55: 4792 | E55: 4768 | F55: 4747 | G55: 4730 | H55: 4711 | I55: 4692 | J55: 4677 | K55: 4664
A56: Janakkala | B56: =pohjatiedot!C51 -> 16853 | C56: =pohjatiedot!AO51 -> 16709 | D56: 16857 | E56: 16866 | F56: 16878 | G56: 16885 | H56: 16896 | I56: 16906 | J56: 16915 | K56: 16924
A57: Joensuu | B57: =pohjatiedot!C52 -> 75514 | C57: =pohjatiedot!AO52 -> 75848 | D57: 75895 | E57: 76269 | F57: 76610 | G57: 76925 | H57: 77223 | I57: 77501 | J57: 77769 | K57: 78031
A58: Jokioinen | B58: =pohjatiedot!C53 -> 5425 | C58: =pohjatiedot!AO53 -> 5341 | D58: 5436 | E58: 5398 | F58: 5364 | G58: 5331 | H58: 5301 | I58: 5272 | J58: 5244 | K58: 5218
A59: Joroinen | B59: =pohjatiedot!C54 -> 5110 | C59: =pohjatiedot!AO54 -> 5039 | D59: 5078 | E59: 5035 | F59: 4995 | G59: 4957 | H59: 4923 | I59: 4885 | J59: 4852 | K59: 4820
A60: Joutsa | B60: =pohjatiedot!C55 -> 4688 | C60: =pohjatiedot!AO55 -> 4673 | D60: 4639 | E60: 4582 | F60: 4533 | G60: 4486 | H60: 4442 | I60: 4403 | J60: 4366 | K60: 4327
A61: Juuka | B61: =pohjatiedot!C56 -> 5034 | C61: =pohjatiedot!AO56 -> 4938 | D61: 4924 | E61: 4823 | F61: 4728 | G61: 4638 | H61: 4557 | I61: 4480 | J61: 4403 | K61: 4330
A62: Juupajoki | B62: =pohjatiedot!C57 -> 1988 | C62: =pohjatiedot!AO57 -> 1957 | D62: 1993 | E62: 1978 | F62: 1967 | G62: 1958 | H62: 1950 | I62: 1941 | J62: 1934 | K62: 1926
A63: Juva | B63: =pohjatiedot!C58 -> 6548 | C63: =pohjatiedot!AO58 -> 6421 | D63: 6428 | E63: 6343 | F63: 6257 | G63: 6175 | H63: 6093 | I63: 6017 | J63: 5945 | K63: 5875
A64: Jyväskylä | B64: =pohjatiedot!C59 -> 137368 | C64: =pohjatiedot!AO59 -> 138850 | D64: 138088 | E64: 139151 | F64: 140154 | G64: 141114 | H64: 142035 | I64: 142915 | J64: 143769 | K64: 144599
A65: Jämijärvi | B65: =pohjatiedot!C60 -> 1948 | C65: =pohjatiedot!AO60 -> 1915 | D65: 1974 | E65: 1961 | F65: 1952 | G65: 1942 | H65: 1934 | I65: 1929 | J65: 1925 | K65: 1922
A66: Jämsä | B66: =pohjatiedot!C61 -> 21542 | C66: =pohjatiedot!AO61 -> 21259 | D66: 21332 | E66: 21112 | F66: 20901 | G66: 20695 | H66: 20503 | I66: 20320 | J66: 20152 | K66: 19991
A67: Järvenpää | B67: =pohjatiedot!C62 -> 40900 | C67: =pohjatiedot!AO62 -> 41529 | D67: 40957 | E67: 41265 | F67: 41581 | G67: 41899 | H67: 42225 | I67: 42551 | J67: 42875 | K67: 43192
A68: Kaarina | B68: =pohjatiedot!C63 -> 32590 | C68: =pohjatiedot!AO63 -> 32738 | D68: 32669 | E68: 32920 | F68: 33164 | G68: 33400 | H68: 33628 | I68: 33855 | J68: 34073 | K68: 34279
A69: Kaavi | B69: =pohjatiedot!C64 -> 3194 | C69: =pohjatiedot!AO64 -> 3154 | D69: 3133 | E69: 3095 | F69: 3062 | G69: 3029 | H69: 3001 | I69: 2972 | J69: 2946 | K69: 2921
A70: Kajaani | B70: =pohjatiedot!C65 -> 37622 | C70: =pohjatiedot!AO65 -> 37521 | D70: 37617 | E70: 37547 | F70: 37483 | G70: 37419 | H70: 37360 | I70: 37308 | J70: 37255 | K70: 37203
A71: Kalajoki | B71: =pohjatiedot!C66 -> 12621 | C71: =pohjatiedot!AO66 -> 12586 | D71: 12654 | E71: 12671 | F71: 12686 | G71: 12701 | H71: 12712 | I71: 12721 | J71: 12727 | K71: 12729
A72: Kangasala | B72: =pohjatiedot!C67 -> 30607 | C72: =pohjatiedot!AO67 -> 31190 | D72: 30760 | E72: 30917 | F72: 31080 | G72: 31239 | H72: 31393 | I72: 31541 | J72: 31680 | K72: 31798
A73: Kangasniemi | B73: =pohjatiedot!C68 -> 5628 | C73: =pohjatiedot!AO68 -> 5603 | D73: 5545 | E73: 5483 | F73: 5425 | G73: 5372 | H73: 5324 | I73: 5277 | J73: 5233 | K73: 5189
A74: Kankaanpää | B74: =pohjatiedot!C69 -> 11769 | C74: =pohjatiedot!AO69 -> 11637 | D74: 11737 | E74: 11672 | F74: 11610 | G74: 11549 | H74: 11492 | I74: 11440 | J74: 11389 | K74: 11343
A75: Kannonkoski | B75: =pohjatiedot!C70 -> 1462 | C75: =pohjatiedot!AO70 -> 1424 | D75: 1436 | E75: 1418 | F75: 1402 | G75: 1386 | H75: 1371 | I75: 1358 | J75: 1344 | K75: 1334
A76: Kannus | B76: =pohjatiedot!C71 -> 5590 | C76: =pohjatiedot!AO71 -> 5578 | D76: 5568 | E76: 5534 | F76: 5503 | G76: 5473 | H76: 5445 | I76: 5418 | J76: 5395 | K76: 5372
A77: Karijoki | B77: =pohjatiedot!C72 -> 1369 | C77: =pohjatiedot!AO72 -> 1349 | D77: 1351 | E77: 1328 | F77: 1308 | G77: 1289 | H77: 1271 | I77: 1257 | J77: 1242 | K77: 1230
A78: Karkkila | B78: =pohjatiedot!C73 -> 8969 | C78: =pohjatiedot!AO73 -> 8911 | D78: 8897 | E78: 8873 | F78: 8853 | G78: 8838 | H78: 8825 | I78: 8819 | J78: 8815 | K78: 8814
A79: Karstula | B79: =pohjatiedot!C74 -> 4268 | C79: =pohjatiedot!AO74 -> 4232 | D79: 4170 | E79: 4114 | F79: 4062 | G79: 4013 | H79: 3966 | I79: 3919 | J79: 3874 | K79: 3832
A80: Karvia | B80: =pohjatiedot!C75 -> 2475 | C80: =pohjatiedot!AO75 -> 2449 | D80: 2421 | E80: 2387 | F80: 2355 | G80: 2325 | H80: 2296 | I80: 2269 | J80: 2246 | K80: 2222
A81: Kaskinen | B81: =pohjatiedot!C76 -> 1285 | C81: =pohjatiedot!AO76 -> 1296 | D81: 1278 | E81: 1262 | F81: 1248 | G81: 1237 | H81: 1227 | I81: 1218 | J81: 1212 | K81: 1206
A82: Kauhajoki | B82: =pohjatiedot!C77 -> 13875 | C82: =pohjatiedot!AO77 -> 13772 | D82: 13865 | E82: 13799 | F82: 13741 | G82: 13687 | H82: 13640 | I82: 13599 | J82: 13561 | K82: 13526
A83: Kauhava | B83: =pohjatiedot!C78 -> 16784 | C83: =pohjatiedot!AO78 -> 16599 | D83: 16630 | E83: 16502 | F83: 16382 | G83: 16272 | H83: 16164 | I83: 16060 | J83: 15963 | K83: 15863
A84: Kauniainen | B84: =pohjatiedot!C79 -> 9486 | C84: =pohjatiedot!AO79 -> 9397 | D84: 9603 | E84: 9730 | F84: 9853 | G84: 9978 | H84: 10100 | I84: 10216 | J84: 10330 | K84: 10444
A85: Kaustinen | B85: =pohjatiedot!C80 -> 4305 | C85: =pohjatiedot!AO80 -> 4298 | D85: 4271 | E85: 4267 | F85: 4264 | G85: 4263 | H85: 4263 | I85: 4264 | J85: 4264 | K85: 4263
A86: Keitele | B86: =pohjatiedot!C81 -> 2379 | C86: =pohjatiedot!AO81 -> 2346 | D86: 2340 | E86: 2311 | F86: 2283 | G86: 2257 | H86: 2232 | I86: 2208 | J86: 2187 | K86: 2166
A87: Kemi | B87: =pohjatiedot!C82 -> 21758 | C87: =pohjatiedot!AO82 -> 21602 | D87: 21647 | E87: 21522 | F87: 21405 | G87: 21296 | H87: 21192 | I87: 21095 | J87: 21003 | K87: 20916
A88: Kemijärvi | B88: =pohjatiedot!C83 -> 7766 | C88: =pohjatiedot!AO83 -> 7661 | D88: 7616 | E88: 7492 | F88: 7376 | G88: 7266 | H88: 7160 | I88: 7058 | J88: 6963 | K88: 6872
A89: Keminmaa | B89: =pohjatiedot!C84 -> 8388 | C89: =pohjatiedot!AO84 -> 8316 | D89: 8416 | E89: 8395 | F89: 8375 | G89: 8355 | H89: 8339 | I89: 8325 | J89: 8312 | K89: 8299
A90: Kemiönsaari | B90: =pohjatiedot!C85 -> 6909 | C90: =pohjatiedot!AO85 -> 6872 | D90: 6772 | E90: 6702 | F90: 6638 | G90: 6576 | H90: 6520 | I90: 6469 | J90: 6421 | K90: 6376
A91: Kempele | B91: =pohjatiedot!C86 -> 17066 | C91: =pohjatiedot!AO86 -> 17297 | D91: 17361 | E91: 17575 | F91: 17777 | G91: 17971 | H91: 18151 | I91: 18318 | J91: 18469 | K91: 18606
A92: Kerava | B92: =pohjatiedot!C87 -> 35293 | C92: =pohjatiedot!AO87 -> 35511 | D92: 35832 | E92: 36107 | F92: 36384 | G92: 36660 | H92: 36937 | I92: 37211 | J92: 37484 | K92: 37751
A93: Keuruu | B93: =pohjatiedot!C88 -> 10117 | C93: =pohjatiedot!AO88 -> 9992 | D93: 9939 | E93: 9834 | F93: 9741 | G93: 9656 | H93: 9578 | I93: 9501 | J93: 9430 | K93: 9363
A94: Kihniö | B94: =pohjatiedot!C89 -> 2038 | C94: =pohjatiedot!AO89 -> 1994 | D94: 2009 | E94: 1977 | F94: 1946 | G94: 1919 | H94: 1891 | I94: 1865 | J94: 1839 | K94: 1816
A95: Kinnula | B95: =pohjatiedot!C90 -> 1745 | C95: =pohjatiedot!AO90 -> 1699 | D95: 1747 | E95: 1737 | F95: 1727 | G95: 1719 | H95: 1712 | I95: 1706 | J95: 1699 | K95: 1692
A96: Kirkkonummi | B96: =pohjatiedot!C91 -> 38649 | C96: =pohjatiedot!AO91 -> 39033 | D96: 38798 | E96: 39097 | F96: 39400 | G96: 39703 | H96: 40002 | I96: 40291 | J96: 40573 | K96: 40841
A97: Kitee | B97: =pohjatiedot!C92 -> 10832 | C97: =pohjatiedot!AO92 -> 10719 | D97: 10603 | E97: 10433 | F97: 10279 | G97: 10129 | H97: 9987 | I97: 9854 | J97: 9725 | K97: 9602
A98: Kittilä | B98: =pohjatiedot!C93 -> 6416 | C98: =pohjatiedot!AO93 -> 6383 | D98: 6592 | E98: 6655 | F98: 6716 | G98: 6777 | H98: 6836 | I98: 6893 | J98: 6946 | K98: 6992
A99: Kiuruvesi | B99: =pohjatiedot!C94 -> 8600 | C99: =pohjatiedot!AO94 -> 8444 | D99: 8543 | E99: 8449 | F99: 8361 | G99: 8277 | H99: 8197 | I99: 8123 | J99: 8051 | K99: 7984
A100: Kivijärvi | B100: =pohjatiedot!C95 -> 1200 | C100: =pohjatiedot!AO95 -> 1161 | D100: 1185 | E100: 1163 | F100: 1143 | G100: 1125 | H100: 1109 | I100: 1095 | J100: 1082 | K100: 1070
A101: Kokemäki | B101: =pohjatiedot!C96 -> 7591 | C101: =pohjatiedot!AO96 -> 7498 | D101: 7541 | E101: 7472 | F101: 7410 | G101: 7355 | H101: 7301 | I101: 7251 | J101: 7206 | K101: 7162
A102: Kokkola | B102: =pohjatiedot!C97 -> 47570 | C102: =pohjatiedot!AO97 -> 47723 | D102: 47729 | E102: 47957 | F102: 48186 | G102: 48409 | H102: 48625 | I102: 48836 | J102: 49038 | K102: 49235
A103: KOKO MAA (Manner-Suomi) | B103: =pohjatiedot!C98 -> 5458325 | C103: =pohjatiedot!AO98 -> 5474083 | D103: 5482281 | E103: 5503261 | F103: 5524063 | G103: 5544619 | H103: 5564874 | I103: 5584791 | J103: 5604290 | K103: 5623257
A104: Kolari | B104: =pohjatiedot!C99 -> 3848 | C104: =pohjatiedot!AO99 -> 3827 | D104: 3825 | E104: 3827 | F104: 3831 | G104: 3840 | H104: 3849 | I104: 3858 | J104: 3866 | K104: 3873
A105: Konnevesi | B105: =pohjatiedot!C100 -> 2757 | C105: =pohjatiedot!AO100 -> 2753 | D105: 2773 | E105: 2745 | F105: 2719 | G105: 2695 | H105: 2672 | I105: 2652 | J105: 2631 | K105: 2610
A106: Kontiolahti | B106: =pohjatiedot!C101 -> 14827 | C106: =pohjatiedot!AO101 -> 14806 | D106: 15108 | E106: 15306 | F106: 15493 | G106: 15669 | H106: 15838 | I106: 15996 | J106: 16147 | K106: 16290
A107: Korsnäs | B107: =pohjatiedot!C102 -> 2201 | C107: =pohjatiedot!AO102 -> 2171 | D107: 2202 | E107: 2197 | F107: 2194 | G107: 2192 | H107: 2191 | I107: 2193 | J107: 2197 | K107: 2199
A108: Koski | B108: =pohjatiedot!C103 -> 2399 | C108: =pohjatiedot!AO103 -> 2416 | D108: 2424 | E108: 2419 | F108: 2413 | G108: 2407 | H108: 2400 | I108: 2395 | J108: 2388 | K108: 2385
A109: Kotka | B109: =pohjatiedot!C104 -> 54319 | C109: =pohjatiedot!AO104 -> 54187 | D109: 54374 | E109: 54321 | F109: 54262 | G109: 54200 | H109: 54141 | I109: 54085 | J109: 54028 | K109: 53971
A110: Kouvola | B110: =pohjatiedot!C105 -> 85855 | C110: =pohjatiedot!AO105 -> 85306 | D110: 85697 | E110: 85356 | F110: 85030 | G110: 84722 | H110: 84419 | I110: 84130 | J110: 83852 | K110: 83577
A111: Kristiinankaupunki | B111: =pohjatiedot!C106 -> 6793 | C111: =pohjatiedot!AO106 -> 6727 | D111: 6648 | E111: 6566 | F111: 6492 | G111: 6421 | H111: 6358 | I111: 6299 | J111: 6245 | K111: 6197
A112: Kruunupyy | B112: =pohjatiedot!C107 -> 6682 | C112: =pohjatiedot!AO107 -> 6620 | D112: 6627 | E112: 6614 | F112: 6605 | G112: 6596 | H112: 6588 | I112: 6583 | J112: 6579 | K112: 6576
A113: Kuhmo | B113: =pohjatiedot!C108 -> 8806 | C113: =pohjatiedot!AO108 -> 8647 | D113: 8659 | E113: 8526 | F113: 8397 | G113: 8271 | H113: 8149 | I113: 8031 | J113: 7919 | K113: 7809
A114: Kuhmoinen | B114: =pohjatiedot!C109 -> 2334 | C114: =pohjatiedot!AO109 -> 2286 | D114: 2285 | E114: 2248 | F114: 2210 | G114: 2175 | H114: 2139 | I114: 2106 | J114: 2077 | K114: 2049
A115: Kuopio | B115: =pohjatiedot!C110 -> 112117 | C115: =pohjatiedot!AO110 -> 117740 | D115: 113230 | E115: 114128 | F115: 114980 | G115: 115790 | H115: 116572 | I115: 117323 | J115: 118050 | K115: 118754
A116: Kuortane | B116: =pohjatiedot!C111 -> 3715 | C116: =pohjatiedot!AO111 -> 3690 | D116: 3612 | E116: 3562 | F116: 3512 | G116: 3463 | H116: 3418 | I116: 3373 | J116: 3330 | K116: 3289
A117: Kurikka | B117: =pohjatiedot!C112 -> 21734 | C117: =pohjatiedot!AO112 -> 21501 | D117: 21707 | E117: 21547 | F117: 21398 | G117: 21261 | H117: 21129 | I117: 21004 | J117: 20883 | K117: 20766
A118: Kustavi | B118: =pohjatiedot!C113 -> 895 | C118: =pohjatiedot!AO113 -> 908 | D118: 892 | E118: 894 | F118: 893 | G118: 893 | H118: 893 | I118: 896 | J118: 898 | K118: 898
A119: Kuusamo | B119: =pohjatiedot!C114 -> 15688 | C119: =pohjatiedot!AO114 -> 15533 | D119: 15434 | E119: 15264 | F119: 15107 | G119: 14967 | H119: 14838 | I119: 14717 | J119: 14600 | K119: 14489
A120: Kyyjärvi | B120: =pohjatiedot!C115 -> 1379 | C120: =pohjatiedot!AO115 -> 1375 | D120: 1343 | E120: 1317 | F120: 1293 | G120: 1272 | H120: 1248 | I120: 1226 | J120: 1205 | K120: 1186
A121: Kärkölä | B121: =pohjatiedot!C116 -> 4604 | C121: =pohjatiedot!AO116 -> 4540 | D121: 4533 | E121: 4495 | F121: 4462 | G121: 4433 | H121: 4409 | I121: 4385 | J121: 4363 | K121: 4345
A122: Kärsämäki | B122: =pohjatiedot!C117 -> 2658 | C122: =pohjatiedot!AO117 -> 2655 | D122: 2594 | E122: 2548 | F122: 2506 | G122: 2462 | H122: 2422 | I122: 2383 | J122: 2344 | K122: 2308
A123: Lahti | B123: =pohjatiedot!C118 -> 118743 | C123: =pohjatiedot!AO118 -> 119452 | D123: 119587 | E123: 120041 | F123: 120476 | G123: 120897 | H123: 121300 | I123: 121683 | J123: 122060 | K123: 122425
A124: Laihia | B124: =pohjatiedot!C119 -> 8090 | C124: =pohjatiedot!AO119 -> 8139 | D124: 8157 | E124: 8205 | F124: 8252 | G124: 8298 | H124: 8341 | I124: 8379 | J124: 8416 | K124: 8451
A125: Laitila | B125: =pohjatiedot!C120 -> 8520 | C125: =pohjatiedot!AO120 -> 8520 | D125: 8576 | E125: 8597 | F125: 8615 | G125: 8633 | H125: 8650 | I125: 8668 | J125: 8687 | K125: 8706
A126: Lapinjärvi | B126: =pohjatiedot!C121 -> 2774 | C126: =pohjatiedot!AO121 -> 2739 | D126: 2722 | E126: 2699 | F126: 2680 | G126: 2664 | H126: 2649 | I126: 2635 | J126: 2626 | K126: 2616
A127: Lapinlahti | B127: =pohjatiedot!C122 -> 9982 | C127: =pohjatiedot!AO122 -> 9882 | D127: 9939 | E127: 9869 | F127: 9803 | G127: 9739 | H127: 9677 | I127: 9621 | J127: 9567 | K127: 9515
A128: Lappajärvi | B128: =pohjatiedot!C123 -> 3215 | C128: =pohjatiedot!AO123 -> 3176 | D128: 3149 | E128: 3102 | F128: 3057 | G128: 3016 | H128: 2977 | I128: 2940 | J128: 2906 | K128: 2872
A129: Lappeenranta | B129: =pohjatiedot!C124 -> 72875 | C129: =pohjatiedot!AO124 -> 72872 | D129: 73103 | E129: 73255 | F129: 73397 | G129: 73535 | H129: 73666 | I129: 73791 | J129: 73917 | K129: 74042
A130: Lapua | B130: =pohjatiedot!C125 -> 14609 | C130: =pohjatiedot!AO125 -> 14575 | D130: 14848 | E130: 14919 | F130: 14989 | G130: 15054 | H130: 15119 | I130: 15183 | J130: 15245 | K130: 15300
A131: Laukaa | B131: =pohjatiedot!C126 -> 18865 | C131: =pohjatiedot!AO126 -> 18970 | D131: 18946 | E131: 19066 | F131: 19183 | G131: 19297 | H131: 19406 | I131: 19508 | J131: 19600 | K131: 19682
A132: Lemi | B132: =pohjatiedot!C127 -> 3073 | C132: =pohjatiedot!AO127 -> 3076 | D132: 3133 | E132: 3138 | F132: 3143 | G132: 3146 | H132: 3149 | I132: 3151 | J132: 3151 | K132: 3150
A133: Lempäälä | B133: =pohjatiedot!C128 -> 22536 | C133: =pohjatiedot!AO128 -> 22745 | D133: 22991 | E133: 23358 | F133: 23715 | G133: 24061 | H133: 24395 | I133: 24714 | J133: 25023 | K133: 25313
A134: Leppävirta | B134: =pohjatiedot!C129 -> 9953 | C134: =pohjatiedot!AO129 -> 9865 | D134: 9735 | E134: 9609 | F134: 9489 | G134: 9377 | H134: 9269 | I134: 9166 | J134: 9070 | K134: 8981
A135: Lestijärvi | B135: =pohjatiedot!C130 -> 798 | C135: =pohjatiedot!AO130 -> 811 | D135: 799 | E135: 793 | F135: 786 | G135: 783 | H135: 777 | I135: 771 | J135: 768 | K135: 765
A136: Lieksa | B136: =pohjatiedot!C131 -> 11772 | C136: =pohjatiedot!AO131 -> 11580 | D136: 11832 | E136: 11706 | F136: 11585 | G136: 11470 | H136: 11363 | I136: 11261 | J136: 11164 | K136: 11072
A137: Lieto | B137: =pohjatiedot!C132 -> 19263 | C137: =pohjatiedot!AO132 -> 19418 | D137: 19685 | E137: 19918 | F137: 20149 | G137: 20370 | H137: 20585 | I137: 20796 | J137: 21000 | K137: 21193
A138: Liminka | B138: =pohjatiedot!C133 -> 9937 | C138: =pohjatiedot!AO133 -> 10000 | D138: 10104 | E138: 10267 | F138: 10418 | G138: 10554 | H138: 10671 | I138: 10776 | J138: 10870 | K138: 10952
A139: Liperi | B139: =pohjatiedot!C134 -> 12338 | C139: =pohjatiedot!AO134 -> 12301 | D139: 12385 | E139: 12414 | F139: 12438 | G139: 12461 | H139: 12480 | I139: 12499 | J139: 12517 | K139: 12532
A140: Lohja | B140: =pohjatiedot!C135 -> 47353 | C140: =pohjatiedot!AO135 -> 47149 | D140: 47754 | E140: 47839 | F140: 47932 | G140: 48033 | H140: 48136 | I140: 48245 | J140: 48350 | K140: 48461
A141: Loimaa | B141: =pohjatiedot!C136 -> 16467 | C141: =pohjatiedot!AO136 -> 16267 | D141: 16418 | E141: 16343 | F141: 16272 | G141: 16211 | H141: 16150 | I141: 16098 | J141: 16050 | K141: 16006
A142: Loppi | B142: =pohjatiedot!C137 -> 8175 | C142: =pohjatiedot!AO137 -> 8098 | D142: 8300 | E142: 8311 | F142: 8317 | G142: 8325 | H142: 8330 | I142: 8334 | J142: 8338 | K142: 8339
A143: Loviisa | B143: =pohjatiedot!C138 -> 15311 | C143: =pohjatiedot!AO138 -> 15208 | D143: 15461 | E143: 15459 | F143: 15459 | G143: 15465 | H143: 15474 | I143: 15485 | J143: 15499 | K143: 15515
A144: Luhanka | B144: =pohjatiedot!C139 -> 761 | C144: =pohjatiedot!AO139 -> 756 | D144: 737 | E144: 724 | F144: 715 | G144: 706 | H144: 699 | I144: 692 | J144: 685 | K144: 680
A145: Lumijoki | B145: =pohjatiedot!C140 -> 2076 | C145: =pohjatiedot!AO140 -> 2105 | D145: 2107 | E145: 2121 | F145: 2134 | G145: 2145 | H145: 2157 | I145: 2169 | J145: 2175 | K145: 2181
A146: Luoto | B146: =pohjatiedot!C141 -> 5147 | C146: =pohjatiedot!AO141 -> 5176 | D146: 5257 | E146: 5332 | F146: 5406 | G146: 5478 | H146: 5549 | I146: 5618 | J146: 5687 | K146: 5753
A147: Luumäki | B147: =pohjatiedot!C142 -> 4860 | C147: =pohjatiedot!AO142 -> 4831 | D147: 4844 | E147: 4795 | F147: 4748 | G147: 4703 | H147: 4662 | I147: 4620 | J147: 4584 | K147: 4549
A148: Maalahti | B148: =pohjatiedot!C143 -> 5545 | C148: =pohjatiedot!AO143 -> 5517 | D148: 5540 | E148: 5533 | F148: 5526 | G148: 5524 | H148: 5523 | I148: 5525 | J148: 5527 | K148: 5531
A149: Marttila | B149: =pohjatiedot!C144 -> 2028 | C149: =pohjatiedot!AO144 -> 2021 | D149: 2086 | E149: 2097 | F149: 2106 | G149: 2115 | H149: 2124 | I149: 2137 | J149: 2147 | K149: 2158
A150: Masku | B150: =pohjatiedot!C145 -> 9706 | C150: =pohjatiedot!AO145 -> 9675 | D150: 9914 | E150: 9981 | F150: 10046 | G150: 10106 | H150: 10164 | I150: 10221 | J150: 10278 | K150: 10331
A151: Merijärvi | B151: =pohjatiedot!C146 -> 1134 | C151: =pohjatiedot!AO146 -> 1131 | D151: 1128 | E151: 1116 | F151: 1106 | G151: 1096 | H151: 1085 | I151: 1076 | J151: 1067 | K151: 1061
A152: Merikarvia | B152: =pohjatiedot!C147 -> 3185 | C152: =pohjatiedot!AO147 -> 3169 | D152: 3169 | E152: 3136 | F152: 3103 | G152: 3073 | H152: 3044 | I152: 3015 | J152: 2987 | K152: 2961
A153: Miehikkälä | B153: =pohjatiedot!C148 -> 2085 | C153: =pohjatiedot!AO148 -> 2034 | D153: 2065 | E153: 2041 | F153: 2020 | G153: 1997 | H153: 1976 | I153: 1957 | J153: 1938 | K153: 1921
A154: Mikkeli | B154: =pohjatiedot!C149 -> 54665 | C154: =pohjatiedot!AO149 -> 54517 | D154: 54633 | E154: 54651 | F154: 54665 | G154: 54678 | H154: 54690 | I154: 54707 | J154: 54722 | K154: 54732
A155: Muhos | B155: =pohjatiedot!C150 -> 9063 | C155: =pohjatiedot!AO150 -> 8995 | D155: 9017 | E155: 9027 | F155: 9037 | G155: 9039 | H155: 9032 | I155: 9024 | J155: 9012 | K155: 8999
A156: Multia | B156: =pohjatiedot!C151 -> 1710 | C156: =pohjatiedot!AO151 -> 1663 | D156: 1698 | E156: 1667 | F156: 1639 | G156: 1612 | H156: 1586 | I156: 1561 | J156: 1538 | K156: 1517
A157: Muonio | B157: =pohjatiedot!C152 -> 2358 | C157: =pohjatiedot!AO152 -> 2350 | D157: 2363 | E157: 2358 | F157: 2356 | G157: 2355 | H157: 2356 | I157: 2355 | J157: 2355 | K157: 2357
A158: Mustasaari | B158: =pohjatiedot!C153 -> 19302 | C158: =pohjatiedot!AO153 -> 19380 | D158: 19625 | E158: 19797 | F158: 19967 | G158: 20129 | H158: 20286 | I158: 20438 | J158: 20585 | K158: 20720
A159: Muurame | B159: =pohjatiedot!C154 -> 9791 | C159: =pohjatiedot!AO154 -> 9941 | D159: 9880 | E159: 9969 | F159: 10055 | G159: 10139 | H159: 10216 | I159: 10290 | J159: 10360 | K159: 10427
A160: Mynämäki | B160: =pohjatiedot!C155 -> 7859 | C160: =pohjatiedot!AO155 -> 7842 | D160: 7835 | E160: 7798 | F160: 7761 | G160: 7729 | H160: 7701 | I160: 7678 | J160: 7657 | K160: 7638
A161: Myrskylä | B161: =pohjatiedot!C156 -> 1969 | C161: =pohjatiedot!AO156 -> 1986 | D161: 1976 | E161: 1973 | F161: 1976 | G161: 1978 | H161: 1982 | I161: 1987 | J161: 1991 | K161: 1994
A162: Mäntsälä | B162: =pohjatiedot!C157 -> 20685 | C162: =pohjatiedot!AO157 -> 20853 | D162: 20902 | E162: 21045 | F162: 21187 | G162: 21328 | H162: 21465 | I162: 21607 | J162: 21748 | K162: 21887
A163: Mänttä-Vilppula | B163: =pohjatiedot!C158 -> 10604 | C163: =pohjatiedot!AO158 -> 10448 | D163: 10394 | E163: 10250 | F163: 10113 | G163: 9988 | H163: 9869 | I163: 9758 | J163: 9656 | K163: 9565
A164: Mäntyharju | B164: =pohjatiedot!C159 -> 6159 | C164: =pohjatiedot!AO159 -> 6097 | D164: 6173 | E164: 6134 | F164: 6097 | G164: 6059 | H164: 6023 | I164: 5990 | J164: 5957 | K164: 5926
A165: Naantali | B165: =pohjatiedot!C160 -> 18961 | C165: =pohjatiedot!AO160 -> 19068 | D165: 18875 | E165: 18904 | F165: 18942 | G165: 18982 | H165: 19027 | I165: 19077 | J165: 19126 | K165: 19175
A166: Nakkila | B166: =pohjatiedot!C161 -> 5651 | C166: =pohjatiedot!AO161 -> 5548 | D166: 5613 | E166: 5592 | F166: 5571 | G166: 5552 | H166: 5530 | I166: 5511 | J166: 5490 | K166: 5468
A167: Nivala | B167: =pohjatiedot!C162 -> 10876 | C167: =pohjatiedot!AO162 -> 10889 | D167: 10910 | E167: 10890 | F167: 10874 | G167: 10859 | H167: 10839 | I167: 10819 | J167: 10797 | K167: 10775
A168: Nokia | B168: =pohjatiedot!C163 -> 33162 | C168: =pohjatiedot!AO163 -> 33210 | D168: 33340 | E168: 33585 | F168: 33824 | G168: 34055 | H168: 34282 | I168: 34500 | J168: 34710 | K168: 34904
A169: Nousiainen | B169: =pohjatiedot!C164 -> 4859 | C169: =pohjatiedot!AO164 -> 4815 | D169: 4859 | E169: 4865 | F169: 4869 | G169: 4875 | H169: 4881 | I169: 4887 | J169: 4894 | K169: 4900
A170: Nurmes | B170: =pohjatiedot!C165 -> 7996 | C170: =pohjatiedot!AO165 -> 7885 | D170: 7851 | E170: 7753 | F170: 7664 | G170: 7581 | H170: 7500 | I170: 7422 | J170: 7346 | K170: 7275
A171: Nurmijärvi | B171: =pohjatiedot!C166 -> 41897 | C171: =pohjatiedot!AO166 -> 42010 | D171: 42237 | E171: 42573 | F171: 42908 | G171: 43240 | H171: 43566 | I171: 43883 | J171: 44194 | K171: 44501
A172: Närpiö | B172: =pohjatiedot!C167 -> 9387 | C172: =pohjatiedot!AO167 -> 9439 | D172: 9323 | E172: 9303 | F172: 9288 | G172: 9274 | H172: 9263 | I172: 9254 | J172: 9246 | K172: 9240
A173: Orimattila | B173: =pohjatiedot!C168 -> 16326 | C173: =pohjatiedot!AO168 -> 16279 | D173: 16258 | E173: 16256 | F173: 16254 | G173: 16257 | H173: 16257 | I173: 16257 | J173: 16256 | K173: 16256
A174: Oripää | B174: =pohjatiedot!C169 -> 1377 | C174: =pohjatiedot!AO169 -> 1363 | D174: 1429 | E174: 1431 | F174: 1436 | G174: 1437 | H174: 1438 | I174: 1439 | J174: 1440 | K174: 1441
A175: Orivesi | B175: =pohjatiedot!C170 -> 9408 | C175: =pohjatiedot!AO170 -> 9312 | D175: 9536 | E175: 9523 | F175: 9519 | G175: 9519 | H175: 9525 | I175: 9533 | J175: 9543 | K175: 9550
A176: Oulainen | B176: =pohjatiedot!C171 -> 7610 | C176: =pohjatiedot!AO171 -> 7514 | D176: 7605 | E176: 7550 | F176: 7497 | G176: 7444 | H176: 7396 | I176: 7348 | J176: 7305 | K176: 7265
A177: Oulu | B177: =pohjatiedot!C172 -> 198525 | C177: =pohjatiedot!AO172 -> 200526 | D177: 201621 | E177: 204148 | F177: 206569 | G177: 208898 | H177: 211144 | I177: 213314 | J177: 215418 | K177: 217444
A178: Outokumpu | B178: =pohjatiedot!C173 -> 7139 | C178: =pohjatiedot!AO173 -> 7091 | D178: 7025 | E178: 6957 | F178: 6890 | G178: 6827 | H178: 6769 | I178: 6715 | J178: 6665 | K178: 6616
A179: Padasjoki | B179: =pohjatiedot!C174 -> 3143 | C179: =pohjatiedot!AO174 -> 3073 | D179: 3096 | E179: 3049 | F179: 3007 | G179: 2969 | H179: 2934 | I179: 2902 | J179: 2871 | K179: 2843
A180: Paimio | B180: =pohjatiedot!C175 -> 10620 | C180: =pohjatiedot!AO175 -> 10713 | D180: 10734 | E180: 10788 | F180: 10842 | G180: 10899 | H180: 10955 | I180: 11009 | J180: 11059 | K180: 11108
A181: Paltamo | B181: =pohjatiedot!C176 -> 3488 | C181: =pohjatiedot!AO176 -> 3491 | D181: 3416 | E181: 3357 | F181: 3303 | G181: 3252 | H181: 3207 | I181: 3165 | J181: 3127 | K181: 3090
A182: Parainen | B182: =pohjatiedot!C177 -> 15457 | C182: =pohjatiedot!AO177 -> 15398 | D182: 15497 | E182: 15500 | F182: 15502 | G182: 15504 | H182: 15511 | I182: 15516 | J182: 15523 | K182: 15529
A183: Parikkala | B183: =pohjatiedot!C178 -> 5235 | C183: =pohjatiedot!AO178 -> 5126 | D183: 5171 | E183: 5084 | F183: 4999 | G183: 4926 | H183: 4855 | I183: 4789 | J183: 4728 | K183: 4670
A184: Parkano | B184: =pohjatiedot!C179 -> 6766 | C184: =pohjatiedot!AO179 -> 6692 | D184: 6700 | E184: 6650 | F184: 6606 | G184: 6561 | H184: 6520 | I184: 6481 | J184: 6445 | K184: 6407
A185: Pedersören kunta | B185: =pohjatiedot!C180 -> 11129 | C185: =pohjatiedot!AO180 -> 11067 | D185: 11153 | E185: 11202 | F185: 11254 | G185: 11305 | H185: 11356 | I185: 11406 | J185: 11456 | K185: 11503
A186: Pelkosenniemi | B186: =pohjatiedot!C181 -> 958 | C186: =pohjatiedot!AO181 -> 951 | D186: 927 | E186: 918 | F186: 910 | G186: 905 | H186: 899 | I186: 892 | J186: 886 | K186: 882
A187: Pello | B187: =pohjatiedot!C182 -> 3623 | C187: =pohjatiedot!AO182 -> 3565 | D187: 3538 | E187: 3476 | F187: 3418 | G187: 3366 | H187: 3314 | I187: 3265 | J187: 3219 | K187: 3172
A188: Perho | B188: =pohjatiedot!C183 -> 2931 | C188: =pohjatiedot!AO183 -> 2907 | D188: 2847 | E188: 2824 | F188: 2801 | G188: 2781 | H188: 2760 | I188: 2738 | J188: 2719 | K188: 2701
A189: Pertunmaa | B189: =pohjatiedot!C184 -> 1817 | C189: =pohjatiedot!AO184 -> 1796 | D189: 1788 | E189: 1767 | F189: 1748 | G189: 1730 | H189: 1712 | I189: 1694 | J189: 1677 | K189: 1662
A190: Petäjävesi | B190: =pohjatiedot!C185 -> 4008 | C190: =pohjatiedot!AO185 -> 3981 | D190: 4091 | E190: 4099 | F190: 4107 | G190: 4116 | H190: 4124 | I190: 4130 | J190: 4138 | K190: 4145
A191: Pieksämäki | B191: =pohjatiedot!C186 -> 18801 | C191: =pohjatiedot!AO186 -> 18475 | D191: 18598 | E191: 18385 | F191: 18189 | G191: 18000 | H191: 17825 | I191: 17659 | J191: 17503 | K191: 17355
A192: Pielavesi | B192: =pohjatiedot!C187 -> 4740 | C192: =pohjatiedot!AO187 -> 4697 | D192: 4650 | E192: 4590 | F192: 4531 | G192: 4477 | H192: 4429 | I192: 4382 | J192: 4337 | K192: 4291
A193: Pietarsaari | B193: =pohjatiedot!C188 -> 19436 | C193: =pohjatiedot!AO188 -> 19377 | D193: 19526 | E193: 19521 | F193: 19520 | G193: 19520 | H193: 19527 | I193: 19527 | J193: 19528 | K193: 19529
A194: Pihtipudas | B194: =pohjatiedot!C189 -> 4221 | C194: =pohjatiedot!AO189 -> 4202 | D194: 4096 | E194: 4022 | F194: 3949 | G194: 3881 | H194: 3816 | I194: 3754 | J194: 3696 | K194: 3640
A195: Pirkkala | B195: =pohjatiedot!C190 -> 18913 | C195: =pohjatiedot!AO190 -> 19163 | D195: 19554 | E195: 19980 | F195: 20396 | G195: 20797 | H195: 21186 | I195: 21561 | J195: 21921 | K195: 22263
A196: Polvijärvi | B196: =pohjatiedot!C191 -> 4556 | C196: =pohjatiedot!AO191 -> 4514 | D196: 4528 | E196: 4494 | F196: 4456 | G196: 4425 | H196: 4395 | I196: 4372 | J196: 4348 | K196: 4326
A197: Pomarkku | B197: =pohjatiedot!C192 -> 2240 | C197: =pohjatiedot!AO192 -> 2233 | D197: 2214 | E197: 2183 | F197: 2150 | G197: 2119 | H197: 2091 | I197: 2063 | J197: 2036 | K197: 2012
A198: Pori | B198: =pohjatiedot!C193 -> 85363 | C198: =pohjatiedot!AO193 -> 85059 | D198: 85545 | E198: 85616 | F198: 85681 | G198: 85746 | H198: 85812 | I198: 85877 | J198: 85931 | K198: 85987
A199: Pornainen | B199: =pohjatiedot!C194 -> 5125 | C199: =pohjatiedot!AO194 -> 5108 | D199: 5161 | E199: 5175 | F199: 5195 | G199: 5213 | H199: 5235 | I199: 5257 | J199: 5282 | K199: 5303
A200: Porvoo | B200: =pohjatiedot!C195 -> 49928 | C200: =pohjatiedot!AO195 -> 50144 | D200: 50095 | E200: 50305 | F200: 50523 | G200: 50741 | H200: 50956 | I200: 51171 | J200: 51378 | K200: 51581
A201: Posio | B201: =pohjatiedot!C196 -> 3477 | C201: =pohjatiedot!AO196 -> 3424 | D201: 3497 | E201: 3436 | F201: 3380 | G201: 3327 | H201: 3278 | I201: 3232 | J201: 3190 | K201: 3151
A202: Pudasjärvi | B202: =pohjatiedot!C197 -> 8257 | C202: =pohjatiedot!AO197 -> 8187 | D202: 8152 | E202: 8045 | F202: 7945 | G202: 7850 | H202: 7761 | I202: 7678 | J202: 7597 | K202: 7524
A203: Pukkila | B203: =pohjatiedot!C198 -> 1971 | C203: =pohjatiedot!AO198 -> 1988 | D203: 2017 | E203: 2018 | F203: 2021 | G203: 2023 | H203: 2029 | I203: 2033 | J203: 2041 | K203: 2048
... 100 more rows
